BIOGUIDE_ID,OFFICE,QUARTER,CATEGORY,DATE,PAYEE,START DATE,END DATE,PURPOSE,AMOUNT,YEAR,TRANSCODE,TRANSCODELONG,RECORDID,RECIP (orig.)
,OFFICE OF THE SPEAKER,2014Q4,PERSONNEL BENEFITS,10-16,HON JOHN A BOEHNER,10/01/14,10/31/14,OFFICIAL EXPENSES FOR LEADERS,"2,083.33",2014,AP,Accounts payable,00753934,HON JOHN A BOEHNER
,OFFICE OF THE SPEAKER,2014Q4,PERSONNEL BENEFITS,11-14,HON JOHN A BOEHNER,11/01/14,11/30/14,OFFICIAL EXPENSES FOR LEADERS,"2,083.33",2014,AP,Accounts payable,00760553,HON JOHN A BOEHNER
,OFFICE OF THE SPEAKER,2014Q4,PERSONNEL BENEFITS,12-15,HON JOHN A BOEHNER,12/01/14,12/31/14,OFFICIAL EXPENSES FOR LEADERS,"2,083.33",2014,AP,Accounts payable,00764065,HON JOHN A BOEHNER
,OFFICE OF THE SPEAKER,2014Q4,PERSONNEL COMPENSATION,"","ALTMAN,MICHELLE E",10/01/14,12/31/14,SHARED EMPLOYEE,"20,000.01",2014,"","","","ALTMAN,MICHELLE E"
,OFFICE OF THE SPEAKER,2014Q4,PERSONNEL COMPENSATION,"","ANDREWS,THOMAS S",10/01/14,12/31/14,SPECIAL ASST TO THE SPEAKER,"10,833.33",2014,"","","","ANDREWS,THOMAS S"
,OFFICE OF THE SPEAKER,2014Q4,PERSONNEL COMPENSATION,"","ANDREWS,THOMAS S",12/01/14,12/31/14,SPECIAL ASST TO THE SPEAKER (OTHER COMPENSATION),"2,000.00",2014,"","","","ANDREWS,THOMAS S"
,OFFICE OF THE SPEAKER,2014Q4,PERSONNEL COMPENSATION,"","BAILEY,BRADLEY",10/01/14,12/31/14,ASSIST TO SPEAKER FOR POLICY,"30,000.00",2014,"","","","BAILEY,BRADLEY"
,OFFICE OF THE SPEAKER,2014Q4,PERSONNEL COMPENSATION,"","BAILEY,BRADLEY",12/01/14,12/31/14,ASSIST TO SPEAKER FOR POLICY (OTHER COMPENSATION),"3,000.00",2014,"","","","BAILEY,BRADLEY"
,OFFICE OF THE SPEAKER,2014Q4,PERSONNEL COMPENSATION,"","BECKER,ALEXANDER M",10/01/14,12/31/14,FLOOR ASSISTANT,"11,250.00",2014,"","","","BECKER,ALEXANDER M"
,OFFICE OF THE SPEAKER,2014Q4,PERSONNEL COMPENSATION,"","BECKER,ALEXANDER M",12/01/14,12/31/14,FLOOR ASSISTANT (OTHER COMPENSATION),"2,000.00",2014,"","","","BECKER,ALEXANDER M"
,OFFICE OF THE SPEAKER,2014Q4,PERSONNEL COMPENSATION,"","BENJAMIN, WILLIAM C",10/01/14,12/31/14,DIR OF INFORMATION TECHNOLOGY,"24,500.01",2014,"","","","BENJAMIN, WILLIAM C"
,OFFICE OF THE SPEAKER,2014Q4,PERSONNEL COMPENSATION,"","BENJAMIN, WILLIAM C",12/01/14,12/31/14,DIR OF INFORMATION TECHNOLOGY (OTHER COMPENSATION),"1,875.00",2014,"","","","BENJAMIN, WILLIAM C"
,OFFICE OF THE SPEAKER,2014Q4,PERSONNEL COMPENSATION,"","BLAKE,KRISTENE",10/01/14,12/31/14,DIRECTOR OF SCHDLNG/EXEC ASST,"24,999.99",2014,"","","","BLAKE,KRISTENE"
,OFFICE OF THE SPEAKER,2014Q4,PERSONNEL COMPENSATION,"","BLAKE,KRISTENE",12/01/14,12/31/14,DIRECTOR OF SCHDLNG/EXEC ASST (OTHER COMPENSATION),"4,000.00",2014,"","","","BLAKE,KRISTENE"
,OFFICE OF THE SPEAKER,2014Q4,PERSONNEL COMPENSATION,"","BORDEN III, R C",10/01/14,12/31/14,SHARED EMPLOYEE,"41,750.01",2014,"","","","BORDEN III, R C"
,OFFICE OF THE SPEAKER,2014Q4,PERSONNEL COMPENSATION,"","BOYD,KATHRYN E",10/01/14,12/31/14,ASST COMMUNICATIONS DIRECTOR,"23,750.01",2014,"","","","BOYD,KATHRYN E"
,OFFICE OF THE SPEAKER,2014Q4,PERSONNEL COMPENSATION,"","BOYD,KATHRYN E",12/01/14,12/31/14,ASST COMMUNICATIONS DIRECTOR (OTHER COMPENSATION),"2,000.00",2014,"","","","BOYD,KATHRYN E"
,OFFICE OF THE SPEAKER,2014Q4,PERSONNEL COMPENSATION,"","BROWN,MARYAM S",10/01/14,12/31/14,ASST TO SPEAKER FOR POLICY,"42,000.00",2014,"","","","BROWN,MARYAM S"
,OFFICE OF THE SPEAKER,2014Q4,PERSONNEL COMPENSATION,"","BURR,DANIELLE M",12/01/14,12/31/14,SHARED EMPLOYEE,"10,000.00",2014,"","","","BURR,DANIELLE M"
,OFFICE OF THE SPEAKER,2014Q4,PERSONNEL COMPENSATION,"","CRAVEN, KELLY F",10/01/14,12/31/14,DIRECTOR OF HOUSE OPERATIONS,"43,125.00",2014,"","","","CRAVEN, KELLY F"
,OFFICE OF THE SPEAKER,2014Q4,PERSONNEL COMPENSATION,"","EASBY-SMITH,ANNE S",10/01/14,10/31/14,SPECIAL EVENTS ASSISTANT,"3,750.00",2014,"","","","EASBY-SMITH,ANNE S"
,OFFICE OF THE SPEAKER,2014Q4,PERSONNEL COMPENSATION,"","EASBY-SMITH,ANNE S",11/01/14,12/31/14,SPECIAL EVENTS COORDINATOR,"7,500.00",2014,"","","","EASBY-SMITH,ANNE S"
,OFFICE OF THE SPEAKER,2014Q4,PERSONNEL COMPENSATION,"","EASBY-SMITH,ANNE S",12/01/14,12/31/14,SPECIAL EVENTS COORDINATOR (OTHER COMPENSATION),"2,000.00",2014,"","","","EASBY-SMITH,ANNE S"
,OFFICE OF THE SPEAKER,2014Q4,PERSONNEL COMPENSATION,"","ECKARD,NASTASHA",10/01/14,12/31/14,ASSIST TO SPEAKER FOR POLICY,"24,624.99",2014,"","","","ECKARD,NASTASHA"
,OFFICE OF THE SPEAKER,2014Q4,PERSONNEL COMPENSATION,"","ECKARD,NASTASHA",12/01/14,12/31/14,ASSIST TO SPEAKER FOR POLICY (OTHER COMPENSATION),"3,000.00",2014,"","","","ECKARD,NASTASHA"
,OFFICE OF THE SPEAKER,2014Q4,PERSONNEL COMPENSATION,"","EICHHORN, JARED D",10/01/14,12/31/14,FLOOR ASSISTANT,"15,000.00",2014,"","","","EICHHORN, JARED D"
,OFFICE OF THE SPEAKER,2014Q4,PERSONNEL COMPENSATION,"","EICHHORN, JARED D",12/01/14,12/31/14,FLOOR ASSISTANT (OTHER COMPENSATION),"3,000.00",2014,"","","","EICHHORN, JARED D"
,OFFICE OF THE SPEAKER,2014Q4,PERSONNEL COMPENSATION,"","EMBLER, ELIZABETH G",10/01/14,10/01/14,DIRECTOR OF MEDIA AFFAIRS,263.89,2014,"","","","EMBLER, ELIZABETH G"
,OFFICE OF THE SPEAKER,2014Q4,PERSONNEL COMPENSATION,"","EMBLER, ELIZABETH G",10/01/14,10/01/14,DIRECTOR OF MEDIA AFFAIRS (OTHER COMPENSATION),"3,166.67",2014,"","","","EMBLER, ELIZABETH G"
,OFFICE OF THE SPEAKER,2014Q4,PERSONNEL COMPENSATION,"","FRANKS,JESSICA L",10/01/14,12/31/14,STAFF ASSISTANT,"8,750.01",2014,"","","","FRANKS,JESSICA L"
,OFFICE OF THE SPEAKER,2014Q4,PERSONNEL COMPENSATION,"","FRANKS,JESSICA L",09/01/14,11/30/14,STAFF ASSISTANT (OVERTIME),416.46,2014,"","","","FRANKS,JESSICA L"
,OFFICE OF THE SPEAKER,2014Q4,PERSONNEL COMPENSATION,"","FRANKS,JESSICA L",12/01/14,12/31/14,STAFF ASSISTANT (OTHER COMPENSATION),"2,000.00",2014,"","","","FRANKS,JESSICA L"
,OFFICE OF THE SPEAKER,2014Q4,PERSONNEL COMPENSATION,"","GILLESPIE,MAURA M",10/01/14,12/31/14,PRESS ADVISOR,"15,000.00",2014,"","","","GILLESPIE,MAURA M"
,OFFICE OF THE SPEAKER,2014Q4,PERSONNEL COMPENSATION,"","GILLESPIE,MAURA M",12/01/14,12/31/14,PRESS ADVISOR (OTHER COMPENSATION),"2,000.00",2014,"","","","GILLESPIE,MAURA M"
,OFFICE OF THE SPEAKER,2014Q4,PERSONNEL COMPENSATION,"","GREEN, JO-MARIE S",10/01/14,12/31/14,GEN COUNSEL/CHIEF OF LEG OPS,"43,125.00",2014,"","","","GREEN, JO-MARIE S"
,OFFICE OF THE SPEAKER,2014Q4,PERSONNEL COMPENSATION,"","GREENE,WILLIAM P",10/01/14,12/31/14,DIRECTOR-OUTREACH,"35,000.01",2014,"","","","GREENE,WILLIAM P"
,OFFICE OF THE SPEAKER,2014Q4,PERSONNEL COMPENSATION,"","GREENE,WILLIAM P",12/01/14,12/31/14,DIRECTOR-OUTREACH (OTHER COMPENSATION),"2,000.00",2014,"","","","GREENE,WILLIAM P"
,OFFICE OF THE SPEAKER,2014Q4,PERSONNEL COMPENSATION,"","GRIEVE,ALEXANDER G",10/01/14,12/31/14,STAFF ASSISTANT,"7,500.00",2014,"","","","GRIEVE,ALEXANDER G"
,OFFICE OF THE SPEAKER,2014Q4,PERSONNEL COMPENSATION,"","GRIEVE,ALEXANDER G",09/01/14,11/30/14,STAFF ASSISTANT (OVERTIME),730.16,2014,"","","","GRIEVE,ALEXANDER G"
,OFFICE OF THE SPEAKER,2014Q4,PERSONNEL COMPENSATION,"","GRIEVE,ALEXANDER G",12/01/14,12/31/14,STAFF ASSISTANT (OTHER COMPENSATION),"2,000.00",2014,"","","","GRIEVE,ALEXANDER G"
,OFFICE OF THE SPEAKER,2014Q4,PERSONNEL COMPENSATION,"","HALEY, KATHERINE C",10/01/14,12/31/14,ASST TO SPEAKER FOR POLICY,"27,500.01",2014,"","","","HALEY, KATHERINE C"
,OFFICE OF THE SPEAKER,2014Q4,PERSONNEL COMPENSATION,"","HALEY, KATHERINE C",12/01/14,12/31/14,ASST TO SPEAKER FOR POLICY (OTHER COMPENSATION),"3,000.00",2014,"","","","HALEY, KATHERINE C"
,OFFICE OF THE SPEAKER,2014Q4,PERSONNEL COMPENSATION,"","HARROUN, TIMOTHY J",10/01/14,12/31/14,MANAGER REPUBLICAN CLOAKROOM,"33,287.49",2014,"","","","HARROUN, TIMOTHY J"
,OFFICE OF THE SPEAKER,2014Q4,PERSONNEL COMPENSATION,"","HARROUN, TIMOTHY J",12/01/14,12/31/14,MANAGER REPUBLICAN CLOAKROOM (OTHER COMPENSATION),"2,000.00",2014,"","","","HARROUN, TIMOTHY J"
,OFFICE OF THE SPEAKER,2014Q4,PERSONNEL COMPENSATION,"","HENRIQUEZ,RAUL E",10/01/14,12/31/14,STAFF ASSISTANT,"8,750.01",2014,"","","","HENRIQUEZ,RAUL E"
,OFFICE OF THE SPEAKER,2014Q4,PERSONNEL COMPENSATION,"","HENRIQUEZ,RAUL E",09/01/14,11/30/14,STAFF ASSISTANT (OVERTIME),807.68,2014,"","","","HENRIQUEZ,RAUL E"
,OFFICE OF THE SPEAKER,2014Q4,PERSONNEL COMPENSATION,"","HENRIQUEZ,RAUL E",12/01/14,12/31/14,STAFF ASSISTANT (OTHER COMPENSATION),"2,000.00",2014,"","","","HENRIQUEZ,RAUL E"
,OFFICE OF THE SPEAKER,2014Q4,PERSONNEL COMPENSATION,"","HERRLE, CYNTHIA A",10/01/14,12/31/14,ASST TO THE SPEAKER FOR POLICY,"42,000.00",2014,"","","","HERRLE, CYNTHIA A"
,OFFICE OF THE SPEAKER,2014Q4,PERSONNEL COMPENSATION,"","HERRLE, CYNTHIA A",12/01/14,12/31/14,ASST TO THE SPEAKER FOR POLICY (OTHER COMPENSATION),224.67,2014,"","","","HERRLE, CYNTHIA A"
,OFFICE OF THE SPEAKER,2014Q4,PERSONNEL COMPENSATION,"","IVANCIC,CHARLOTTE S",10/01/14,12/31/14,ASSIST TO SPEAKER FOR POLICY,"42,000.00",2014,"","","","IVANCIC,CHARLOTTE S"
,OFFICE OF THE SPEAKER,2014Q4,PERSONNEL COMPENSATION,"","IVANCIC,CHARLOTTE S",12/01/14,12/31/14,ASSIST TO SPEAKER FOR POLICY (OTHER COMPENSATION),375.00,2014,"","","","IVANCIC,CHARLOTTE S"
,OFFICE OF THE SPEAKER,2014Q4,PERSONNEL COMPENSATION,"","KOLEGO, TREVOR W",10/01/14,12/31/14,DIR OF MEMBER SERVICES,"42,000.00",2014,"","","","KOLEGO, TREVOR W"
,OFFICE OF THE SPEAKER,2014Q4,PERSONNEL COMPENSATION,"","KOLEGO, TREVOR W",12/01/14,12/31/14,DIR OF MEMBER SERVICES (OTHER COMPENSATION),375.00,2014,"","","","KOLEGO, TREVOR W"
,OFFICE OF THE SPEAKER,2014Q4,PERSONNEL COMPENSATION,"","LAMPERT,JUSTIN",10/01/14,12/31/14,RESEARCH ASSISTANT,"11,250.00",2014,"","","","LAMPERT,JUSTIN"
,OFFICE OF THE SPEAKER,2014Q4,PERSONNEL COMPENSATION,"","LAMPERT,JUSTIN",12/01/14,12/31/14,RESEARCH ASSISTANT (OTHER COMPENSATION),"2,000.00",2014,"","","","LAMPERT,JUSTIN"
,OFFICE OF THE SPEAKER,2014Q4,PERSONNEL COMPENSATION,"","LEOPOLD,PATRICK R",10/01/14,12/31/14,SHARED EMPLOYEE,"20,000.01",2014,"","","","LEOPOLD,PATRICK R"
,OFFICE OF THE SPEAKER,2014Q4,PERSONNEL COMPENSATION,"","LOHMEYER,SONJA M",10/01/14,12/31/14,DIRECTOR OF PUBLIC LIAISON,"34,500.00",2014,"","","","LOHMEYER,SONJA M"
,OFFICE OF THE SPEAKER,2014Q4,PERSONNEL COMPENSATION,"","LOHMEYER,SONJA M",12/01/14,12/31/14,DIRECTOR OF PUBLIC LIAISON (OTHER COMPENSATION),"2,724.67",2014,"","","","LOHMEYER,SONJA M"
,OFFICE OF THE SPEAKER,2014Q4,PERSONNEL COMPENSATION,"","LOZUPONE, AMY S",10/01/14,12/31/14,DIRECTOR OF ADMIN OPERATIONS,"43,125.00",2014,"","","","LOZUPONE, AMY S"
,OFFICE OF THE SPEAKER,2014Q4,PERSONNEL COMPENSATION,"","MACDONALD, BRIAN C",10/01/14,12/31/14,SHARED EMPLOYEE,"20,000.01",2014,"","","","MACDONALD, BRIAN C"
,OFFICE OF THE SPEAKER,2014Q4,PERSONNEL COMPENSATION,"","MILAM, LAURA M",10/01/14,12/31/14,DEPUTY SCHEDULER,"9,999.99",2014,"","","","MILAM, LAURA M"
,OFFICE OF THE SPEAKER,2014Q4,PERSONNEL COMPENSATION,"","MILAM, LAURA M",12/01/14,12/31/14,DEPUTY SCHEDULER (OTHER COMPENSATION),"2,000.00",2014,"","","","MILAM, LAURA M"
,OFFICE OF THE SPEAKER,2014Q4,PERSONNEL COMPENSATION,"","MILLER,WILLIAM",10/01/14,12/31/14,SENIOR STAFF ASSISTANT,"11,250.00",2014,"","","","MILLER,WILLIAM"
,OFFICE OF THE SPEAKER,2014Q4,PERSONNEL COMPENSATION,"","MILLER,WILLIAM",09/01/14,11/30/14,SENIOR STAFF ASSISTANT (OVERTIME),"1,403.53",2014,"","","","MILLER,WILLIAM"
,OFFICE OF THE SPEAKER,2014Q4,PERSONNEL COMPENSATION,"","MILLER,WILLIAM",12/01/14,12/31/14,SENIOR STAFF ASSISTANT (OTHER COMPENSATION),"3,750.00",2014,"","","","MILLER,WILLIAM"
,OFFICE OF THE SPEAKER,2014Q4,PERSONNEL COMPENSATION,"","MINGO,ZACHARY F",10/01/14,12/31/14,STAFF ASSISTANT,"7,500.00",2014,"","","","MINGO,ZACHARY F"
,OFFICE OF THE SPEAKER,2014Q4,PERSONNEL COMPENSATION,"","MINGO,ZACHARY F",09/01/14,11/30/14,STAFF ASSISTANT (OVERTIME),421.87,2014,"","","","MINGO,ZACHARY F"
,OFFICE OF THE SPEAKER,2014Q4,PERSONNEL COMPENSATION,"","MINGO,ZACHARY F",12/01/14,12/31/14,STAFF ASSISTANT (OTHER COMPENSATION),"1,666.00",2014,"","","","MINGO,ZACHARY F"
,OFFICE OF THE SPEAKER,2014Q4,PERSONNEL COMPENSATION,"","MINKLER,ANN W",10/01/14,12/31/14,FLOOR ASSISTANT,"12,500.01",2014,"","","","MINKLER,ANN W"
,OFFICE OF THE SPEAKER,2014Q4,PERSONNEL COMPENSATION,"","MINKLER,ANN W",12/01/14,12/31/14,FLOOR ASSISTANT (OTHER COMPENSATION),"2,000.00",2014,"","","","MINKLER,ANN W"
,OFFICE OF THE SPEAKER,2014Q4,PERSONNEL COMPENSATION,"","PALISI,ANNIE",10/01/14,12/31/14,DEPUTY DIRECTOR OF MEMBER SVCS,"38,750.01",2014,"","","","PALISI,ANNIE"
,OFFICE OF THE SPEAKER,2014Q4,PERSONNEL COMPENSATION,"","PALISI,ANNIE",12/01/14,12/31/14,DEPUTY DIRECTOR OF MEMBER SVCS (OTHER COMPENSATION),"1,308.01",2014,"","","","PALISI,ANNIE"
,OFFICE OF THE SPEAKER,2014Q4,PERSONNEL COMPENSATION,"","PALMER, ASHLEY M",10/01/14,12/31/14,SHARED EMPLOYEE,"5,000.01",2014,"","","","PALMER, ASHLEY M"
,OFFICE OF THE SPEAKER,2014Q4,PERSONNEL COMPENSATION,"","PIETKIEWICZ,ANNE K",10/01/14,12/31/14,STAFF ASSISTANT,"7,500.00",2014,"","","","PIETKIEWICZ,ANNE K"
,OFFICE OF THE SPEAKER,2014Q4,PERSONNEL COMPENSATION,"","PIETKIEWICZ,ANNE K",09/01/14,11/30/14,STAFF ASSISTANT (OVERTIME),497.59,2014,"","","","PIETKIEWICZ,ANNE K"
,OFFICE OF THE SPEAKER,2014Q4,PERSONNEL COMPENSATION,"","PIETKIEWICZ,ANNE K",12/01/14,12/31/14,STAFF ASSISTANT (OTHER COMPENSATION),"2,000.00",2014,"","","","PIETKIEWICZ,ANNE K"
,OFFICE OF THE SPEAKER,2014Q4,PERSONNEL COMPENSATION,"","RATCLIFFE,RAMSEY E",10/01/14,10/31/14,SPECIAL EVENTS ASSISTANT,"3,750.00",2014,"","","","RATCLIFFE,RAMSEY E"
,OFFICE OF THE SPEAKER,2014Q4,PERSONNEL COMPENSATION,"","RATCLIFFE,RAMSEY E",11/01/14,12/31/14,SPECIAL EVENTS COORDINATOR,"7,500.00",2014,"","","","RATCLIFFE,RAMSEY E"
,OFFICE OF THE SPEAKER,2014Q4,PERSONNEL COMPENSATION,"","RATCLIFFE,RAMSEY E",12/01/14,12/31/14,SPECIAL EVENTS COORDINATOR (OTHER COMPENSATION),"2,000.00",2014,"","","","RATCLIFFE,RAMSEY E"
,OFFICE OF THE SPEAKER,2014Q4,PERSONNEL COMPENSATION,"","REED, HEATHER E",10/01/14,10/31/14,ASSISTANT PRESS SECRETARY,"4,625.00",2014,"","","","REED, HEATHER E"
,OFFICE OF THE SPEAKER,2014Q4,PERSONNEL COMPENSATION,"","REED, HEATHER E",11/01/14,12/31/14,DEPUTY PRESS SECRETARY,"10,833.34",2014,"","","","REED, HEATHER E"
,OFFICE OF THE SPEAKER,2014Q4,PERSONNEL COMPENSATION,"","REED, HEATHER E",12/01/14,12/31/14,DEPUTY PRESS SECRETARY (OTHER COMPENSATION),"2,000.00",2014,"","","","REED, HEATHER E"
,OFFICE OF THE SPEAKER,2014Q4,PERSONNEL COMPENSATION,"","RENZ, BRANDON",10/01/14,12/31/14,SHARED EMPLOYEE,"20,000.01",2014,"","","","RENZ, BRANDON"
,OFFICE OF THE SPEAKER,2014Q4,PERSONNEL COMPENSATION,"","RICCI,MICHAEL",10/01/14,12/31/14,DEPUTY COMMUNICATIONS DIRECTOR,"36,249.99",2014,"","","","RICCI,MICHAEL"
,OFFICE OF THE SPEAKER,2014Q4,PERSONNEL COMPENSATION,"","RICCI,MICHAEL",12/01/14,12/31/14,DEPUTY COMMUNICATIONS DIRECTOR (OTHER COMPENSATION),"1,950.91",2014,"","","","RICCI,MICHAEL"
,OFFICE OF THE SPEAKER,2014Q4,PERSONNEL COMPENSATION,"","ROBINSON,GREGORY J",10/01/14,12/31/14,ASSOCIATE COUNSEL,"12,999.99",2014,"","","","ROBINSON,GREGORY J"
,OFFICE OF THE SPEAKER,2014Q4,PERSONNEL COMPENSATION,"","ROBINSON,GREGORY J",12/01/14,12/31/14,ASSOCIATE COUNSEL (OTHER COMPENSATION),"2,000.00",2014,"","","","ROBINSON,GREGORY J"
,OFFICE OF THE SPEAKER,2014Q4,PERSONNEL COMPENSATION,"","SAGER,MICHAEL J",10/01/14,12/31/14,SYSTEMS ADMINISTRATOR,"21,249.99",2014,"","","","SAGER,MICHAEL J"
,OFFICE OF THE SPEAKER,2014Q4,PERSONNEL COMPENSATION,"","SAGER,MICHAEL J",12/01/14,12/31/14,SYSTEMS ADMINISTRATOR (OTHER COMPENSATION),"2,000.00",2014,"","","","SAGER,MICHAEL J"
,OFFICE OF THE SPEAKER,2014Q4,PERSONNEL COMPENSATION,"","SCHNITTGER, DAVID M",10/01/14,12/31/14,DEPUTY CHIEF OF STAFF,"43,125.00",2014,"","","","SCHNITTGER, DAVID M"
,OFFICE OF THE SPEAKER,2014Q4,PERSONNEL COMPENSATION,"","SMITH, CALEB J",10/01/14,12/31/14,DIGITAL COMMUNICATIONS DIRECTO,"22,500.00",2014,"","","","SMITH, CALEB J"
,OFFICE OF THE SPEAKER,2014Q4,PERSONNEL COMPENSATION,"","SMITH, CALEB J",12/01/14,12/31/14,DIGITAL COMMUNICATIONS DIRECTO (OTHER COMPENSATION),"2,000.00",2014,"","","","SMITH, CALEB J"
,OFFICE OF THE SPEAKER,2014Q4,PERSONNEL COMPENSATION,"","SMITH, KEVIN",10/01/14,12/31/14,DIRECTOR OF COMMUNICATIONS,"43,125.00",2014,"","","","SMITH, KEVIN"
,OFFICE OF THE SPEAKER,2014Q4,PERSONNEL COMPENSATION,"","SOMMERS, MICHAEL J",10/01/14,12/31/14,CHIEF OF STAFF,"43,125.00",2014,"","","","SOMMERS, MICHAEL J"
,OFFICE OF THE SPEAKER,2014Q4,PERSONNEL COMPENSATION,"","STEEL, MICHAEL",10/01/14,12/31/14,PRESS SECRETARY,"37,500.00",2014,"","","","STEEL, MICHAEL"
,OFFICE OF THE SPEAKER,2014Q4,PERSONNEL COMPENSATION,"","STEEL, MICHAEL",12/01/14,12/31/14,PRESS SECRETARY (OTHER COMPENSATION),"1,724.67",2014,"","","","STEEL, MICHAEL"
,OFFICE OF THE SPEAKER,2014Q4,PERSONNEL COMPENSATION,"","STEWART, DAVID B",10/01/14,12/31/14,POLICY DIRECTOR (STAT),"43,125.00",2014,"","","","STEWART, DAVID B"
,OFFICE OF THE SPEAKER,2014Q4,PERSONNEL COMPENSATION,"","STEWART, JENNIFER M",10/01/14,12/31/14,ASST TO SPEAKER FOR POLICY,"30,000.00",2014,"","","","STEWART, JENNIFER M"
,OFFICE OF THE SPEAKER,2014Q4,PERSONNEL COMPENSATION,"","STEWART, JENNIFER M",12/01/14,12/31/14,ASST TO SPEAKER FOR POLICY (OTHER COMPENSATION),"1,724.67",2014,"","","","STEWART, JENNIFER M"
,OFFICE OF THE SPEAKER,2014Q4,PERSONNEL COMPENSATION,"","STRUNK, LYDIA",10/01/14,12/31/14,DEPUTY FLOOR DIRECTOR,"24,999.99",2014,"","","","STRUNK, LYDIA"
,OFFICE OF THE SPEAKER,2014Q4,PERSONNEL COMPENSATION,"","STRUNK, LYDIA",12/01/14,12/31/14,DEPUTY FLOOR DIRECTOR (OTHER COMPENSATION),"3,000.00",2014,"","","","STRUNK, LYDIA"
,OFFICE OF THE SPEAKER,2014Q4,PERSONNEL COMPENSATION,"","SWINEHART,SARAH V",11/01/14,12/31/14,DIRECTOR OF MEDIA AFFAIRS,"15,833.34",2014,"","","","SWINEHART,SARAH V"
,OFFICE OF THE SPEAKER,2014Q4,PERSONNEL COMPENSATION,"","TALLENT,REBECCA A",10/01/14,12/31/14,ASST TO SPEAKER FOR POLICY,"42,000.00",2014,"","","","TALLENT,REBECCA A"
,OFFICE OF THE SPEAKER,2014Q4,PERSONNEL COMPENSATION,"","TALLENT,REBECCA A",12/01/14,12/31/14,ASST TO SPEAKER FOR POLICY (OTHER COMPENSATION),375.00,2014,"","","","TALLENT,REBECCA A"
,OFFICE OF THE SPEAKER,2014Q4,PERSONNEL COMPENSATION,"","THORSEN, ANNE B",10/01/14,12/31/14,FLOOR DIRECTOR,"43,125.00",2014,"","","","THORSEN, ANNE B"
,OFFICE OF THE SPEAKER,2014Q4,PERSONNEL COMPENSATION,"","WEBBER,MILDRED J",09/01/14,09/30/14,BROADCAST PRODUCTION TECHNICIA,"-4,725.00",2014,"","","","WEBBER,MILDRED J"
,OFFICE OF THE SPEAKER,2014Q4,PERSONNEL COMPENSATION,"","WOLKING,MATTHEW D",10/01/14,12/31/14,COMMUNICATIONS ADVISOR,"22,500.00",2014,"","","","WOLKING,MATTHEW D"
,OFFICE OF THE SPEAKER,2014Q4,PERSONNEL COMPENSATION,"","WOLKING,MATTHEW D",12/01/14,12/31/14,COMMUNICATIONS ADVISOR (OTHER COMPENSATION),"2,000.00",2014,"","","","WOLKING,MATTHEW D"
,OFFICE OF THE SPEAKER,2014Q4,PERSONNEL COMPENSATION,"","ZULKOSKY,ERIC T",10/01/14,12/31/14,SHARED EMPLOYEE,"24,999.99",2014,"","","","ZULKOSKY,ERIC T"
,OFFICE OF THE SPEAKER,2014Q4,TRAVEL,10-03,"TALLENT, REBECCA A",09/03/14,09/05/14,TAXI/PARKING/TOLLS,64.71,2014,AP,Accounts payable,E0201808,"TALLENT, REBECCA A"
,OFFICE OF THE SPEAKER,2014Q4,TRAVEL,10-03,"HALEY, KATHERINE C",07/22/14,09/10/14,TAXI/PARKING/TOLLS,67.94,2014,AP,Accounts payable,E0201832,"HALEY, KATHERINE C"
,OFFICE OF THE SPEAKER,2014Q4,TRAVEL,10-03,"SOMMERS,MICHAEL",09/05/14,09/30/14,TAXI/PARKING/TOLLS,52.00,2014,AP,Accounts payable,E0201833,"SOMMERS,MICHAEL"
,OFFICE OF THE SPEAKER,2014Q4,TRAVEL,10-03,"LOZUPONE, AMY S",09/24/14,10/01/14,TAXI/PARKING/TOLLS,80.00,2014,AP,Accounts payable,E0201839,"LOZUPONE, AMY S"
,OFFICE OF THE SPEAKER,2014Q4,TRAVEL,10-03,"SCHNITTGER, DAVID M",05/07/14,09/30/14,TAXI/PARKING/TOLLS,52.00,2014,AP,Accounts payable,E0201871,"SCHNITTGER, DAVID M"
,OFFICE OF THE SPEAKER,2014Q4,TRAVEL,10-09,"SCHNITTGER, DAVID M",04/02/14,04/02/14,TAXI/PARKING/TOLLS,20.00,2014,AP,Accounts payable,E0203894,"SCHNITTGER, DAVID M"
,OFFICE OF THE SPEAKER,2014Q4,TRAVEL,10-10,"SOMMERS,MICHAEL",04/25/14,05/06/14,TAXI/PARKING/TOLLS,41.76,2014,AP,Accounts payable,E0203895,"SOMMERS,MICHAEL"
,OFFICE OF THE SPEAKER,2014Q4,TRAVEL,10-15,"LOZUPONE, AMY S",10/02/14,10/02/14,TAXI/PARKING/TOLLS,20.11,2014,AP,Accounts payable,E0203902,"LOZUPONE, AMY S"
,OFFICE OF THE SPEAKER,2014Q4,TRAVEL,11-12,"GREENE,WILLIAM P",07/23/14,09/24/14,TAXI/PARKING/TOLLS,58.72,2014,AP,Accounts payable,E0213224,"GREENE,WILLIAM P"
,OFFICE OF THE SPEAKER,2014Q4,TRAVEL,11-13,"SMITH, CALEB",08/28/14,09/18/14,TAXI/PARKING/TOLLS,26.86,2014,AP,Accounts payable,E0214374,"SMITH, CALEB"
,OFFICE OF THE SPEAKER,2014Q4,TRAVEL,11-14,"SMITH, KEVIN",07/22/14,09/29/14,TAXI/PARKING/TOLLS,119.00,2014,AP,Accounts payable,E0214889,"SMITH, KEVIN"
,OFFICE OF THE SPEAKER,2014Q4,PRINTING AND REPRODUCTION,10-28,"",10/01/14,10/31/14,PHOTOGRAPHIC (TRANSFER),35.40,2014,GL,General ledger,PIX0043595,""
,OFFICE OF THE SPEAKER,2014Q4,PRINTING AND REPRODUCTION,11-25,"",11/01/14,11/30/14,PHOTOGRAPHIC (TRANSFER),43.00,2014,GL,General ledger,PIX0044392,""
,OFFICE OF THE SPEAKER,2014Q4,PRINTING AND REPRODUCTION,12-30,"",12/01/14,12/31/14,PHOTOGRAPHIC (TRANSFER),745.40,2014,GL,General ledger,PIX0045275,""
,OFFICE OF THE SPEAKER,2014Q4,OTHER SERVICES,11-14,"SMITH, CALEB",09/15/14,09/15/14,"WEB DEV HST,EMAIL & RLTD SERV",49.00,2014,AP,Accounts payable,E0214365,"SMITH, CALEB"
,OFFICE OF THE SPEAKER,2014Q4,SUPPLIES AND MATERIALS,10-01,COCA-COLA REFRESHMENTS USA INC,09/23/14,09/23/14,FOOD & BEVERAGE,117.60,2014,AP,Accounts payable,E0200736,COCA-COLA REFRESHMENTS USA INC
,OFFICE OF THE SPEAKER,2014Q4,SUPPLIES AND MATERIALS,10-06,CQ ROLL CALL,09/26/14,09/25/15,PUBLICATIONS/REFERENCE MAT'L,"17,995.00",2014,AP,Accounts payable,E0201834,CQ ROLL CALL
,OFFICE OF THE SPEAKER,2014Q4,SUPPLIES AND MATERIALS,10-21,CITI PCARD-AMAZON MKTPLACE PMTS,08/29/14,09/28/14,HABITATION EXPENSE,50.15,2014,AP,Accounts payable,00757962,CITI PCARD-AMAZON MKTPLACE PMTS
,OFFICE OF THE SPEAKER,2014Q4,SUPPLIES AND MATERIALS,10-21,CITI PCARD-CAPITOL HOST (RIDGEWEL,08/29/14,09/28/14,FOOD & BEVERAGE,105.00,2014,AP,Accounts payable,00757962,CITI PCARD-CAPITOL HOST (RIDGEWEL
,OFFICE OF THE SPEAKER,2014Q4,SUPPLIES AND MATERIALS,10-21,CITI PCARD-CORNER BAKERY,08/29/14,09/28/14,FOOD & BEVERAGE,741.60,2014,AP,Accounts payable,00757962,CITI PCARD-CORNER BAKERY
,OFFICE OF THE SPEAKER,2014Q4,SUPPLIES AND MATERIALS,10-21,CITI PCARD-DISTRICT TACO,08/29/14,09/28/14,FOOD & BEVERAGE,396.30,2014,AP,Accounts payable,00757962,CITI PCARD-DISTRICT TACO
,OFFICE OF THE SPEAKER,2014Q4,SUPPLIES AND MATERIALS,10-21,CITI PCARD-TARGET,08/29/14,09/28/14,HABITATION EXPENSE,31.78,2014,AP,Accounts payable,00757962,CITI PCARD-TARGET
,OFFICE OF THE SPEAKER,2014Q4,SUPPLIES AND MATERIALS,10-21,CITI PCARD-TAYLOR GOURMET,08/29/14,09/28/14,FOOD & BEVERAGE,471.22,2014,AP,Accounts payable,00757962,CITI PCARD-TAYLOR GOURMET
,OFFICE OF THE SPEAKER,2014Q4,SUPPLIES AND MATERIALS,10-21,CITI PCARD-TLF ARLINGTON FLORIST,08/29/14,09/28/14,HABITATION EXPENSE,365.00,2014,AP,Accounts payable,00757962,CITI PCARD-TLF ARLINGTON FLORIST
,OFFICE OF THE SPEAKER,2014Q4,SUPPLIES AND MATERIALS,10-21,CITI PCARD-WHOLEFDS PST,08/29/14,09/28/14,FOOD & BEVERAGE,408.93,2014,AP,Accounts payable,00757962,CITI PCARD-WHOLEFDS PST
,OFFICE OF THE SPEAKER,2014Q4,SUPPLIES AND MATERIALS,11-12,FIRST CHOICE COFFEE SERVICES,08/07/14,08/07/14,FOOD & BEVERAGE,464.71,2014,AP,Accounts payable,E0213206,FIRST CHOICE COFFEE SERVICES
,OFFICE OF THE SPEAKER,2014Q4,SUPPLIES AND MATERIALS,11-12,FIRST CHOICE COFFEE SERVICES,09/18/14,09/18/14,FOOD & BEVERAGE,661.10,2014,AP,Accounts payable,E0213208,FIRST CHOICE COFFEE SERVICES
,OFFICE OF THE SPEAKER,2014Q4,SUPPLIES AND MATERIALS,11-12,"LOHMEYER, SONJA M",10/23/14,10/27/14,FOOD & BEVERAGE,148.29,2014,AP,Accounts payable,E0213209,"LOHMEYER, SONJA M"
,OFFICE OF THE SPEAKER,2014Q4,SUPPLIES AND MATERIALS,11-12,DESIGN CUISINE,09/18/14,09/18/14,FOOD & BEVERAGE,345.00,2014,AP,Accounts payable,E0213211,DESIGN CUISINE
,OFFICE OF THE SPEAKER,2014Q4,SUPPLIES AND MATERIALS,11-12,FIRST CHOICE COFFEE SERVICES,09/26/14,09/26/14,FOOD & BEVERAGE,434.27,2014,AP,Accounts payable,E0213213,FIRST CHOICE COFFEE SERVICES
,OFFICE OF THE SPEAKER,2014Q4,SUPPLIES AND MATERIALS,11-12,"LOHMEYER, SONJA M",10/29/14,10/29/14,FOOD & BEVERAGE,32.76,2014,AP,Accounts payable,E0213217,"LOHMEYER, SONJA M"
,OFFICE OF THE SPEAKER,2014Q4,SUPPLIES AND MATERIALS,11-12,FIRST CHOICE COFFEE SERVICES,09/11/14,09/11/14,FOOD & BEVERAGE,312.67,2014,AP,Accounts payable,E0213218,FIRST CHOICE COFFEE SERVICES
,OFFICE OF THE SPEAKER,2014Q4,SUPPLIES AND MATERIALS,11-12,FIRST CHOICE COFFEE SERVICES,10/03/14,10/03/14,FOOD & BEVERAGE,421.30,2014,AP,Accounts payable,E0213219,FIRST CHOICE COFFEE SERVICES
,OFFICE OF THE SPEAKER,2014Q4,SUPPLIES AND MATERIALS,11-12,FIRST CHOICE COFFEE SERVICES,08/14/14,08/14/14,FOOD & BEVERAGE,339.74,2014,AP,Accounts payable,E0213221,FIRST CHOICE COFFEE SERVICES
,OFFICE OF THE SPEAKER,2014Q4,SUPPLIES AND MATERIALS,11-12,FIRST CHOICE COFFEE SERVICES,10/23/14,10/23/14,FOOD & BEVERAGE,548.23,2014,AP,Accounts payable,E0213222,FIRST CHOICE COFFEE SERVICES
,OFFICE OF THE SPEAKER,2014Q4,SUPPLIES AND MATERIALS,11-12,COCA-COLA REFRESHMENTS USA INC,11/04/14,11/04/14,FOOD & BEVERAGE,401.76,2014,AP,Accounts payable,E0213223,COCA-COLA REFRESHMENTS USA INC
,OFFICE OF THE SPEAKER,2014Q4,SUPPLIES AND MATERIALS,11-12,FIRST CHOICE COFFEE SERVICES,10/09/14,10/09/14,FOOD & BEVERAGE,423.04,2014,AP,Accounts payable,E0213225,FIRST CHOICE COFFEE SERVICES
,OFFICE OF THE SPEAKER,2014Q4,SUPPLIES AND MATERIALS,11-12,FIRST CHOICE COFFEE SERVICES,09/12/14,09/12/14,FOOD & BEVERAGE,180.00,2014,AP,Accounts payable,E0213226,FIRST CHOICE COFFEE SERVICES
,OFFICE OF THE SPEAKER,2014Q4,SUPPLIES AND MATERIALS,11-12,FIRST CHOICE COFFEE SERVICES,09/08/14,09/08/14,FOOD & BEVERAGE,796.93,2014,AP,Accounts payable,E0213227,FIRST CHOICE COFFEE SERVICES
,OFFICE OF THE SPEAKER,2014Q4,SUPPLIES AND MATERIALS,11-12,COCA-COLA REFRESHMENTS USA INC,10/17/14,10/17/14,FOOD & BEVERAGE,117.60,2014,AP,Accounts payable,E0213228,COCA-COLA REFRESHMENTS USA INC
,OFFICE OF THE SPEAKER,2014Q4,SUPPLIES AND MATERIALS,11-12,FIRST CHOICE COFFEE SERVICES,10/16/14,10/16/14,FOOD & BEVERAGE,379.98,2014,AP,Accounts payable,E0213229,FIRST CHOICE COFFEE SERVICES
,OFFICE OF THE SPEAKER,2014Q4,SUPPLIES AND MATERIALS,11-13,"SMITH, CALEB",08/26/14,08/26/14,FOOD & BEVERAGE,28.71,2014,AP,Accounts payable,E0214369,"SMITH, CALEB"
,OFFICE OF THE SPEAKER,2014Q4,SUPPLIES AND MATERIALS,11-24,CITI PCARD-AMAZON.COM,10/01/14,10/28/14,PUBLICATIONS/REFERENCE MAT'L,20.39,2014,AP,Accounts payable,00763079,CITI PCARD-AMAZON.COM
,OFFICE OF THE SPEAKER,2014Q4,SUPPLIES AND MATERIALS,11-24,CITI PCARD-CVS/PHARMACY,10/01/14,10/28/14,FOOD & BEVERAGE,77.34,2014,AP,Accounts payable,00763079,CITI PCARD-CVS/PHARMACY
,OFFICE OF THE SPEAKER,2014Q4,SUPPLIES AND MATERIALS,11-24,CITI PCARD-WHOLEFDS PST,09/29/14,09/30/14,FOOD & BEVERAGE,164.98,2014,AP,Accounts payable,00763079,CITI PCARD-WHOLEFDS PST
,OFFICE OF THE SPEAKER,2014Q4,SUPPLIES AND MATERIALS,11-24,AMARYLLIS INC,11/19/14,11/19/14,HABITATION EXPENSE,675.00,2014,AP,Accounts payable,E0218412,AMARYLLIS INC
,OFFICE OF THE SPEAKER,2014Q4,SUPPLIES AND MATERIALS,11-24,COCA-COLA REFRESHMENTS USA INC,11/18/14,11/18/14,FOOD & BEVERAGE,641.28,2014,AP,Accounts payable,E0218421,COCA-COLA REFRESHMENTS USA INC
,OFFICE OF THE SPEAKER,2014Q4,SUPPLIES AND MATERIALS,11-24,TVEYES INC,01/01/15,12/31/15,PUBLICATIONS/REFERENCE MAT'L,"1,200.00",2014,AP,Accounts payable,E0218422,TVEYES INC
,OFFICE OF THE SPEAKER,2014Q4,SUPPLIES AND MATERIALS,12-10,AMARYLLIS INC,12/01/14,12/01/14,HABITATION EXPENSE,"2,150.00",2014,AP,Accounts payable,E0223927,AMARYLLIS INC
,OFFICE OF THE SPEAKER,2014Q4,SUPPLIES AND MATERIALS,12-11,LEADERSHIP DIRECTORIES INC,06/01/15,12/01/15,PUBLICATIONS/REFERENCE MAT'L,465.00,2014,AP,Accounts payable,E0223917,LEADERSHIP DIRECTORIES INC
,OFFICE OF THE SPEAKER,2014Q4,SUPPLIES AND MATERIALS,12-11,"EASBY-SMITH, ANNE S",12/01/14,12/01/14,HABITATION EXPENSE,138.16,2014,AP,Accounts payable,E0223922,"EASBY-SMITH, ANNE S"
,OFFICE OF THE SPEAKER,2014Q4,SUPPLIES AND MATERIALS,12-11,"LOHMEYER, SONJA M",11/23/14,11/24/14,HABITATION EXPENSE,187.30,2014,AP,Accounts payable,E0223928,"LOHMEYER, SONJA M"
,OFFICE OF THE SPEAKER,2014Q4,SUPPLIES AND MATERIALS,12-11,DESIGN CUISINE,11/19/14,11/19/14,FOOD & BEVERAGE,"9,488.00",2014,AP,Accounts payable,E0223929,DESIGN CUISINE
,OFFICE OF THE SPEAKER,2014Q4,SUPPLIES AND MATERIALS,12-12,E&E PUBLISHING LLC,01/15/15,01/14/16,PUBLICATIONS/REFERENCE MAT'L,"4,280.00",2014,AP,Accounts payable,E0223924,E&E PUBLISHING LLC
,OFFICE OF THE SPEAKER,2014Q4,SUPPLIES AND MATERIALS,12-22,CITI PCARD-CAPITOL HOST (RIDGEWEL,10/29/14,11/28/14,FOOD & BEVERAGE,255.00,2014,AP,Accounts payable,00768172,CITI PCARD-CAPITOL HOST (RIDGEWEL
,OFFICE OF THE SPEAKER,2014Q4,SUPPLIES AND MATERIALS,12-22,CITI PCARD-CORNER BAKERY,10/29/14,11/28/14,FOOD & BEVERAGE,"1,514.00",2014,AP,Accounts payable,00768172,CITI PCARD-CORNER BAKERY
,OFFICE OF THE SPEAKER,2014Q4,SUPPLIES AND MATERIALS,12-22,CITI PCARD-FIREHOOK,10/29/14,11/28/14,FOOD & BEVERAGE,598.80,2014,AP,Accounts payable,00768172,CITI PCARD-FIREHOOK
,OFFICE OF THE SPEAKER,2014Q4,SUPPLIES AND MATERIALS,12-22,CITI PCARD-MATCHBOX CAPITOL HILL,10/29/14,11/28/14,FOOD & BEVERAGE,837.00,2014,AP,Accounts payable,00768172,CITI PCARD-MATCHBOX CAPITOL HILL
,OFFICE OF THE SPEAKER,2014Q4,SUPPLIES AND MATERIALS,12-22,CITI PCARD-PACER,10/29/14,11/28/14,PUBLICATIONS/REFERENCE MAT'L,68.60,2014,AP,Accounts payable,00768172,CITI PCARD-PACER
,OFFICE OF THE SPEAKER,2014Q4,SUPPLIES AND MATERIALS,12-22,CITI PCARD-SARDI S CATERING,10/29/14,11/28/14,FOOD & BEVERAGE,"1,048.40",2014,AP,Accounts payable,00768172,CITI PCARD-SARDI S CATERING
,OFFICE OF THE SPEAKER,2014Q4,SUPPLIES AND MATERIALS,12-22,CITI PCARD-TAYLOR GOURMET,10/29/14,11/28/14,FOOD & BEVERAGE,524.08,2014,AP,Accounts payable,00768172,CITI PCARD-TAYLOR GOURMET
,OFFICE OF THE SPEAKER,2014Q4,SUPPLIES AND MATERIALS,12-22,CITI PCARD-WHOLEFDS PST,10/29/14,11/28/14,FOOD & BEVERAGE,"1,793.48",2014,AP,Accounts payable,00768172,CITI PCARD-WHOLEFDS PST
,OFFICE OF THE MAJORITY LEADER,2014Q4,PERSONNEL COMPENSATION,"","BERRY,TIMOTHY J",10/01/14,12/31/14,CHIEF OF STAFF,"43,125.00",2014,"","","","BERRY,TIMOTHY J"
,OFFICE OF THE MAJORITY LEADER,2014Q4,PERSONNEL COMPENSATION,"","BORDEN III, R C",10/01/14,12/31/14,DIRECTOR OF OVERSIGHT,750.00,2014,"","","","BORDEN III, R C"
,OFFICE OF THE MAJORITY LEADER,2014Q4,PERSONNEL COMPENSATION,"","BRADLEY, NEIL L",10/01/14,12/31/14,DEP CHIEF OF STAFF FOR POLICY,"43,125.00",2014,"","","","BRADLEY, NEIL L"
,OFFICE OF THE MAJORITY LEADER,2014Q4,PERSONNEL COMPENSATION,"","BUCHANAN,NATALIE L",10/01/14,12/31/14,DIR OF MEMBER SERVICES,"26,250.00",2014,"","","","BUCHANAN,NATALIE L"
,OFFICE OF THE MAJORITY LEADER,2014Q4,PERSONNEL COMPENSATION,"","BURR,DANIELLE M",10/01/14,12/31/14,DIRECTOR OF EXTERNAL AFFAIRS,"31,250.00",2014,"","","","BURR,DANIELLE M"
,OFFICE OF THE MAJORITY LEADER,2014Q4,PERSONNEL COMPENSATION,"","CAREY,BRITTANY M",10/01/14,12/31/14,EXTERN AFFAIR ASST/ASST TO COS,"10,500.00",2014,"","","","CAREY,BRITTANY M"
,OFFICE OF THE MAJORITY LEADER,2014Q4,PERSONNEL COMPENSATION,"","DIXON, KELLY A",10/01/14,12/31/14,DIR OF LEGISLATIVE OPERATIONS,"26,250.00",2014,"","","","DIXON, KELLY A"
,OFFICE OF THE MAJORITY LEADER,2014Q4,PERSONNEL COMPENSATION,"","FRANC,MICHAEL G",10/01/14,12/31/14,POLICY DIRECTOR AND COUNSEL,"41,250.00",2014,"","","","FRANC,MICHAEL G"
,OFFICE OF THE MAJORITY LEADER,2014Q4,PERSONNEL COMPENSATION,"","GLANCEY,TESSICA M",10/01/14,12/31/14,DIGITAL COORDINATOR,"12,750.00",2014,"","","","GLANCEY,TESSICA M"
,OFFICE OF THE MAJORITY LEADER,2014Q4,PERSONNEL COMPENSATION,"","HENEHAN, EMILY A",10/01/14,12/31/14,SENIOR POLICY ADVISOR,"22,500.00",2014,"","","","HENEHAN, EMILY A"
,OFFICE OF THE MAJORITY LEADER,2014Q4,PERSONNEL COMPENSATION,"","HOWARD,BENJAMIN R",10/01/14,12/31/14,DIRECTOR OF FLOOR OPERATIONS,"21,000.00",2014,"","","","HOWARD,BENJAMIN R"
,OFFICE OF THE MAJORITY LEADER,2014Q4,PERSONNEL COMPENSATION,"","KAREM,ROBERT S",10/01/14,12/31/14,SENIOR POLICY ADVISOR,"32,250.00",2014,"","","","KAREM,ROBERT S"
,OFFICE OF THE MAJORITY LEADER,2014Q4,PERSONNEL COMPENSATION,"","KLUTTZ,LAWSON T",10/01/14,12/31/14,SPECIAL ASSISTANT,"9,000.00",2014,"","","","KLUTTZ,LAWSON T"
,OFFICE OF THE MAJORITY LEADER,2014Q4,PERSONNEL COMPENSATION,"","LEGANSKI,JOHN G",10/01/14,12/31/14,SHARED EMPLOYEE,"9,000.00",2014,"","","","LEGANSKI,JOHN G"
,OFFICE OF THE MAJORITY LEADER,2014Q4,PERSONNEL COMPENSATION,"","LONG,MICHAEL P",10/01/14,12/31/14,COMMUNICATIONS DIRECTOR,"26,250.00",2014,"","","","LONG,MICHAEL P"
,OFFICE OF THE MAJORITY LEADER,2014Q4,PERSONNEL COMPENSATION,"","MAHAN,ROGER A",10/01/14,12/31/14,POLICY ADVISOR,"32,250.00",2014,"","","","MAHAN,ROGER A"
,OFFICE OF THE MAJORITY LEADER,2014Q4,PERSONNEL COMPENSATION,"","MCCLELLAND, WESLEY R",10/01/14,12/31/14,SENIOR POLICY ADVISOR,"22,500.00",2014,"","","","MCCLELLAND, WESLEY R"
,OFFICE OF THE MAJORITY LEADER,2014Q4,PERSONNEL COMPENSATION,"","MIN, JAMES B",10/01/14,12/31/14,DEPUTY CHIEF OF STAFF/COUNSEL,"11,500.00",2014,"","","","MIN, JAMES B"
,OFFICE OF THE MAJORITY LEADER,2014Q4,PERSONNEL COMPENSATION,"","SPARKS, MATTHEW E",10/01/14,12/31/14,PRESS SECRETARY,"7,500.00",2014,"","","","SPARKS, MATTHEW E"
,OFFICE OF THE MAJORITY LEADER,2014Q4,PERSONNEL COMPENSATION,"","STIPICEVIC, JOHN A",10/01/14,12/31/14,DEP COS FOR FLOOR AND MEM SERV,"40,500.00",2014,"","","","STIPICEVIC, JOHN A"
,OFFICE OF THE MAJORITY LEADER,2014Q4,PERSONNEL COMPENSATION,"","STIPICEVIC, KRISTIN",10/01/14,12/31/14,EXECUTIVE ASSISTANT,"11,500.00",2014,"","","","STIPICEVIC, KRISTIN"
,OFFICE OF THE MAJORITY LEADER,2014Q4,PERSONNEL COMPENSATION,"","THIELE,AARON J",10/01/14,12/31/14,SENIOR STAFF ASSISTANT,"9,000.00",2014,"","","","THIELE,AARON J"
,OFFICE OF THE MAJORITY LEADER,2014Q4,PERSONNEL COMPENSATION,"","TORRES,ALEC C",10/01/14,12/31/14,COMM AIDE AND SPEECHWRITER,"11,250.00",2014,"","","","TORRES,ALEC C"
,OFFICE OF THE MAJORITY LEADER,2014Q4,PERSONNEL COMPENSATION,"","VINNICOMBE,CAROLYN E",10/01/14,10/31/14,STAFF ASSISTANT,"2,500.00",2014,"","","","VINNICOMBE,CAROLYN E"
,OFFICE OF THE MAJORITY LEADER,2014Q4,TRAVEL,11-03,"BURR, DANIELLE M",07/28/14,07/28/14,TAXI/PARKING/TOLLS,10.73,2014,AP,Accounts payable,E0210942,"BURR, DANIELLE M"
,OFFICE OF THE MAJORITY LEADER,2014Q4,TRAVEL,11-03,"BURR, DANIELLE M",09/08/14,09/08/14,TAXI/PARKING/TOLLS,12.07,2014,AP,Accounts payable,E0210942,"BURR, DANIELLE M"
,OFFICE OF THE MAJORITY LEADER,2014Q4,TRAVEL,11-03,"BURR, DANIELLE M",09/10/14,09/10/14,TAXI/PARKING/TOLLS,20.00,2014,AP,Accounts payable,E0210942,"BURR, DANIELLE M"
,OFFICE OF THE MAJORITY LEADER,2014Q4,TRAVEL,11-03,"BURR, DANIELLE M",09/17/14,09/17/14,TAXI/PARKING/TOLLS,18.00,2014,AP,Accounts payable,E0210942,"BURR, DANIELLE M"
,OFFICE OF THE MAJORITY LEADER,2014Q4,TRAVEL,11-03,"BURR, DANIELLE M",10/08/14,10/08/14,TAXI/PARKING/TOLLS,19.91,2014,AP,Accounts payable,E0210942,"BURR, DANIELLE M"
,OFFICE OF THE MAJORITY LEADER,2014Q4,TRAVEL,11-03,"BURR, DANIELLE M",10/15/14,10/15/14,TAXI/PARKING/TOLLS,11.98,2014,AP,Accounts payable,E0210942,"BURR, DANIELLE M"
,OFFICE OF THE MAJORITY LEADER,2014Q4,"RENT, COMMUNICATION, UTILITIES",10-20,FEDERAL EXPRESS CORPORATION,10/17/14,10/17/14,POSTAGE / COURIER / BOX RENTAL,4.94,2014,AP,Accounts payable,00755608,FEDERAL EXPRESS CORPORATION
,OFFICE OF THE MAJORITY LEADER,2014Q4,"RENT, COMMUNICATION, UTILITIES",10-28,FEDERAL EXPRESS CORPORATION,10/24/14,10/24/14,POSTAGE / COURIER / BOX RENTAL,16.04,2014,AP,Accounts payable,00758170,FEDERAL EXPRESS CORPORATION
,OFFICE OF THE MAJORITY LEADER,2014Q4,"RENT, COMMUNICATION, UTILITIES",10-29,FEDERAL EXPRESS CORPORATION,10/10/14,10/10/14,POSTAGE / COURIER / BOX RENTAL,24.83,2014,AP,Accounts payable,00753756,FEDERAL EXPRESS CORPORATION
,OFFICE OF THE MAJORITY LEADER,2014Q4,"RENT, COMMUNICATION, UTILITIES",11-05,FEDERAL EXPRESS CORPORATION,10/31/14,10/31/14,POSTAGE / COURIER / BOX RENTAL,5.96,2014,AP,Accounts payable,00758490,FEDERAL EXPRESS CORPORATION
,OFFICE OF THE MAJORITY LEADER,2014Q4,"RENT, COMMUNICATION, UTILITIES",11-17,FEDERAL EXPRESS CORPORATION,11/07/14,11/07/14,POSTAGE / COURIER / BOX RENTAL,24.85,2014,AP,Accounts payable,00758710,FEDERAL EXPRESS CORPORATION
,OFFICE OF THE MAJORITY LEADER,2014Q4,"RENT, COMMUNICATION, UTILITIES",11-19,FEDERAL EXPRESS CORPORATION,11/14/14,11/14/14,POSTAGE / COURIER / BOX RENTAL,11.79,2014,AP,Accounts payable,00760529,FEDERAL EXPRESS CORPORATION
,OFFICE OF THE MAJORITY LEADER,2014Q4,"RENT, COMMUNICATION, UTILITIES",11-25,FEDERAL EXPRESS CORPORATION,11/21/14,11/21/14,POSTAGE / COURIER / BOX RENTAL,51.31,2014,AP,Accounts payable,00763080,FEDERAL EXPRESS CORPORATION
,OFFICE OF THE MAJORITY LEADER,2014Q4,"RENT, COMMUNICATION, UTILITIES",12-11,FEDERAL EXPRESS CORPORATION,11/28/14,11/28/14,POSTAGE / COURIER / BOX RENTAL,3.58,2014,AP,Accounts payable,00763563,FEDERAL EXPRESS CORPORATION
,OFFICE OF THE MAJORITY LEADER,2014Q4,"RENT, COMMUNICATION, UTILITIES",12-11,FEDERAL EXPRESS CORPORATION,12/05/14,12/05/14,POSTAGE / COURIER / BOX RENTAL,24.53,2014,AP,Accounts payable,00763597,FEDERAL EXPRESS CORPORATION
,OFFICE OF THE MAJORITY LEADER,2014Q4,"RENT, COMMUNICATION, UTILITIES",12-17,FEDERAL EXPRESS CORPORATION,12/12/14,12/12/14,POSTAGE / COURIER / BOX RENTAL,76.75,2014,AP,Accounts payable,00764073,FEDERAL EXPRESS CORPORATION
,OFFICE OF THE MAJORITY LEADER,2014Q4,"RENT, COMMUNICATION, UTILITIES",12-22,CITI PCARD-USPS,10/29/14,11/28/14,POSTAGE / COURIER / BOX RENTAL,"1,802.05",2014,AP,Accounts payable,00768172,CITI PCARD-USPS
,OFFICE OF THE MAJORITY LEADER,2014Q4,"RENT, COMMUNICATION, UTILITIES",12-23,FEDERAL EXPRESS CORPORATION,12/19/14,12/19/14,POSTAGE / COURIER / BOX RENTAL,32.82,2014,AP,Accounts payable,00768173,FEDERAL EXPRESS CORPORATION
,OFFICE OF THE MAJORITY LEADER,2014Q4,PRINTING AND REPRODUCTION,11-25,"",11/01/14,11/30/14,PHOTOGRAPHIC (TRANSFER),19.20,2014,GL,General ledger,PIX0044392,""
,OFFICE OF THE MAJORITY LEADER,2014Q4,PRINTING AND REPRODUCTION,12-22,CITI PCARD-FEDEXOFFICE,10/29/14,11/28/14,PRINTING & REPRODUCTION,"1,049.00",2014,AP,Accounts payable,00768172,CITI PCARD-FEDEXOFFICE
,OFFICE OF THE MAJORITY LEADER,2014Q4,PRINTING AND REPRODUCTION,12-30,"",12/01/14,12/31/14,PHOTOGRAPHIC (TRANSFER),25.70,2014,GL,General ledger,PIX0045275,""
,OFFICE OF THE MAJORITY LEADER,2014Q4,SUPPLIES AND MATERIALS,10-06,"MIN, JAMES B",09/05/14,09/05/14,FOOD & BEVERAGE,375.06,2014,AP,Accounts payable,E0202314,"MIN, JAMES B"
,OFFICE OF THE MAJORITY LEADER,2014Q4,SUPPLIES AND MATERIALS,10-09,"MIN, JAMES B",10/02/14,10/02/14,FOOD & BEVERAGE,314.48,2014,AP,Accounts payable,E0202313,"MIN, JAMES B"
,OFFICE OF THE MAJORITY LEADER,2014Q4,SUPPLIES AND MATERIALS,10-16,REED ELSEVIER INC,05/01/14,05/31/14,PUBLICATIONS/REFERENCE MAT'L,625.00,2014,AP,Accounts payable,E0205755,REED ELSEVIER INC
,OFFICE OF THE MAJORITY LEADER,2014Q4,SUPPLIES AND MATERIALS,10-21,CITI PCARD-D J WALL-ST-JOURNAL,08/29/14,09/28/14,PUBLICATIONS/REFERENCE MAT'L,24.31,2014,AP,Accounts payable,00757962,CITI PCARD-D J WALL-ST-JOURNAL
,OFFICE OF THE MAJORITY LEADER,2014Q4,SUPPLIES AND MATERIALS,10-21,CITI PCARD-FIRST CHOICE - JOE RAG,08/29/14,09/28/14,FOOD & BEVERAGE,532.16,2014,AP,Accounts payable,00757962,CITI PCARD-FIRST CHOICE - JOE RAG
,OFFICE OF THE MAJORITY LEADER,2014Q4,SUPPLIES AND MATERIALS,10-21,CITI PCARD-LA TIMES SUBSCRIPTION,08/29/14,09/28/14,PUBLICATIONS/REFERENCE MAT'L,15.96,2014,AP,Accounts payable,00757962,CITI PCARD-LA TIMES SUBSCRIPTION
,OFFICE OF THE MAJORITY LEADER,2014Q4,SUPPLIES AND MATERIALS,10-21,CITI PCARD-NEW YORK TIMES DIGITAL,08/29/14,09/28/14,PUBLICATIONS/REFERENCE MAT'L,37.01,2014,AP,Accounts payable,00757962,CITI PCARD-NEW YORK TIMES DIGITAL
,OFFICE OF THE MAJORITY LEADER,2014Q4,SUPPLIES AND MATERIALS,10-21,CITI PCARD-NRI THE NEW REPUBLIC,08/29/14,09/28/14,PUBLICATIONS/REFERENCE MAT'L,34.97,2014,AP,Accounts payable,00757962,CITI PCARD-NRI THE NEW REPUBLIC
,OFFICE OF THE MAJORITY LEADER,2014Q4,SUPPLIES AND MATERIALS,11-03,DEER PARK WATER,08/27/14,09/26/14,WATER,264.72,2014,AP,Accounts payable,E0210918,DEER PARK WATER
,OFFICE OF THE MAJORITY LEADER,2014Q4,SUPPLIES AND MATERIALS,11-14,DEER PARK WATER,09/27/14,10/26/14,WATER,144.69,2014,AP,Accounts payable,E0215198,DEER PARK WATER
,OFFICE OF THE MAJORITY LEADER,2014Q4,SUPPLIES AND MATERIALS,11-24,CITI PCARD-D J WALL-ST-JOURNAL,10/01/14,10/28/14,PUBLICATIONS/REFERENCE MAT'L,24.31,2014,AP,Accounts payable,00763079,CITI PCARD-D J WALL-ST-JOURNAL
,OFFICE OF THE MAJORITY LEADER,2014Q4,SUPPLIES AND MATERIALS,11-24,CITI PCARD-FIRST CHOICE - JOE RAG,10/01/14,10/28/14,FOOD & BEVERAGE,595.49,2014,AP,Accounts payable,00763079,CITI PCARD-FIRST CHOICE - JOE RAG
,OFFICE OF THE MAJORITY LEADER,2014Q4,SUPPLIES AND MATERIALS,11-24,CITI PCARD-LA TIMES SUBSCRIPTION,10/01/14,10/28/14,PUBLICATIONS/REFERENCE MAT'L,15.96,2014,AP,Accounts payable,00763079,CITI PCARD-LA TIMES SUBSCRIPTION
,OFFICE OF THE MAJORITY LEADER,2014Q4,SUPPLIES AND MATERIALS,11-24,CITI PCARD-NEW YORK TIMES DIGITAL,09/29/14,09/30/14,PUBLICATIONS/REFERENCE MAT'L,37.01,2014,AP,Accounts payable,00763079,CITI PCARD-NEW YORK TIMES DIGITAL
,OFFICE OF THE MAJORITY LEADER,2014Q4,SUPPLIES AND MATERIALS,11-24,CITI PCARD-NEW YORK TIMES DIGITAL,10/01/14,10/28/14,PUBLICATIONS/REFERENCE MAT'L,37.01,2014,AP,Accounts payable,00763079,CITI PCARD-NEW YORK TIMES DIGITAL
,OFFICE OF THE MAJORITY LEADER,2014Q4,SUPPLIES AND MATERIALS,12-02,ARROWHEAD,08/31/14,08/31/14,WATER,90.96,2014,AP,Accounts payable,00763367,ARROWHEAD
,OFFICE OF THE MAJORITY LEADER,2014Q4,SUPPLIES AND MATERIALS,12-02,ARROWHEAD,09/30/14,09/30/14,WATER,109.41,2014,AP,Accounts payable,00763413,ARROWHEAD
,OFFICE OF THE MAJORITY LEADER,2014Q4,SUPPLIES AND MATERIALS,12-02,ARROWHEAD,10/31/14,10/31/14,WATER,92.40,2014,AP,Accounts payable,00763416,ARROWHEAD
,OFFICE OF THE MAJORITY LEADER,2014Q4,SUPPLIES AND MATERIALS,12-12,"MIN, JAMES B",11/25/14,11/25/14,FOOD & BEVERAGE,196.86,2014,AP,Accounts payable,E0224736,"MIN, JAMES B"
,OFFICE OF THE MAJORITY LEADER,2014Q4,SUPPLIES AND MATERIALS,12-15,DEER PARK WATER,10/27/14,11/26/14,WATER,259.29,2014,AP,Accounts payable,E0224737,DEER PARK WATER
,OFFICE OF THE MAJORITY LEADER,2014Q4,SUPPLIES AND MATERIALS,12-22,CITI PCARD-FIRST CHOICE - JOE RAG,10/29/14,11/28/14,FOOD & BEVERAGE,737.11,2014,AP,Accounts payable,00768172,CITI PCARD-FIRST CHOICE - JOE RAG
,OFFICE OF THE MAJORITY LEADER,2014Q4,SUPPLIES AND MATERIALS,12-22,CITI PCARD-LA TIMES SUBSCRIPTION,10/29/14,11/28/14,PUBLICATIONS/REFERENCE MAT'L,15.96,2014,AP,Accounts payable,00768172,CITI PCARD-LA TIMES SUBSCRIPTION
,OFFICE OF THE MAJORITY LEADER,2014Q4,SUPPLIES AND MATERIALS,12-22,CITI PCARD-NEW YORK TIMES DIGITAL,10/29/14,11/28/14,PUBLICATIONS/REFERENCE MAT'L,37.01,2014,AP,Accounts payable,00768172,CITI PCARD-NEW YORK TIMES DIGITAL
,OFFICE OF THE MAJORITY LEADER,2014Q4,SUPPLIES AND MATERIALS,12-22,CITI PCARD-US SENATE GIFT SHOP,10/29/14,11/28/14,HABITATION EXPENSE,74.00,2014,AP,Accounts payable,00768172,CITI PCARD-US SENATE GIFT SHOP
,OFFICE OF THE MINORITY LEADER,2014Q4,PERSONNEL COMPENSATION,"","ABOUCHAR, KEITH S",10/01/14,12/31/14,SENIOR POLICY ADVISOR,"32,700.00",2014,"","","","ABOUCHAR, KEITH S"
,OFFICE OF THE MINORITY LEADER,2014Q4,PERSONNEL COMPENSATION,"","ADRIANCE,EDWIN A",10/01/14,12/31/14,PRESS ASSISTANT,"13,750.01",2014,"","","","ADRIANCE,EDWIN A"
,OFFICE OF THE MINORITY LEADER,2014Q4,PERSONNEL COMPENSATION,"","ADRIANCE,EDWIN A",09/01/14,11/30/14,PRESS ASSISTANT (OVERTIME),"1,924.56",2014,"","","","ADRIANCE,EDWIN A"
,OFFICE OF THE MINORITY LEADER,2014Q4,PERSONNEL COMPENSATION,"","AGUILAR,JORGE A",10/01/14,12/31/14,DEPUTY PRESS SECRETARY,"21,250.01",2014,"","","","AGUILAR,JORGE A"
,OFFICE OF THE MINORITY LEADER,2014Q4,PERSONNEL COMPENSATION,"","BARRY,MARY K",10/01/14,12/31/14,DEPUTY DIRECTOR OF ADVANCE,"31,250.00",2014,"","","","BARRY,MARY K"
,OFFICE OF THE MINORITY LEADER,2014Q4,PERSONNEL COMPENSATION,"","BERRET,EMILY C",10/01/14,12/31/14,SPECIAL ASST TO THE LEADER,"21,124.99",2014,"","","","BERRET,EMILY C"
,OFFICE OF THE MINORITY LEADER,2014Q4,PERSONNEL COMPENSATION,"","BLOOM, MICHAEL T",10/01/14,12/31/14,DEPUTY POLICY DIRECTOR,"29,999.99",2014,"","","","BLOOM, MICHAEL T"
,OFFICE OF THE MINORITY LEADER,2014Q4,PERSONNEL COMPENSATION,"","CAPRON, MARGARET W",10/01/14,12/31/14,SENIOR ADV POLICY & COMM,"36,074.24",2014,"","","","CAPRON, MARGARET W"
,OFFICE OF THE MINORITY LEADER,2014Q4,PERSONNEL COMPENSATION,"","CAYEA,DEVAN W",10/01/14,12/31/14,DEPUTY ASSIST SCHEDULER,"19,500.01",2014,"","","","CAYEA,DEVAN W"
,OFFICE OF THE MINORITY LEADER,2014Q4,PERSONNEL COMPENSATION,"","CHERRY,STEPHANIE",10/01/14,12/31/14,PRESS ADVISOR,"22,962.26",2014,"","","","CHERRY,STEPHANIE"
,OFFICE OF THE MINORITY LEADER,2014Q4,PERSONNEL COMPENSATION,"","CONNELLY,HENRY V",10/01/14,12/31/14,DIRECTOR OF SPEECHWRITING,"23,750.00",2014,"","","","CONNELLY,HENRY V"
,OFFICE OF THE MINORITY LEADER,2014Q4,PERSONNEL COMPENSATION,"","COVEY-BRANDT, ALEXIS",10/01/14,12/31/14,CHIEF OF STAFF,"38,845.32",2014,"","","","COVEY-BRANDT, ALEXIS"
,OFFICE OF THE MINORITY LEADER,2014Q4,PERSONNEL COMPENSATION,"","DAY,TAMIKA K",10/01/14,12/31/14,SR STAFF ASST SYS ADMIN,"12,500.01",2014,"","","","DAY,TAMIKA K"
,OFFICE OF THE MINORITY LEADER,2014Q4,PERSONNEL COMPENSATION,"","DEGRAFF, KENNETH B",10/01/14,12/31/14,SENIOR POLICY ADVISOR,"31,749.99",2014,"","","","DEGRAFF, KENNETH B"
,OFFICE OF THE MINORITY LEADER,2014Q4,PERSONNEL COMPENSATION,"","DEVLIN, PATRICK J",10/01/14,12/31/14,COMMUNICATIONS DIRECTOR,"31,250.01",2014,"","","","DEVLIN, PATRICK J"
,OFFICE OF THE MINORITY LEADER,2014Q4,PERSONNEL COMPENSATION,"","DEWHIRST, DIANE",10/01/14,12/31/14,DEPUTY CHIEF OF STAFF,"43,125.00",2014,"","","","DEWHIRST, DIANE"
,OFFICE OF THE MINORITY LEADER,2014Q4,PERSONNEL COMPENSATION,"","DOHERTY,SINEAD G",10/01/14,12/31/14,ADVANCE DEPUTY,"21,250.01",2014,"","","","DOHERTY,SINEAD G"
,OFFICE OF THE MINORITY LEADER,2014Q4,PERSONNEL COMPENSATION,"","DOMINGUEZ,ASHLEY F",10/01/14,12/31/14,DISTRICT SCHEDULER,"3,000.00",2014,"","","","DOMINGUEZ,ASHLEY F"
,OFFICE OF THE MINORITY LEADER,2014Q4,PERSONNEL COMPENSATION,"","EDMONSON, ROBERT D",10/01/14,12/31/14,CHIEF OF STAFF,"17,499.99",2014,"","","","EDMONSON, ROBERT D"
,OFFICE OF THE MINORITY LEADER,2014Q4,PERSONNEL COMPENSATION,"","ELLISON,MATTHEW B",10/01/14,12/31/14,LEGISLATIVE ASSISTANT,"7,500.00",2014,"","","","ELLISON,MATTHEW B"
,OFFICE OF THE MINORITY LEADER,2014Q4,PERSONNEL COMPENSATION,"","ELSHAMI, NADEAM",10/01/14,12/31/14,CHIEF OF STAFF,"43,125.00",2014,"","","","ELSHAMI, NADEAM"
,OFFICE OF THE MINORITY LEADER,2014Q4,PERSONNEL COMPENSATION,"","FISCHER JR, ROBERT V",10/01/14,12/31/14,ASST FLOOR CHIEF,"43,125.00",2014,"","","","FISCHER JR, ROBERT V"
,OFFICE OF THE MINORITY LEADER,2014Q4,PERSONNEL COMPENSATION,"","GEORGE,EVANGELINE M",10/01/14,12/31/14,DEPUTY COMM DIR/PRESS SEC,"32,300.01",2014,"","","","GEORGE,EVANGELINE M"
,OFFICE OF THE MINORITY LEADER,2014Q4,PERSONNEL COMPENSATION,"","GREENER, APRIL L",10/01/14,12/31/14,RESEARCH DIRECTOR,"31,250.00",2014,"","","","GREENER, APRIL L"
,OFFICE OF THE MINORITY LEADER,2014Q4,PERSONNEL COMPENSATION,"","GRIFFIN,TAYLOR T",10/01/14,12/31/14,PRESS ASSISTANT,"12,500.00",2014,"","","","GRIFFIN,TAYLOR T"
,OFFICE OF THE MINORITY LEADER,2014Q4,PERSONNEL COMPENSATION,"","GRIFFIN,TAYLOR T",09/01/14,11/30/14,PRESS ASSISTANT (OVERTIME),"3,558.85",2014,"","","","GRIFFIN,TAYLOR T"
,OFFICE OF THE MINORITY LEADER,2014Q4,PERSONNEL COMPENSATION,"","HAMMILL, ANDREW T",10/01/14,12/31/14,COMM DIR/SENIOR ADVISOR,"43,125.00",2014,"","","","HAMMILL, ANDREW T"
,OFFICE OF THE MINORITY LEADER,2014Q4,PERSONNEL COMPENSATION,"","HARTZ, JERRY",10/01/14,12/31/14,DIRECTOR OF FLOOR OPERATIONS,"43,125.00",2014,"","","","HARTZ, JERRY"
,OFFICE OF THE MINORITY LEADER,2014Q4,PERSONNEL COMPENSATION,"","HAYNES JR, WILFRED J",10/01/14,12/31/14,IT DIRECTOR,"27,530.49",2014,"","","","HAYNES JR, WILFRED J"
,OFFICE OF THE MINORITY LEADER,2014Q4,PERSONNEL COMPENSATION,"","KAPLAN,EMMA L",09/01/14,12/31/14,ASST TO THE EXECUTIVE OFFICE,"13,875.00",2014,"","","","KAPLAN,EMMA L"
,OFFICE OF THE MINORITY LEADER,2014Q4,PERSONNEL COMPENSATION,"","KAPLAN,EMMA L",09/01/14,11/30/14,ASST TO THE EXECUTIVE OFFICE (OVERTIME),"2,213.19",2014,"","","","KAPLAN,EMMA L"
,OFFICE OF THE MINORITY LEADER,2014Q4,PERSONNEL COMPENSATION,"","KEATING,ROSE M",10/01/14,12/31/14,ASST FLOOR MANAGER,"34,750.01",2014,"","","","KEATING,ROSE M"
,OFFICE OF THE MINORITY LEADER,2014Q4,PERSONNEL COMPENSATION,"","KEITA,KAMILAH Z",10/01/14,12/31/14,DEPUTY INFOMATION TECH. DIRECT,"27,283.01",2014,"","","","KEITA,KAMILAH Z"
,OFFICE OF THE MINORITY LEADER,2014Q4,PERSONNEL COMPENSATION,"","KRETMAN,MATTHEW A",10/01/14,12/31/14,DIRECTOR OF OUTREACH,"14,499.99",2014,"","","","KRETMAN,MATTHEW A"
,OFFICE OF THE MINORITY LEADER,2014Q4,PERSONNEL COMPENSATION,"","KUNDANIS, GEORGE",10/01/14,12/31/14,DEPUTY CHIEF OF STAFF,"43,125.00",2014,"","","","KUNDANIS, GEORGE"
,OFFICE OF THE MINORITY LEADER,2014Q4,PERSONNEL COMPENSATION,"","LEUSCHEN, JAMES P",10/01/14,12/31/14,SENIOR POLICY ADVISOR,"32,199.99",2014,"","","","LEUSCHEN, JAMES P"
,OFFICE OF THE MINORITY LEADER,2014Q4,PERSONNEL COMPENSATION,"","LIZARRAGA, JAIME E",10/01/14,12/31/14,SR ADV & DIR OF MEMBER SVC,"40,605.49",2014,"","","","LIZARRAGA, JAIME E"
,OFFICE OF THE MINORITY LEADER,2014Q4,PERSONNEL COMPENSATION,"","LONG,MICHAEL G",10/01/14,12/31/14,SENIOR ADVISOR,"29,999.99",2014,"","","","LONG,MICHAEL G"
,OFFICE OF THE MINORITY LEADER,2014Q4,PERSONNEL COMPENSATION,"","MAHR,THOMAS",10/01/14,12/31/14,POLICY DIRECTOR,"29,700.00",2014,"","","","MAHR,THOMAS"
,OFFICE OF THE MINORITY LEADER,2014Q4,PERSONNEL COMPENSATION,"","MANGRUM, PEARL J",10/01/14,12/31/14,FINANCIAL ADMINISTRATOR,"19,875.00",2014,"","","","MANGRUM, PEARL J"
,OFFICE OF THE MINORITY LEADER,2014Q4,PERSONNEL COMPENSATION,"","MCCLELLAND,ETHAN L",10/01/14,12/31/14,SPECIAL ASSISTANT,"19,500.01",2014,"","","","MCCLELLAND,ETHAN L"
,OFFICE OF THE MINORITY LEADER,2014Q4,PERSONNEL COMPENSATION,"","MELTZER,RICHARD",10/01/14,12/31/14,POLICY DIRECTOR,"43,125.00",2014,"","","","MELTZER,RICHARD"
,OFFICE OF THE MINORITY LEADER,2014Q4,PERSONNEL COMPENSATION,"","MILLER,AMY M",10/01/14,12/31/14,SENIOR ADVISOR,"24,999.99",2014,"","","","MILLER,AMY M"
,OFFICE OF THE MINORITY LEADER,2014Q4,PERSONNEL COMPENSATION,"","MONGE,KATHERINE S",10/01/14,12/31/14,TAX POLICY ADVISOR,"34,000.00",2014,"","","","MONGE,KATHERINE S"
,OFFICE OF THE MINORITY LEADER,2014Q4,PERSONNEL COMPENSATION,"","PALMER,ASHLI S",10/01/14,12/31/14,POLICY DIRECTOR,"32,499.99",2014,"","","","PALMER,ASHLI S"
,OFFICE OF THE MINORITY LEADER,2014Q4,PERSONNEL COMPENSATION,"","PARKER, WYNDEE R",10/01/14,12/31/14,SENIOR POLICY ADVISOR,"43,125.00",2014,"","","","PARKER, WYNDEE R"
,OFFICE OF THE MINORITY LEADER,2014Q4,PERSONNEL COMPENSATION,"","POWELL,LATRICE S",10/01/14,12/31/14,ASSISTANT CLOAKROOM MANAGER,"31,500.01",2014,"","","","POWELL,LATRICE S"
,OFFICE OF THE MINORITY LEADER,2014Q4,PERSONNEL COMPENSATION,"","PRICE, REVA B",10/01/14,12/31/14,OUTREACH DIRECTOR & ADVISOR,"35,224.26",2014,"","","","PRICE, REVA B"
,OFFICE OF THE MINORITY LEADER,2014Q4,PERSONNEL COMPENSATION,"","PRIMUS, WENDELL E",10/01/14,12/31/14,SENIOR POLICY ADVISOR,"43,125.00",2014,"","","","PRIMUS, WENDELL E"
,OFFICE OF THE MINORITY LEADER,2014Q4,PERSONNEL COMPENSATION,"","QUEEN,CORNELIUS W",10/01/14,12/31/14,LEGISLATIVE CORRESPONDENT,"11,250.00",2014,"","","","QUEEN,CORNELIUS W"
,OFFICE OF THE MINORITY LEADER,2014Q4,PERSONNEL COMPENSATION,"","REPKO,MARY F",10/01/14,12/31/14,SENIOR POLICY ADVISOR,"32,949.99",2014,"","","","REPKO,MARY F"
,OFFICE OF THE MINORITY LEADER,2014Q4,PERSONNEL COMPENSATION,"","RICCIO,ANDREA M",10/01/14,12/31/14,DIR OF MEMBER SERVICES,"23,000.01",2014,"","","","RICCIO,ANDREA M"
,OFFICE OF THE MINORITY LEADER,2014Q4,PERSONNEL COMPENSATION,"","ROBINSON,MALAIKA",10/01/14,12/31/14,DEP DIR OF SPEECHWRITING,"20,000.00",2014,"","","","ROBINSON,MALAIKA"
,OFFICE OF THE MINORITY LEADER,2014Q4,PERSONNEL COMPENSATION,"","ROMICK, BRIAN",10/01/14,12/31/14,MEMBER SERVICES DIRECTOR,"35,949.99",2014,"","","","ROMICK, BRIAN"
,OFFICE OF THE MINORITY LEADER,2014Q4,PERSONNEL COMPENSATION,"","SKILES,KATHLEEN J",10/01/14,12/31/14,DIGITAL DIR.& SENIOR ADVISOR,"33,149.99",2014,"","","","SKILES,KATHLEEN J"
,OFFICE OF THE MINORITY LEADER,2014Q4,PERSONNEL COMPENSATION,"","SMITH,KELSEY L",10/01/14,12/31/14,DEPUTY DIRECTOR OF ADVANCE,"25,249.99",2014,"","","","SMITH,KELSEY L"
,OFFICE OF THE MINORITY LEADER,2014Q4,PERSONNEL COMPENSATION,"","STIVERS, JONATHAN",10/01/14,12/31/14,SENIOR ADVISOR,"37,200.01",2014,"","","","STIVERS, JONATHAN"
,OFFICE OF THE MINORITY LEADER,2014Q4,PERSONNEL COMPENSATION,"","SURGEON,BINA G",10/01/14,12/31/14,SPECIAL ASST TO THE LEADER,"29,750.01",2014,"","","","SURGEON,BINA G"
,OFFICE OF THE MINORITY LEADER,2014Q4,PERSONNEL COMPENSATION,"","TECKLENBURG, MICHAEL H",10/01/14,12/31/14,COUNSEL,"35,499.99",2014,"","","","TECKLENBURG, MICHAEL H"
,OFFICE OF THE MINORITY LEADER,2014Q4,PERSONNEL COMPENSATION,"","WATKINS, YELBERTON R",10/01/14,12/31/14,CHIEF OF STAFF,"41,250.00",2014,"","","","WATKINS, YELBERTON R"
,OFFICE OF THE MINORITY LEADER,2014Q4,PERSONNEL COMPENSATION,"","WEST,JULIUS L",11/01/14,12/31/14,DEPUTY DIRECTOR OF MEMBER SVCS,"12,644.78",2014,"","","","WEST,JULIUS L"
,OFFICE OF THE MINORITY LEADER,2014Q4,PERSONNEL COMPENSATION,"","WOLTERS, KATE",10/01/14,12/31/14,PERSONAL ASSISTANT,"37,046.49",2014,"","","","WOLTERS, KATE"
,OFFICE OF THE MINORITY LEADER,2014Q4,TRAVEL,10-01,"DOMINGUEZ, ASHLEY F",08/27/14,09/23/14,TAXI/PARKING/TOLLS,347.17,2014,AP,Accounts payable,E0201046,"DOMINGUEZ, ASHLEY F"
,OFFICE OF THE MINORITY LEADER,2014Q4,TRAVEL,10-01,"DOMINGUEZ, ASHLEY F",09/05/14,09/24/14,TRAVEL SUBSISTENCE,38.85,2014,AP,Accounts payable,E0201046,"DOMINGUEZ, ASHLEY F"
,OFFICE OF THE MINORITY LEADER,2014Q4,TRAVEL,10-06,"HAMMILL, ANDREW T",09/28/14,09/29/14,TRAVEL SUBSISTENCE,"1,077.70",2014,AP,Accounts payable,E0202666,"HAMMILL, ANDREW T"
,OFFICE OF THE MINORITY LEADER,2014Q4,TRAVEL,10-06,"SMITH, KELSEY L",09/25/14,09/30/14,TAXI/PARKING/TOLLS,30.70,2014,AP,Accounts payable,E0202667,"SMITH, KELSEY L"
,OFFICE OF THE MINORITY LEADER,2014Q4,TRAVEL,10-06,"SMITH, KELSEY L",09/28/14,09/28/14,TRAVEL SUBSISTENCE,208.34,2014,AP,Accounts payable,E0202667,"SMITH, KELSEY L"
,OFFICE OF THE MINORITY LEADER,2014Q4,TRAVEL,10-15,"WOLTERS, KATE",08/04/14,08/06/14,TAXI/PARKING/TOLLS,48.00,2014,AP,Accounts payable,E0204837,"WOLTERS, KATE"
,OFFICE OF THE MINORITY LEADER,2014Q4,TRAVEL,10-15,CITIBANK GOV CARD SERVICE,09/14/14,09/15/14,TRAVEL SUBSISTENCE,281.30,2014,AP,Accounts payable,E0204840,CITIBANK GOV CARD SERVICE
,OFFICE OF THE MINORITY LEADER,2014Q4,TRAVEL,10-15,CITIBANK GOV CARD SERVICE,09/13/14,09/22/14,TRAVEL SUBSISTENCE,377.85,2014,AP,Accounts payable,E0204841,CITIBANK GOV CARD SERVICE
,OFFICE OF THE MINORITY LEADER,2014Q4,TRAVEL,10-15,CITIBANK GOV CARD SERVICE,08/25/14,09/30/14,TRAVEL SUBSISTENCE,"2,766.97",2014,AP,Accounts payable,E0204842,CITIBANK GOV CARD SERVICE
,OFFICE OF THE MINORITY LEADER,2014Q4,TRAVEL,10-15,CITIBANK GOV CARD SERVICE,08/07/14,08/27/14,TRAVEL SUBSISTENCE,"3,580.95",2014,AP,Accounts payable,E0204843,CITIBANK GOV CARD SERVICE
,OFFICE OF THE MINORITY LEADER,2014Q4,TRAVEL,10-15,CITIBANK GOV CARD SERVICE,08/21/14,09/30/14,TRAVEL SUBSISTENCE,"4,775.55",2014,AP,Accounts payable,E0204846,CITIBANK GOV CARD SERVICE
,OFFICE OF THE MINORITY LEADER,2014Q4,TRAVEL,10-15,CITIBANK GOV CARD SERVICE,08/21/14,09/30/14,TRAVEL SUBSISTENCE,"2,965.67",2014,AP,Accounts payable,E0204850,CITIBANK GOV CARD SERVICE
,OFFICE OF THE MINORITY LEADER,2014Q4,TRAVEL,10-17,"PRICE, REVA B",08/19/14,08/19/14,TAXI/PARKING/TOLLS,69.00,2014,AP,Accounts payable,E0206315,"PRICE, REVA B"
,OFFICE OF THE MINORITY LEADER,2014Q4,TRAVEL,10-17,"PRICE, REVA B",09/26/14,09/28/14,TRAVEL SUBSISTENCE,562.80,2014,AP,Accounts payable,E0206315,"PRICE, REVA B"
,OFFICE OF THE MINORITY LEADER,2014Q4,TRAVEL,10-21,"CAPRON, MARGARET W",10/08/14,10/08/14,TAXI/PARKING/TOLLS,12.00,2014,AP,Accounts payable,E0206314,"CAPRON, MARGARET W"
,OFFICE OF THE MINORITY LEADER,2014Q4,TRAVEL,11-03,"CAPRON, MARGARET W",10/24/14,10/24/14,TAXI/PARKING/TOLLS,13.00,2014,AP,Accounts payable,E0210753,"CAPRON, MARGARET W"
,OFFICE OF THE MINORITY LEADER,2014Q4,TRAVEL,11-03,"SURGEON,BINA G",09/13/14,09/13/14,TAXI/PARKING/TOLLS,22.12,2014,AP,Accounts payable,E0210754,"SURGEON,BINA G"
,OFFICE OF THE MINORITY LEADER,2014Q4,TRAVEL,11-03,"SURGEON,BINA G",09/21/14,10/17/14,TRAVEL SUBSISTENCE,200.25,2014,AP,Accounts payable,E0210754,"SURGEON,BINA G"
,OFFICE OF THE MINORITY LEADER,2014Q4,TRAVEL,11-12,"DOMINGUEZ, ASHLEY F",10/04/14,10/27/14,MEALS,107.02,2014,AP,Accounts payable,E0213662,"DOMINGUEZ, ASHLEY F"
,OFFICE OF THE MINORITY LEADER,2014Q4,TRAVEL,11-12,"DOMINGUEZ, ASHLEY F",10/04/14,10/27/14,TAXI/PARKING/TOLLS,832.30,2014,AP,Accounts payable,E0213662,"DOMINGUEZ, ASHLEY F"
,OFFICE OF THE MINORITY LEADER,2014Q4,TRAVEL,11-12,CITIBANK GOV CARD SERVICE,09/28/14,09/30/14,TRAVEL SUBSISTENCE,"1,390.21",2014,AP,Accounts payable,E0213927,CITIBANK GOV CARD SERVICE
,OFFICE OF THE MINORITY LEADER,2014Q4,TRAVEL,11-12,CITIBANK GOV CARD SERVICE,09/28/14,10/18/14,TRAVEL SUBSISTENCE,"2,530.30",2014,AP,Accounts payable,E0213929,CITIBANK GOV CARD SERVICE
,OFFICE OF THE MINORITY LEADER,2014Q4,TRAVEL,11-12,CITIBANK GOV CARD SERVICE,09/14/14,09/15/14,LODGING,246.07,2014,AP,Accounts payable,E0213930,CITIBANK GOV CARD SERVICE
,OFFICE OF THE MINORITY LEADER,2014Q4,TRAVEL,11-13,"KAPLAN, EMMA L",11/02/14,11/02/14,TAXI/PARKING/TOLLS,8.34,2014,AP,Accounts payable,E0213926,"KAPLAN, EMMA L"
,OFFICE OF THE MINORITY LEADER,2014Q4,TRAVEL,11-13,"SMITH, KELSEY L",09/29/14,09/29/14,TAXI/PARKING/TOLLS,19.40,2014,AP,Accounts payable,E0213932,"SMITH, KELSEY L"
,OFFICE OF THE MINORITY LEADER,2014Q4,TRAVEL,11-13,"BERRET, EMILY C",10/29/14,10/29/14,TAXI/PARKING/TOLLS,14.62,2014,AP,Accounts payable,E0213934,"BERRET, EMILY C"
,OFFICE OF THE MINORITY LEADER,2014Q4,TRAVEL,11-13,"MCCLELLAND, ETHAN L",09/18/14,09/18/14,TAXI/PARKING/TOLLS,10.90,2014,AP,Accounts payable,E0213935,"MCCLELLAND, ETHAN L"
,OFFICE OF THE MINORITY LEADER,2014Q4,TRAVEL,11-13,CITIBANK GOV CARD SERVICE,09/27/14,10/19/14,TRAVEL SUBSISTENCE,"1,367.02",2014,AP,Accounts payable,E0213936,CITIBANK GOV CARD SERVICE
,OFFICE OF THE MINORITY LEADER,2014Q4,TRAVEL,11-21,"KAPLAN, EMMA L",11/12/14,11/12/14,TAXI/PARKING/TOLLS,12.20,2014,AP,Accounts payable,E0217731,"KAPLAN, EMMA L"
,OFFICE OF THE MINORITY LEADER,2014Q4,TRAVEL,12-05,"KAPLAN, EMMA L",11/17/14,11/17/14,TAXI/PARKING/TOLLS,9.89,2014,AP,Accounts payable,E0221566,"KAPLAN, EMMA L"
,OFFICE OF THE MINORITY LEADER,2014Q4,TRAVEL,12-05,"KAPLAN, EMMA L",12/01/14,12/03/14,TAXI/PARKING/TOLLS,26.37,2014,AP,Accounts payable,E0222110,"KAPLAN, EMMA L"
,OFFICE OF THE MINORITY LEADER,2014Q4,TRAVEL,12-05,CITIBANK GOV CARD SERVICE,10/29/14,11/03/14,TRAVEL SUBSISTENCE,627.68,2014,AP,Accounts payable,E0222114,CITIBANK GOV CARD SERVICE
,OFFICE OF THE MINORITY LEADER,2014Q4,TRAVEL,12-05,"SMITH, KELSEY L",10/18/14,11/17/14,TAXI/PARKING/TOLLS,56.40,2014,AP,Accounts payable,E0222116,"SMITH, KELSEY L"
,OFFICE OF THE MINORITY LEADER,2014Q4,TRAVEL,12-05,CITIBANK GOV CARD SERVICE,09/13/14,10/07/14,TRAVEL SUBSISTENCE,"2,904.00",2014,AP,Accounts payable,E0222119,CITIBANK GOV CARD SERVICE
,OFFICE OF THE MINORITY LEADER,2014Q4,TRAVEL,12-05,CITIBANK GOV CARD SERVICE,09/22/14,09/28/14,TRAVEL SUBSISTENCE,635.65,2014,AP,Accounts payable,E0222120,CITIBANK GOV CARD SERVICE
,OFFICE OF THE MINORITY LEADER,2014Q4,TRAVEL,12-05,"DOMINGUEZ, ASHLEY F",10/28/14,11/30/14,TAXI/PARKING/TOLLS,"1,026.79",2014,AP,Accounts payable,E0222121,"DOMINGUEZ, ASHLEY F"
,OFFICE OF THE MINORITY LEADER,2014Q4,TRAVEL,12-11,"AGUILAR, JORGE A",10/16/14,10/17/14,TRAVEL SUBSISTENCE,27.44,2014,AP,Accounts payable,E0224021,"AGUILAR, JORGE A"
,OFFICE OF THE MINORITY LEADER,2014Q4,TRAVEL,12-11,CITIBANK GOV CARD SERVICE,11/03/14,11/03/14,MEALS,21.77,2014,AP,Accounts payable,E0224022,CITIBANK GOV CARD SERVICE
,OFFICE OF THE MINORITY LEADER,2014Q4,TRAVEL,12-11,"LIZARRAGA, JAIME E",10/17/14,10/19/14,TRAVEL SUBSISTENCE,305.41,2014,AP,Accounts payable,E0224023,"LIZARRAGA, JAIME E"
,OFFICE OF THE MINORITY LEADER,2014Q4,TRAVEL,12-11,"LIZARRAGA, JAIME E",12/03/14,12/05/14,TRAVEL SUBSISTENCE,622.11,2014,AP,Accounts payable,E0224023,"LIZARRAGA, JAIME E"
,OFFICE OF THE MINORITY LEADER,2014Q4,TRAVEL,12-11,CITIBANK GOV CARD SERVICE,10/30/14,12/02/14,COMMERCIAL TRANSPORTATION,"1,456.80",2014,AP,Accounts payable,E0224025,CITIBANK GOV CARD SERVICE
,OFFICE OF THE MINORITY LEADER,2014Q4,TRAVEL,12-17,"MCCLELLAND, ETHAN L",11/11/14,11/12/14,TAXI/PARKING/TOLLS,20.37,2014,AP,Accounts payable,E0227255,"MCCLELLAND, ETHAN L"
,OFFICE OF THE MINORITY LEADER,2014Q4,TRAVEL,12-17,"SMITH, KELSEY L",12/02/14,12/11/14,TAXI/PARKING/TOLLS,92.95,2014,AP,Accounts payable,E0227257,"SMITH, KELSEY L"
,OFFICE OF THE MINORITY LEADER,2014Q4,TRAVEL,12-17,CITIBANK GOV CARD SERVICE,10/26/14,10/28/14,LODGING,766.80,2014,AP,Accounts payable,E0227258,CITIBANK GOV CARD SERVICE
,OFFICE OF THE MINORITY LEADER,2014Q4,TRAVEL,12-17,CITIBANK GOV CARD SERVICE,09/28/14,10/28/14,TRAVEL SUBSISTENCE,"2,019.43",2014,AP,Accounts payable,E0227259,CITIBANK GOV CARD SERVICE
,OFFICE OF THE MINORITY LEADER,2014Q4,TRAVEL,12-17,"KAPLAN, EMMA L",12/09/14,12/10/14,TAXI/PARKING/TOLLS,35.23,2014,AP,Accounts payable,E0227261,"KAPLAN, EMMA L"
,OFFICE OF THE MINORITY LEADER,2014Q4,TRAVEL,12-17,"MCCLELLAND, ETHAN L",11/19/14,11/19/14,TAXI/PARKING/TOLLS,16.60,2014,AP,Accounts payable,E0227263,"MCCLELLAND, ETHAN L"
,OFFICE OF THE MINORITY LEADER,2014Q4,TRAVEL,12-17,"MCCLELLAND, ETHAN L",12/02/14,12/05/14,TRAVEL SUBSISTENCE,659.34,2014,AP,Accounts payable,E0227263,"MCCLELLAND, ETHAN L"
,OFFICE OF THE MINORITY LEADER,2014Q4,TRAVEL,12-18,"WOLTERS, KATE",11/05/14,12/09/14,TAXI/PARKING/TOLLS,98.00,2014,AP,Accounts payable,E0227260,"WOLTERS, KATE"
,OFFICE OF THE MINORITY LEADER,2014Q4,"RENT, COMMUNICATION, UTILITIES",10-14,FEDEX,09/19/14,09/19/14,POSTAGE / COURIER / BOX RENTAL,15.01,2014,AP,Accounts payable,E0204834,FEDEX
,OFFICE OF THE MINORITY LEADER,2014Q4,"RENT, COMMUNICATION, UTILITIES",10-21,CITI PCARD-TIV TIVO SERVICE,08/29/14,09/28/14,RECORDING (OUTSIDE),48.42,2014,AP,Accounts payable,00757962,CITI PCARD-TIV TIVO SERVICE
,OFFICE OF THE MINORITY LEADER,2014Q4,"RENT, COMMUNICATION, UTILITIES",11-03,FEDEX,10/08/14,10/08/14,POSTAGE / COURIER / BOX RENTAL,6.15,2014,AP,Accounts payable,E0210750,FEDEX
,OFFICE OF THE MINORITY LEADER,2014Q4,"RENT, COMMUNICATION, UTILITIES",11-03,FEDEX,10/03/14,10/03/14,POSTAGE / COURIER / BOX RENTAL,15.07,2014,AP,Accounts payable,E0210751,FEDEX
,OFFICE OF THE MINORITY LEADER,2014Q4,"RENT, COMMUNICATION, UTILITIES",11-03,FEDEX,10/08/14,10/08/14,POSTAGE / COURIER / BOX RENTAL,4.75,2014,AP,Accounts payable,E0210752,FEDEX
,OFFICE OF THE MINORITY LEADER,2014Q4,"RENT, COMMUNICATION, UTILITIES",11-21,FEDEX,10/24/14,10/24/14,POSTAGE / COURIER / BOX RENTAL,3.84,2014,AP,Accounts payable,E0217720,FEDEX
,OFFICE OF THE MINORITY LEADER,2014Q4,"RENT, COMMUNICATION, UTILITIES",11-24,CITI PCARD-TIV TIVO SERVICE,10/01/14,10/28/14,RECORDING (OUTSIDE),48.42,2014,AP,Accounts payable,00763079,CITI PCARD-TIV TIVO SERVICE
,OFFICE OF THE MINORITY LEADER,2014Q4,"RENT, COMMUNICATION, UTILITIES",12-05,FEDEX,10/24/14,10/24/14,POSTAGE / COURIER / BOX RENTAL,3.74,2014,AP,Accounts payable,E0222105,FEDEX
,OFFICE OF THE MINORITY LEADER,2014Q4,"RENT, COMMUNICATION, UTILITIES",12-05,FEDEX,11/05/14,11/05/14,POSTAGE / COURIER / BOX RENTAL,3.64,2014,AP,Accounts payable,E0222106,FEDEX
,OFFICE OF THE MINORITY LEADER,2014Q4,"RENT, COMMUNICATION, UTILITIES",12-17,FEDEX,11/28/14,11/28/14,POSTAGE / COURIER / BOX RENTAL,105.74,2014,AP,Accounts payable,E0227265,FEDEX
,OFFICE OF THE MINORITY LEADER,2014Q4,"RENT, COMMUNICATION, UTILITIES",12-18,"WOLTERS, KATE",11/30/14,11/30/14,POSTAGE / COURIER / BOX RENTAL,16.16,2014,AP,Accounts payable,E0227260,"WOLTERS, KATE"
,OFFICE OF THE MINORITY LEADER,2014Q4,"RENT, COMMUNICATION, UTILITIES",12-22,CITI PCARD-TIV TIVO SERVICE,10/29/14,11/28/14,RECORDING (OUTSIDE),48.42,2014,AP,Accounts payable,00768172,CITI PCARD-TIV TIVO SERVICE
,OFFICE OF THE MINORITY LEADER,2014Q4,PRINTING AND REPRODUCTION,10-28,"",10/01/14,10/31/14,PHOTOGRAPHIC (TRANSFER),6.50,2014,GL,General ledger,PIX0043595,""
,OFFICE OF THE MINORITY LEADER,2014Q4,PRINTING AND REPRODUCTION,11-25,"",11/01/14,11/30/14,PHOTOGRAPHIC (TRANSFER),300.50,2014,GL,General ledger,PIX0044392,""
,OFFICE OF THE MINORITY LEADER,2014Q4,PRINTING AND REPRODUCTION,12-30,"",12/01/14,12/31/14,PHOTOGRAPHIC (TRANSFER),472.95,2014,GL,General ledger,PIX0045275,""
,OFFICE OF THE MINORITY LEADER,2014Q4,OTHER SERVICES,10-03,BERNARD RAIMO,09/01/14,09/30/14,CONSULTANT CONTRACT SERVICE,"7,628.00",2014,AP,Accounts payable,E0201883,BERNARD RAIMO
,OFFICE OF THE MINORITY LEADER,2014Q4,OTHER SERVICES,10-17,NEAL R GROSS & COMPANY INC,05/06/14,05/06/14,STENOGRAPHIC REPORTING,250.00,2014,AP,Accounts payable,E0206310,NEAL R GROSS & COMPANY INC
,OFFICE OF THE MINORITY LEADER,2014Q4,OTHER SERVICES,11-10,BERNARD RAIMO,10/01/14,10/31/14,CONSULTANT CONTRACT SERVICE,"7,628.00",2014,AP,Accounts payable,E0212871,BERNARD RAIMO
,OFFICE OF THE MINORITY LEADER,2014Q4,OTHER SERVICES,12-05,BERNARD RAIMO,11/01/14,11/30/14,CONSULTANT CONTRACT SERVICE,"7,628.00",2014,AP,Accounts payable,E0222117,BERNARD RAIMO
,OFFICE OF THE MINORITY LEADER,2014Q4,SUPPLIES AND MATERIALS,10-01,"DOMINGUEZ, ASHLEY F",09/22/14,09/22/14,PUBLICATIONS/REFERENCE MAT'L,1.09,2014,AP,Accounts payable,E0201046,"DOMINGUEZ, ASHLEY F"
,OFFICE OF THE MINORITY LEADER,2014Q4,SUPPLIES AND MATERIALS,10-06,OCCASIONS CATERERS,09/17/14,09/17/14,FOOD & BEVERAGE,500.60,2014,AP,Accounts payable,E0202665,OCCASIONS CATERERS
,OFFICE OF THE MINORITY LEADER,2014Q4,SUPPLIES AND MATERIALS,10-15,"WOLTERS, KATE",09/18/14,09/18/14,FOOD & BEVERAGE,29.46,2014,AP,Accounts payable,E0204837,"WOLTERS, KATE"
,OFFICE OF THE MINORITY LEADER,2014Q4,SUPPLIES AND MATERIALS,10-15,HELEN OLIVIA FLOWERS,09/16/14,09/16/14,HABITATION EXPENSE,249.00,2014,AP,Accounts payable,E0204838,HELEN OLIVIA FLOWERS
,OFFICE OF THE MINORITY LEADER,2014Q4,SUPPLIES AND MATERIALS,10-15,HELEN OLIVIA FLOWERS,09/08/14,09/08/14,HABITATION EXPENSE,249.00,2014,AP,Accounts payable,E0204945,HELEN OLIVIA FLOWERS
,OFFICE OF THE MINORITY LEADER,2014Q4,SUPPLIES AND MATERIALS,10-21,CITI PCARD-BRUEGGERS,08/29/14,09/28/14,FOOD & BEVERAGE,15.94,2014,AP,Accounts payable,00757962,CITI PCARD-BRUEGGERS
,OFFICE OF THE MINORITY LEADER,2014Q4,SUPPLIES AND MATERIALS,10-21,CITI PCARD-DUNKIN,08/29/14,09/28/14,FOOD & BEVERAGE,94.30,2014,AP,Accounts payable,00757962,CITI PCARD-DUNKIN
,OFFICE OF THE MINORITY LEADER,2014Q4,SUPPLIES AND MATERIALS,10-21,CITI PCARD-FIREHOOK,08/29/14,09/28/14,FOOD & BEVERAGE,50.58,2014,AP,Accounts payable,00757962,CITI PCARD-FIREHOOK
,OFFICE OF THE MINORITY LEADER,2014Q4,SUPPLIES AND MATERIALS,10-21,CITI PCARD-GIANT LLC,08/29/14,09/28/14,FOOD & BEVERAGE,222.16,2014,AP,Accounts payable,00757962,CITI PCARD-GIANT LLC
,OFFICE OF THE MINORITY LEADER,2014Q4,SUPPLIES AND MATERIALS,10-21,CITI PCARD-LA TIMES SUBSCRIPTION,08/29/14,09/28/14,PUBLICATIONS/REFERENCE MAT'L,207.48,2014,AP,Accounts payable,00757962,CITI PCARD-LA TIMES SUBSCRIPTION
,OFFICE OF THE MINORITY LEADER,2014Q4,SUPPLIES AND MATERIALS,10-21,CITI PCARD-PAUL BAKERY B,08/29/14,09/28/14,FOOD & BEVERAGE,72.05,2014,AP,Accounts payable,00757962,CITI PCARD-PAUL BAKERY B
,OFFICE OF THE MINORITY LEADER,2014Q4,SUPPLIES AND MATERIALS,10-21,CITI PCARD-PRESS PLUS,08/29/14,09/28/14,PUBLICATIONS/REFERENCE MAT'L,79.95,2014,AP,Accounts payable,00757962,CITI PCARD-PRESS PLUS
,OFFICE OF THE MINORITY LEADER,2014Q4,SUPPLIES AND MATERIALS,10-21,CITI PCARD-WHOLEFDS PST,08/29/14,09/28/14,FOOD & BEVERAGE,90.05,2014,AP,Accounts payable,00757962,CITI PCARD-WHOLEFDS PST
,OFFICE OF THE MINORITY LEADER,2014Q4,SUPPLIES AND MATERIALS,10-23,NATIONAL NEWS AGENCY INC,01/01/15,12/31/15,PUBLICATIONS/REFERENCE MAT'L,"2,371.50",2014,AP,Accounts payable,E0206311,NATIONAL NEWS AGENCY INC
,OFFICE OF THE MINORITY LEADER,2014Q4,SUPPLIES AND MATERIALS,11-03,HAGUE QUALITY WATER OF MD INC,10/01/14,10/31/14,WATER,378.00,2014,AP,Accounts payable,E0210749,HAGUE QUALITY WATER OF MD INC
,OFFICE OF THE MINORITY LEADER,2014Q4,SUPPLIES AND MATERIALS,11-12,"DOMINGUEZ, ASHLEY F",10/04/14,10/27/14,PUBLICATIONS/REFERENCE MAT'L,61.20,2014,AP,Accounts payable,E0213662,"DOMINGUEZ, ASHLEY F"
,OFFICE OF THE MINORITY LEADER,2014Q4,SUPPLIES AND MATERIALS,11-12,CAPITOL HOST,09/17/14,09/17/14,FOOD & BEVERAGE,82.50,2014,AP,Accounts payable,E0213923,CAPITOL HOST
,OFFICE OF THE MINORITY LEADER,2014Q4,SUPPLIES AND MATERIALS,11-12,CAPITOL HOST,09/18/14,09/18/14,FOOD & BEVERAGE,30.00,2014,AP,Accounts payable,E0213924,CAPITOL HOST
,OFFICE OF THE MINORITY LEADER,2014Q4,SUPPLIES AND MATERIALS,11-13,CAPITOL HOST,03/04/14,03/04/14,FOOD & BEVERAGE,66.00,2014,AP,Accounts payable,E0213920,CAPITOL HOST
,OFFICE OF THE MINORITY LEADER,2014Q4,SUPPLIES AND MATERIALS,11-13,CAPITOL HOST,09/10/14,09/10/14,FOOD & BEVERAGE,82.50,2014,AP,Accounts payable,E0213921,CAPITOL HOST
,OFFICE OF THE MINORITY LEADER,2014Q4,SUPPLIES AND MATERIALS,11-13,CAPITOL HOST,09/10/14,09/10/14,FOOD & BEVERAGE,33.00,2014,AP,Accounts payable,E0213922,CAPITOL HOST
,OFFICE OF THE MINORITY LEADER,2014Q4,SUPPLIES AND MATERIALS,11-13,"SMITH, KELSEY L",11/03/14,11/03/14,PUBLICATIONS/REFERENCE MAT'L,1.25,2014,AP,Accounts payable,E0213932,"SMITH, KELSEY L"
,OFFICE OF THE MINORITY LEADER,2014Q4,SUPPLIES AND MATERIALS,11-13,"BERRET, EMILY C",10/29/14,10/29/14,FOOD & BEVERAGE,9.51,2014,AP,Accounts payable,E0213934,"BERRET, EMILY C"
,OFFICE OF THE MINORITY LEADER,2014Q4,SUPPLIES AND MATERIALS,11-13,"BERRET, EMILY C",10/29/14,10/29/14,PUBLICATIONS/REFERENCE MAT'L,5.75,2014,AP,Accounts payable,E0213934,"BERRET, EMILY C"
,OFFICE OF THE MINORITY LEADER,2014Q4,SUPPLIES AND MATERIALS,11-21,OCCASIONS CATERERS,09/10/14,09/10/14,FOOD & BEVERAGE,608.85,2014,AP,Accounts payable,E0217718,OCCASIONS CATERERS
,OFFICE OF THE MINORITY LEADER,2014Q4,SUPPLIES AND MATERIALS,11-24,CITI PCARD-WHOLEFDS OTN,10/01/14,10/28/14,FOOD & BEVERAGE,253.13,2014,AP,Accounts payable,00763079,CITI PCARD-WHOLEFDS OTN
,OFFICE OF THE MINORITY LEADER,2014Q4,SUPPLIES AND MATERIALS,11-24,CITI PCARD-WHOLEFDS PST,09/29/14,09/30/14,FOOD & BEVERAGE,41.45,2014,AP,Accounts payable,00763079,CITI PCARD-WHOLEFDS PST
,OFFICE OF THE MINORITY LEADER,2014Q4,SUPPLIES AND MATERIALS,11-24,CITI PCARD-WHOLEFDS PST,10/01/14,10/28/14,FOOD & BEVERAGE,28.47,2014,AP,Accounts payable,00763079,CITI PCARD-WHOLEFDS PST
,OFFICE OF THE MINORITY LEADER,2014Q4,SUPPLIES AND MATERIALS,11-25,HAGUE QUALITY WATER OF MD INC,11/01/14,11/30/14,WATER,378.00,2014,AP,Accounts payable,E0217730,HAGUE QUALITY WATER OF MD INC
,OFFICE OF THE MINORITY LEADER,2014Q4,SUPPLIES AND MATERIALS,12-05,HELEN OLIVIA FLOWERS,11/17/14,11/17/14,HABITATION EXPENSE,249.00,2014,AP,Accounts payable,E0222107,HELEN OLIVIA FLOWERS
,OFFICE OF THE MINORITY LEADER,2014Q4,SUPPLIES AND MATERIALS,12-05,HELEN OLIVIA FLOWERS,11/10/14,11/10/14,HABITATION EXPENSE,249.00,2014,AP,Accounts payable,E0222109,HELEN OLIVIA FLOWERS
,OFFICE OF THE MINORITY LEADER,2014Q4,SUPPLIES AND MATERIALS,12-11,HELEN OLIVIA FLOWERS,12/01/14,12/01/14,HABITATION EXPENSE,249.00,2014,AP,Accounts payable,E0224019,HELEN OLIVIA FLOWERS
,OFFICE OF THE MINORITY LEADER,2014Q4,SUPPLIES AND MATERIALS,12-11,HELEN OLIVIA FLOWERS,12/08/14,12/08/14,HABITATION EXPENSE,249.00,2014,AP,Accounts payable,E0224020,HELEN OLIVIA FLOWERS
,OFFICE OF THE MINORITY LEADER,2014Q4,SUPPLIES AND MATERIALS,12-11,"AGUILAR, JORGE A",10/07/14,10/07/14,PUBLICATIONS/REFERENCE MAT'L,38.12,2014,AP,Accounts payable,E0224021,"AGUILAR, JORGE A"
,OFFICE OF THE MINORITY LEADER,2014Q4,SUPPLIES AND MATERIALS,12-17,HAGUE QUALITY WATER OF MD INC,12/01/14,12/31/14,WATER,378.00,2014,AP,Accounts payable,E0227253,HAGUE QUALITY WATER OF MD INC
,OFFICE OF THE MINORITY LEADER,2014Q4,SUPPLIES AND MATERIALS,12-17,"KAPLAN, EMMA L",12/10/14,12/10/14,FOOD & BEVERAGE,16.18,2014,AP,Accounts payable,E0227261,"KAPLAN, EMMA L"
,OFFICE OF THE MINORITY LEADER,2014Q4,SUPPLIES AND MATERIALS,12-17,"BERRET, EMILY C",12/10/14,12/10/14,FOOD & BEVERAGE,34.02,2014,AP,Accounts payable,E0227262,"BERRET, EMILY C"
,OFFICE OF THE MINORITY LEADER,2014Q4,SUPPLIES AND MATERIALS,12-22,CITI PCARD-HARRIS TEETER,10/29/14,11/28/14,FOOD & BEVERAGE,59.35,2014,AP,Accounts payable,00768172,CITI PCARD-HARRIS TEETER
,OFFICE OF THE MINORITY LEADER,2014Q4,SUPPLIES AND MATERIALS,12-22,CITI PCARD-TARGET,10/29/14,11/28/14,FOOD & BEVERAGE,201.65,2014,AP,Accounts payable,00768172,CITI PCARD-TARGET
,OFFICE OF THE MINORITY LEADER,2014Q4,SUPPLIES AND MATERIALS,12-22,CITI PCARD-WHOLEFDS OTN,10/29/14,11/28/14,FOOD & BEVERAGE,137.59,2014,AP,Accounts payable,00768172,CITI PCARD-WHOLEFDS OTN
,OFFICE OF THE MINORITY LEADER,2014Q4,SUPPLIES AND MATERIALS,12-22,CITI PCARD-WHOLEFDS PST,10/29/14,11/28/14,FOOD & BEVERAGE,30.68,2014,AP,Accounts payable,00768172,CITI PCARD-WHOLEFDS PST
,OFFICE OF THE MAJORITY WHIP,2014Q4,PERSONNEL COMPENSATION,"","ACORNLEY, MARK A",10/01/14,12/31/14,FINANCIAL ADMINISTRATOR,"3,750.00",2014,"","","","ACORNLEY, MARK A"
,OFFICE OF THE MAJORITY WHIP,2014Q4,PERSONNEL COMPENSATION,"","BECKER,MEGAN E",10/01/14,11/30/14,ASST TO THE CHIEF OF STAFF,"9,050.00",2014,"","","","BECKER,MEGAN E"
,OFFICE OF THE MAJORITY WHIP,2014Q4,PERSONNEL COMPENSATION,"","BECKER,MEGAN E",12/01/14,12/31/14,SCHEDULE COORDINATOR,"3,750.00",2014,"","","","BECKER,MEGAN E"
,OFFICE OF THE MAJORITY WHIP,2014Q4,PERSONNEL COMPENSATION,"","BLACK,WAELSTON T",10/01/14,12/31/14,SPECIAL ASSISTANT,"10,000.00",2014,"","","","BLACK,WAELSTON T"
,OFFICE OF THE MAJORITY WHIP,2014Q4,PERSONNEL COMPENSATION,"","BRAVO, MATTHEW",10/01/14,12/31/14,DEPUTY DIRECTOR OF FLOOR OPERA,"29,034.25",2014,"","","","BRAVO, MATTHEW"
,OFFICE OF THE MAJORITY WHIP,2014Q4,PERSONNEL COMPENSATION,"","CAVAZOS,ANDREW J",10/01/14,11/30/14,SCHEDULER,"11,050.00",2014,"","","","CAVAZOS,ANDREW J"
,OFFICE OF THE MAJORITY WHIP,2014Q4,PERSONNEL COMPENSATION,"","CAVAZOS,ANDREW J",12/01/14,12/31/14,ASST TO THE CHIEF OF STAFF,"3,750.00",2014,"","","","CAVAZOS,ANDREW J"
,OFFICE OF THE MAJORITY WHIP,2014Q4,PERSONNEL COMPENSATION,"","DELUKE,BRENDEN J",10/01/14,12/31/14,SPECIAL ASSISTANT,"11,466.67",2014,"","","","DELUKE,BRENDEN J"
,OFFICE OF THE MAJORITY WHIP,2014Q4,PERSONNEL COMPENSATION,"","GLANCEY,TESSICA M",07/01/14,07/31/14,DIGITAL COORDINATOR,"-3,150.00",2014,"","","","GLANCEY,TESSICA M"
,OFFICE OF THE MAJORITY WHIP,2014Q4,PERSONNEL COMPENSATION,"","GUSTAFSON,NICOLE M",10/01/14,12/31/14,LEGISLATIVE COUNSEL,"37,651.83",2014,"","","","GUSTAFSON,NICOLE M"
,OFFICE OF THE MAJORITY WHIP,2014Q4,PERSONNEL COMPENSATION,"","HAMILTON,PARKER",10/01/14,12/31/14,COS TO THE CHIEF DEP WHIP,"30,000.00",2014,"","","","HAMILTON,PARKER"
,OFFICE OF THE MAJORITY WHIP,2014Q4,PERSONNEL COMPENSATION,"","HODGSON,CHRISTOPHER M",09/01/14,12/31/14,FLOOR DIRECTOR,"22,016.66",2014,"","","","HODGSON,CHRISTOPHER M"
,OFFICE OF THE MAJORITY WHIP,2014Q4,PERSONNEL COMPENSATION,"","HORTON, BRETT H",10/01/14,12/31/14,DIR OF FL OPERATIONS & COUNSEL,"33,266.67",2014,"","","","HORTON, BRETT H"
,OFFICE OF THE MAJORITY WHIP,2014Q4,PERSONNEL COMPENSATION,"","HUGHES,WILLIAM J",10/01/14,12/31/14,POLICY DIRECTOR,"41,735.17",2014,"","","","HUGHES,WILLIAM J"
,OFFICE OF THE MAJORITY WHIP,2014Q4,PERSONNEL COMPENSATION,"","REISER,MARTIN G",10/01/14,12/31/14,LEGISLATIVE COUNSEL,"38,068.50",2014,"","","","REISER,MARTIN G"
,OFFICE OF THE MAJORITY WHIP,2014Q4,PERSONNEL COMPENSATION,"","REISING,JOHN B",10/01/14,12/31/14,DIRECTOR OF OPERATIONS,"26,767.91",2014,"","","","REISING,JOHN B"
,OFFICE OF THE MAJORITY WHIP,2014Q4,PERSONNEL COMPENSATION,"","RUCKERT,LYNNEL B",10/01/14,12/31/14,CHIEF OF STAFF,"42,825.00",2014,"","","","RUCKERT,LYNNEL B"
,OFFICE OF THE MAJORITY WHIP,2014Q4,PERSONNEL COMPENSATION,"","SADLOSKY,DANIEL J",10/01/14,12/31/14,POLICY ASSISTANT,"18,333.33",2014,"","","","SADLOSKY,DANIEL J"
,OFFICE OF THE MAJORITY WHIP,2014Q4,PERSONNEL COMPENSATION,"","SMITH, MOIRA B",10/01/14,12/31/14,COMMUNICATIONS DIRECTOR,"38,418.50",2014,"","","","SMITH, MOIRA B"
,OFFICE OF THE MAJORITY WHIP,2014Q4,PERSONNEL COMPENSATION,"","TATUM,THOMAS J",10/01/14,12/31/14,DEPUTY COMMUNICATIONS DIRECTOR,"26,466.67",2014,"","","","TATUM,THOMAS J"
,OFFICE OF THE MAJORITY WHIP,2014Q4,PERSONNEL COMPENSATION,"","ZULKOSKY,ERIC T",10/01/14,12/31/14,DIR OF MEMBER SVS & POLICY ADV,"9,034.26",2014,"","","","ZULKOSKY,ERIC T"
,OFFICE OF THE MAJORITY WHIP,2014Q4,TRAVEL,10-03,"GUSTAFSON,NICOLE M",08/27/14,09/24/14,TAXI/PARKING/TOLLS,42.41,2014,AP,Accounts payable,E0201816,"GUSTAFSON,NICOLE M"
,OFFICE OF THE MAJORITY WHIP,2014Q4,TRAVEL,10-29,"BECKER, MEGAN E",10/02/14,10/15/14,PRIVATE AUTO MILEAGE,4.70,2014,AP,Accounts payable,E0209695,"BECKER, MEGAN E"
,OFFICE OF THE MAJORITY WHIP,2014Q4,PRINTING AND REPRODUCTION,11-25,"",11/01/14,11/30/14,PHOTOGRAPHIC (TRANSFER),61.50,2014,GL,General ledger,PIX0044392,""
,OFFICE OF THE MAJORITY WHIP,2014Q4,SUPPLIES AND MATERIALS,10-21,CITI PCARD-CORNER BAKERY,08/29/14,09/28/14,FOOD & BEVERAGE,139.80,2014,AP,Accounts payable,00757962,CITI PCARD-CORNER BAKERY
,OFFICE OF THE MAJORITY WHIP,2014Q4,SUPPLIES AND MATERIALS,10-21,CITI PCARD-HARRIS TEETER,08/29/14,09/28/14,FOOD & BEVERAGE,99.38,2014,AP,Accounts payable,00757962,CITI PCARD-HARRIS TEETER
,OFFICE OF THE MAJORITY WHIP,2014Q4,SUPPLIES AND MATERIALS,10-29,FIRST CHOICE COFFEE SERVICES,10/24/14,10/24/14,FOOD & BEVERAGE,188.60,2014,AP,Accounts payable,E0209690,FIRST CHOICE COFFEE SERVICES
,OFFICE OF THE MAJORITY WHIP,2014Q4,SUPPLIES AND MATERIALS,10-29,FIRST CHOICE COFFEE SERVICES,09/05/14,09/05/14,FOOD & BEVERAGE,60.00,2014,AP,Accounts payable,E0209697,FIRST CHOICE COFFEE SERVICES
,OFFICE OF THE MAJORITY WHIP,2014Q4,SUPPLIES AND MATERIALS,10-29,FIRST CHOICE COFFEE SERVICES,08/28/14,08/28/14,FOOD & BEVERAGE,"1,199.23",2014,AP,Accounts payable,E0209702,FIRST CHOICE COFFEE SERVICES
,OFFICE OF THE MAJORITY WHIP,2014Q4,SUPPLIES AND MATERIALS,10-29,FIRST CHOICE COFFEE SERVICES,09/25/14,09/25/14,FOOD & BEVERAGE,110.00,2014,AP,Accounts payable,E0209712,FIRST CHOICE COFFEE SERVICES
,OFFICE OF THE MAJORITY WHIP,2014Q4,SUPPLIES AND MATERIALS,10-29,FIRST CHOICE COFFEE SERVICES,09/18/14,09/18/14,FOOD & BEVERAGE,152.50,2014,AP,Accounts payable,E0209713,FIRST CHOICE COFFEE SERVICES
,OFFICE OF THE MAJORITY WHIP,2014Q4,SUPPLIES AND MATERIALS,10-29,FIRST CHOICE COFFEE SERVICES,09/16/14,09/16/14,FOOD & BEVERAGE,89.00,2014,AP,Accounts payable,E0209714,FIRST CHOICE COFFEE SERVICES
,OFFICE OF THE MAJORITY WHIP,2014Q4,SUPPLIES AND MATERIALS,10-29,FIRST CHOICE COFFEE SERVICES,10/03/14,10/03/14,FOOD & BEVERAGE,90.00,2014,AP,Accounts payable,E0209715,FIRST CHOICE COFFEE SERVICES
,OFFICE OF THE MAJORITY WHIP,2014Q4,SUPPLIES AND MATERIALS,10-29,FIRST CHOICE COFFEE SERVICES,10/02/14,10/02/14,FOOD & BEVERAGE,187.70,2014,AP,Accounts payable,E0209717,FIRST CHOICE COFFEE SERVICES
,OFFICE OF THE MAJORITY WHIP,2014Q4,SUPPLIES AND MATERIALS,10-29,FIRST CHOICE COFFEE SERVICES,09/12/14,09/12/14,FOOD & BEVERAGE,859.66,2014,AP,Accounts payable,E0209718,FIRST CHOICE COFFEE SERVICES
,OFFICE OF THE MAJORITY WHIP,2014Q4,SUPPLIES AND MATERIALS,10-30,CQ ROLL CALL INC,09/10/14,09/09/15,PUBLICATIONS/REFERENCE MAT'L,"1,250.00",2014,AP,Accounts payable,E0209711,CQ ROLL CALL INC
,OFFICE OF THE MAJORITY WHIP,2014Q4,SUPPLIES AND MATERIALS,11-19,FIRST CHOICE COFFEE SERVICES,11/13/14,11/13/14,FOOD & BEVERAGE,104.00,2014,AP,Accounts payable,E0217062,FIRST CHOICE COFFEE SERVICES
,OFFICE OF THE MAJORITY WHIP,2014Q4,SUPPLIES AND MATERIALS,11-19,FIRST CHOICE COFFEE SERVICES,11/07/14,11/07/14,FOOD & BEVERAGE,215.53,2014,AP,Accounts payable,E0217088,FIRST CHOICE COFFEE SERVICES
,OFFICE OF THE MAJORITY WHIP,2014Q4,SUPPLIES AND MATERIALS,11-19,FIRST CHOICE COFFEE SERVICES,11/17/14,11/17/14,FOOD & BEVERAGE,451.65,2014,AP,Accounts payable,E0217098,FIRST CHOICE COFFEE SERVICES
,OFFICE OF THE MAJORITY WHIP,2014Q4,SUPPLIES AND MATERIALS,12-05,FIRST CHOICE COFFEE SERVICES,10/30/14,10/30/14,FOOD & BEVERAGE,146.80,2014,AP,Accounts payable,E0221917,FIRST CHOICE COFFEE SERVICES
,OFFICE OF THE MAJORITY WHIP,2014Q4,SUPPLIES AND MATERIALS,12-05,FIRST CHOICE COFFEE SERVICES,10/30/14,10/30/14,FOOD & BEVERAGE,272.90,2014,AP,Accounts payable,E0221938,FIRST CHOICE COFFEE SERVICES
,OFFICE OF THE MAJORITY WHIP,2014Q4,SUPPLIES AND MATERIALS,12-05,FIRST CHOICE COFFEE SERVICES,11/21/14,11/21/14,FOOD & BEVERAGE,199.75,2014,AP,Accounts payable,E0221956,FIRST CHOICE COFFEE SERVICES
,OFFICE OF THE MAJORITY WHIP,2014Q4,SUPPLIES AND MATERIALS,12-05,FIRST CHOICE COFFEE SERVICES,11/26/14,11/26/14,FOOD & BEVERAGE,45.00,2014,AP,Accounts payable,E0221963,FIRST CHOICE COFFEE SERVICES
,OFFICE OF THE MAJORITY WHIP,2014Q4,SUPPLIES AND MATERIALS,12-11,FIRST CHOICE COFFEE SERVICES,12/04/14,12/04/14,FOOD & BEVERAGE,497.19,2014,AP,Accounts payable,E0224235,FIRST CHOICE COFFEE SERVICES
,OFFICE OF THE MINORITY WHIP,2014Q4,PERSONNEL COMPENSATION,"","ABOUCHAR, KEITH S",10/01/14,12/31/14,SENIOR POLICY ADVISOR,"5,008.34",2014,"","","","ABOUCHAR, KEITH S"
,OFFICE OF THE MINORITY WHIP,2014Q4,PERSONNEL COMPENSATION,"","ABOUCHAR, KEITH S",11/01/14,11/01/14,SENIOR POLICY ADVISOR (OTHER COMPENSATION),291.67,2014,"","","","ABOUCHAR, KEITH S"
,OFFICE OF THE MINORITY WHIP,2014Q4,PERSONNEL COMPENSATION,"","AVILES,DANIELLE R",10/01/14,12/31/14,FLOOR ASSISTANT,"15,000.00",2014,"","","","AVILES,DANIELLE R"
,OFFICE OF THE MINORITY WHIP,2014Q4,PERSONNEL COMPENSATION,"","AVILES,DANIELLE R",12/01/14,12/31/14,FLOOR ASSISTANT (OTHER COMPENSATION),"3,000.00",2014,"","","","AVILES,DANIELLE R"
,OFFICE OF THE MINORITY WHIP,2014Q4,PERSONNEL COMPENSATION,"","BOHANAN JR, JOHN L",10/01/14,12/31/14,CONSTITUENT LIAISON,"6,500.00",2014,"","","","BOHANAN JR, JOHN L"
,OFFICE OF THE MINORITY WHIP,2014Q4,PERSONNEL COMPENSATION,"","COBIA, LINDSEY G",10/01/14,12/31/14,EXECUTIVE ASST OFFICE MANAGER,"16,250.00",2014,"","","","COBIA, LINDSEY G"
,OFFICE OF THE MINORITY WHIP,2014Q4,PERSONNEL COMPENSATION,"","COLLINS, MICHAEL E",10/01/14,12/31/14,CHIEF DEPUTY WHIP,"10,625.01",2014,"","","","COLLINS, MICHAEL E"
,OFFICE OF THE MINORITY WHIP,2014Q4,PERSONNEL COMPENSATION,"","COVEY-BRANDT, ALEXIS",10/01/14,12/31/14,CHIEF OF STAFF,"4,279.68",2014,"","","","COVEY-BRANDT, ALEXIS"
,OFFICE OF THE MINORITY WHIP,2014Q4,PERSONNEL COMPENSATION,"","DWYER, STEPHEN",10/01/14,12/31/14,DIGITAL DIR & POLICY ADV,"14,750.01",2014,"","","","DWYER, STEPHEN"
,OFFICE OF THE MINORITY WHIP,2014Q4,PERSONNEL COMPENSATION,"","DWYER, STEPHEN",12/01/14,12/31/14,DIGITAL DIR & POLICY ADV (OTHER COMPENSATION),"5,000.00",2014,"","","","DWYER, STEPHEN"
,OFFICE OF THE MINORITY WHIP,2014Q4,PERSONNEL COMPENSATION,"","FRY,COURTNEY",10/01/14,12/31/14,DEP OUTREACH DIR & MEM SER ADV,"26,250.00",2014,"","","","FRY,COURTNEY"
,OFFICE OF THE MINORITY WHIP,2014Q4,PERSONNEL COMPENSATION,"","FRY,COURTNEY",12/01/14,12/31/14,DEP OUTREACH DIR & MEM SER ADV (OTHER COMPENSATION),"5,000.00",2014,"","","","FRY,COURTNEY"
,OFFICE OF THE MINORITY WHIP,2014Q4,PERSONNEL COMPENSATION,"","GOFF,SHUWANZA R",10/01/14,12/31/14,FLOOR DIRECTOR,"26,250.00",2014,"","","","GOFF,SHUWANZA R"
,OFFICE OF THE MINORITY WHIP,2014Q4,PERSONNEL COMPENSATION,"","GOFF,SHUWANZA R",12/01/14,12/31/14,FLOOR DIRECTOR (OTHER COMPENSATION),"5,000.00",2014,"","","","GOFF,SHUWANZA R"
,OFFICE OF THE MINORITY WHIP,2014Q4,PERSONNEL COMPENSATION,"","GRANT,KATHRYN L",10/01/14,12/31/14,COMM DIR AND SR ADVISOR,"31,250.01",2014,"","","","GRANT,KATHRYN L"
,OFFICE OF THE MINORITY WHIP,2014Q4,PERSONNEL COMPENSATION,"","GRANT,KATHRYN L",12/01/14,12/31/14,COMM DIR AND SR ADVISOR (OTHER COMPENSATION),"5,000.00",2014,"","","","GRANT,KATHRYN L"
,OFFICE OF THE MINORITY WHIP,2014Q4,PERSONNEL COMPENSATION,"","LEUSCHEN, JAMES P",10/01/14,12/01/14,SENIOR POLICY ADVISOR,"1,897.77",2014,"","","","LEUSCHEN, JAMES P"
,OFFICE OF THE MINORITY WHIP,2014Q4,PERSONNEL COMPENSATION,"","MACDONALD,CHARLENE",12/08/14,12/31/14,SENIOR POLICY ADVISOR,"7,666.67",2014,"","","","MACDONALD,CHARLENE"
,OFFICE OF THE MINORITY WHIP,2014Q4,PERSONNEL COMPENSATION,"","MAHR,THOMAS",10/01/14,12/31/14,POLICY DIRECTOR,"10,299.99",2014,"","","","MAHR,THOMAS"
,OFFICE OF THE MINORITY WHIP,2014Q4,PERSONNEL COMPENSATION,"","MAHR,THOMAS",11/01/14,11/01/14,POLICY DIRECTOR (OTHER COMPENSATION),"2,000.00",2014,"","","","MAHR,THOMAS"
,OFFICE OF THE MINORITY WHIP,2014Q4,PERSONNEL COMPENSATION,"","MARTINEZ, JAVIER D",10/01/14,12/31/14,DEP DIR OF MBR SERV & OUTR ADV,"18,750.00",2014,"","","","MARTINEZ, JAVIER D"
,OFFICE OF THE MINORITY WHIP,2014Q4,PERSONNEL COMPENSATION,"","MARTINEZ, JAVIER D",12/01/14,12/31/14,DEP DIR OF MBR SERV & OUTR ADV (OTHER COMPENSATION),"3,000.00",2014,"","","","MARTINEZ, JAVIER D"
,OFFICE OF THE MINORITY WHIP,2014Q4,PERSONNEL COMPENSATION,"","MITTLER,MICHELLE",10/01/14,12/31/14,DIR OF SCHEDLNG & SPEC EVENTS,"17,499.99",2014,"","","","MITTLER,MICHELLE"
,OFFICE OF THE MINORITY WHIP,2014Q4,PERSONNEL COMPENSATION,"","MITTLER,MICHELLE",12/01/14,12/31/14,DIR OF SCHEDLNG & SPEC EVENTS (OTHER COMPENSATION),"3,000.00",2014,"","","","MITTLER,MICHELLE"
,OFFICE OF THE MINORITY WHIP,2014Q4,PERSONNEL COMPENSATION,"","NOTTER,JAMES P",10/01/14,12/31/14,SR. ADV & PERSONAL OFFICE DIR,"6,625.00",2014,"","","","NOTTER,JAMES P"
,OFFICE OF THE MINORITY WHIP,2014Q4,PERSONNEL COMPENSATION,"","REPKO,MARY F",10/01/14,12/31/14,SENIOR POLICY ADVISOR,"4,417.58",2014,"","","","REPKO,MARY F"
,OFFICE OF THE MINORITY WHIP,2014Q4,PERSONNEL COMPENSATION,"","REPKO,MARY F",11/01/14,11/01/14,SENIOR POLICY ADVISOR (OTHER COMPENSATION),632.09,2014,"","","","REPKO,MARY F"
,OFFICE OF THE MINORITY WHIP,2014Q4,PERSONNEL COMPENSATION,"","RODRIGUEZ,FEDERICO J",10/01/14,12/31/14,STAFF ASSISTANT,"4,513.89",2014,"","","","RODRIGUEZ,FEDERICO J"
,OFFICE OF THE MINORITY WHIP,2014Q4,PERSONNEL COMPENSATION,"","RODRIGUEZ,FEDERICO J",09/01/14,09/30/14,STAFF ASSISTANT (OVERTIME),360.57,2014,"","","","RODRIGUEZ,FEDERICO J"
,OFFICE OF THE MINORITY WHIP,2014Q4,PERSONNEL COMPENSATION,"","RODRIGUEZ,FEDERICO J",12/01/14,12/31/14,STAFF ASSISTANT (OTHER COMPENSATION),"2,000.00",2014,"","","","RODRIGUEZ,FEDERICO J"
,OFFICE OF THE MINORITY WHIP,2014Q4,PERSONNEL COMPENSATION,"","ROMICK, BRIAN",10/01/14,12/31/14,WHIP DIR AND SENIOR ADVISOR,"6,549.99",2014,"","","","ROMICK, BRIAN"
,OFFICE OF THE MINORITY WHIP,2014Q4,PERSONNEL COMPENSATION,"","ROWE,DEBORAH M",10/01/14,12/31/14,STAFF ASSISTANT,"6,249.99",2014,"","","","ROWE,DEBORAH M"
,OFFICE OF THE MINORITY WHIP,2014Q4,PERSONNEL COMPENSATION,"","ROWE,DEBORAH M",09/01/14,10/31/14,STAFF ASSISTANT (OVERTIME),829.32,2014,"","","","ROWE,DEBORAH M"
,OFFICE OF THE MINORITY WHIP,2014Q4,PERSONNEL COMPENSATION,"","ROWE,DEBORAH M",12/01/14,12/31/14,STAFF ASSISTANT (OTHER COMPENSATION),"2,000.00",2014,"","","","ROWE,DEBORAH M"
,OFFICE OF THE MINORITY WHIP,2014Q4,PERSONNEL COMPENSATION,"","SAEZ,MARIEL S",10/01/14,12/31/14,PRESS SECRETARY,"16,861.11",2014,"","","","SAEZ,MARIEL S"
,OFFICE OF THE MINORITY WHIP,2014Q4,PERSONNEL COMPENSATION,"","SAEZ,MARIEL S",12/01/14,12/31/14,PRESS SECRETARY (OTHER COMPENSATION),"3,500.00",2014,"","","","SAEZ,MARIEL S"
,OFFICE OF THE MINORITY WHIP,2014Q4,PERSONNEL COMPENSATION,"","SALAZAR, RAYMOND J",11/12/14,12/31/14,SPECIAL ASSISTANT,"6,125.00",2014,"","","","SALAZAR, RAYMOND J"
,OFFICE OF THE MINORITY WHIP,2014Q4,PERSONNEL COMPENSATION,"","SALAZAR, RAYMOND J",12/01/14,12/31/14,SPECIAL ASSISTANT (OTHER COMPENSATION),"2,500.00",2014,"","","","SALAZAR, RAYMOND J"
,OFFICE OF THE MINORITY WHIP,2014Q4,PERSONNEL COMPENSATION,"","SCHULTZ,BENJAMIN K",10/01/14,10/01/14,SPECIAL ASSISTANT,111.11,2014,"","","","SCHULTZ,BENJAMIN K"
,OFFICE OF THE MINORITY WHIP,2014Q4,PERSONNEL COMPENSATION,"","SHOTT,DANIEL",10/01/14,12/31/14,SENIOR FLOOR ASSISTANT,"18,750.00",2014,"","","","SHOTT,DANIEL"
,OFFICE OF THE MINORITY WHIP,2014Q4,PERSONNEL COMPENSATION,"","SHOTT,DANIEL",12/01/14,12/31/14,SENIOR FLOOR ASSISTANT (OTHER COMPENSATION),"3,000.00",2014,"","","","SHOTT,DANIEL"
,OFFICE OF THE MINORITY WHIP,2014Q4,PERSONNEL COMPENSATION,"","SILVERBERG,DANIEL I",10/01/14,12/31/14,SENIOR POLICY ADVISOR,"17,750.01",2014,"","","","SILVERBERG,DANIEL I"
,OFFICE OF THE MINORITY WHIP,2014Q4,PERSONNEL COMPENSATION,"","VALES,TARA J",10/01/14,12/31/14,PRESS AND RESEARCH ASSISTANT,"8,750.01",2014,"","","","VALES,TARA J"
,OFFICE OF THE MINORITY WHIP,2014Q4,PERSONNEL COMPENSATION,"","VALES,TARA J",12/01/14,12/31/14,PRESS AND RESEARCH ASSISTANT (OTHER COMPENSATION),"2,000.00",2014,"","","","VALES,TARA J"
,OFFICE OF THE MINORITY WHIP,2014Q4,PERSONNEL COMPENSATION,"","VEAL,LATOYA S",09/01/14,12/31/14,MARYLAND PRESS SECRETARY,"12,466.66",2014,"","","","VEAL,LATOYA S"
,OFFICE OF THE MINORITY WHIP,2014Q4,PERSONNEL COMPENSATION,"","WEISSMANN, ADAM",10/01/14,12/31/14,SPEECHWRITER,"24,000.00",2014,"","","","WEISSMANN, ADAM"
,OFFICE OF THE MINORITY WHIP,2014Q4,PERSONNEL COMPENSATION,"","WEISSMANN, ADAM",12/01/14,12/31/14,SPEECHWRITER (OTHER COMPENSATION),"3,000.00",2014,"","","","WEISSMANN, ADAM"
,OFFICE OF THE MINORITY WHIP,2014Q4,TRAVEL,11-21,"GOFF,SHUWANZA R",09/25/14,09/25/14,TAXI/PARKING/TOLLS,8.36,2014,AP,Accounts payable,E0218066,"GOFF,SHUWANZA R"
,OFFICE OF THE MINORITY WHIP,2014Q4,TRAVEL,11-21,"FRY,COURTNEY",11/15/14,11/15/14,TAXI/PARKING/TOLLS,19.55,2014,AP,Accounts payable,E0218075,"FRY,COURTNEY"
,OFFICE OF THE MINORITY WHIP,2014Q4,TRAVEL,11-21,"AVILES,DANIELLE R",11/13/14,11/13/14,TAXI/PARKING/TOLLS,13.00,2014,AP,Accounts payable,E0218077,"AVILES,DANIELLE R"
,OFFICE OF THE MINORITY WHIP,2014Q4,TRAVEL,11-21,"FRY,COURTNEY",11/15/14,11/15/14,TAXI/PARKING/TOLLS,10.47,2014,AP,Accounts payable,E0218084,"FRY,COURTNEY"
,OFFICE OF THE MINORITY WHIP,2014Q4,TRAVEL,11-21,"COBIA, LINDSEY G",11/19/14,11/19/14,TAXI/PARKING/TOLLS,6.23,2014,AP,Accounts payable,E0218085,"COBIA, LINDSEY G"
,OFFICE OF THE MINORITY WHIP,2014Q4,TRAVEL,11-21,"ROWE, DEBORAH M",11/19/14,11/19/14,TAXI/PARKING/TOLLS,11.73,2014,AP,Accounts payable,E0218088,"ROWE, DEBORAH M"
,OFFICE OF THE MINORITY WHIP,2014Q4,TRAVEL,11-21,"COBIA, LINDSEY G",11/20/14,11/20/14,TAXI/PARKING/TOLLS,10.11,2014,AP,Accounts payable,E0218090,"COBIA, LINDSEY G"
,OFFICE OF THE MINORITY WHIP,2014Q4,TRAVEL,11-21,"FRY,COURTNEY",11/18/14,11/18/14,TAXI/PARKING/TOLLS,8.83,2014,AP,Accounts payable,E0218091,"FRY,COURTNEY"
,OFFICE OF THE MINORITY WHIP,2014Q4,TRAVEL,11-21,"COBIA, LINDSEY G",11/05/14,11/05/14,TAXI/PARKING/TOLLS,16.07,2014,AP,Accounts payable,E0218105,"COBIA, LINDSEY G"
,OFFICE OF THE MINORITY WHIP,2014Q4,TRAVEL,11-21,"ROWE, DEBORAH M",10/30/14,10/30/14,TAXI/PARKING/TOLLS,12.69,2014,AP,Accounts payable,E0218107,"ROWE, DEBORAH M"
,OFFICE OF THE MINORITY WHIP,2014Q4,TRAVEL,11-21,"AVILES,DANIELLE R",11/12/14,11/12/14,TAXI/PARKING/TOLLS,13.00,2014,AP,Accounts payable,E0218108,"AVILES,DANIELLE R"
,OFFICE OF THE MINORITY WHIP,2014Q4,TRAVEL,11-21,"ROWE, DEBORAH M",11/05/14,11/05/14,TAXI/PARKING/TOLLS,10.63,2014,AP,Accounts payable,E0218109,"ROWE, DEBORAH M"
,OFFICE OF THE MINORITY WHIP,2014Q4,TRAVEL,11-25,"ROWE, DEBORAH M",11/13/14,11/13/14,TAXI/PARKING/TOLLS,11.13,2014,AP,Accounts payable,E0218097,"ROWE, DEBORAH M"
,OFFICE OF THE MINORITY WHIP,2014Q4,TRAVEL,11-25,"ROWE, DEBORAH M",11/13/14,11/13/14,TAXI/PARKING/TOLLS,11.88,2014,AP,Accounts payable,E0218102,"ROWE, DEBORAH M"
,OFFICE OF THE MINORITY WHIP,2014Q4,TRAVEL,12-19,"AVILES,DANIELLE R",12/10/14,12/10/14,TAXI/PARKING/TOLLS,15.00,2014,AP,Accounts payable,E0228687,"AVILES,DANIELLE R"
,OFFICE OF THE MINORITY WHIP,2014Q4,TRAVEL,12-19,"AVILES,DANIELLE R",12/11/14,12/11/14,TAXI/PARKING/TOLLS,13.00,2014,AP,Accounts payable,E0228692,"AVILES,DANIELLE R"
,OFFICE OF THE MINORITY WHIP,2014Q4,TRAVEL,12-19,"AVILES,DANIELLE R",12/03/14,12/03/14,TAXI/PARKING/TOLLS,14.00,2014,AP,Accounts payable,E0228695,"AVILES,DANIELLE R"
,OFFICE OF THE MINORITY WHIP,2014Q4,TRAVEL,12-22,"VALES, TARA J",12/11/14,12/11/14,TAXI/PARKING/TOLLS,8.24,2014,AP,Accounts payable,E0228689,"VALES, TARA J"
,OFFICE OF THE MINORITY WHIP,2014Q4,TRAVEL,12-22,"AVILES,DANIELLE R",12/04/14,12/04/14,TAXI/PARKING/TOLLS,13.00,2014,AP,Accounts payable,E0228690,"AVILES,DANIELLE R"
,OFFICE OF THE MINORITY WHIP,2014Q4,TRAVEL,12-22,"ROWE, DEBORAH M",12/04/14,12/04/14,TAXI/PARKING/TOLLS,11.18,2014,AP,Accounts payable,E0228693,"ROWE, DEBORAH M"
,OFFICE OF THE MINORITY WHIP,2014Q4,TRAVEL,12-22,"ROWE, DEBORAH M",12/11/14,12/11/14,TAXI/PARKING/TOLLS,12.36,2014,AP,Accounts payable,E0228696,"ROWE, DEBORAH M"
,OFFICE OF THE MINORITY WHIP,2014Q4,TRAVEL,12-22,"ROWE, DEBORAH M",12/11/14,12/11/14,TAXI/PARKING/TOLLS,11.57,2014,AP,Accounts payable,E0228700,"ROWE, DEBORAH M"
,OFFICE OF THE MINORITY WHIP,2014Q4,TRAVEL,12-22,"GOFF,SHUWANZA R",11/24/14,11/24/14,TAXI/PARKING/TOLLS,12.55,2014,AP,Accounts payable,E0228701,"GOFF,SHUWANZA R"
,OFFICE OF THE MINORITY WHIP,2014Q4,TRAVEL,12-22,"ROWE, DEBORAH M",11/20/14,11/20/14,TAXI/PARKING/TOLLS,12.22,2014,AP,Accounts payable,E0228705,"ROWE, DEBORAH M"
,OFFICE OF THE MINORITY WHIP,2014Q4,TRAVEL,12-22,"FRY,COURTNEY",11/24/14,11/24/14,TAXI/PARKING/TOLLS,14.53,2014,AP,Accounts payable,E0228707,"FRY,COURTNEY"
,OFFICE OF THE MINORITY WHIP,2014Q4,TRAVEL,12-22,"MARTINEZ, JAVIER D",12/05/14,12/05/14,TAXI/PARKING/TOLLS,11.00,2014,AP,Accounts payable,E0228963,"MARTINEZ, JAVIER D"
,OFFICE OF THE MINORITY WHIP,2014Q4,TRAVEL,12-22,"MARTINEZ, JAVIER D",12/05/14,12/05/14,TAXI/PARKING/TOLLS,11.00,2014,AP,Accounts payable,E0228982,"MARTINEZ, JAVIER D"
,OFFICE OF THE MINORITY WHIP,2014Q4,TRAVEL,12-23,"AVILES,DANIELLE R",12/11/14,12/11/14,TAXI/PARKING/TOLLS,13.00,2014,AP,Accounts payable,E0228697,"AVILES,DANIELLE R"
,OFFICE OF THE MINORITY WHIP,2014Q4,"RENT, COMMUNICATION, UTILITIES",10-21,CITI PCARD-FEDEX,08/29/14,09/28/14,POSTAGE / COURIER / BOX RENTAL,10.56,2014,AP,Accounts payable,00757962,CITI PCARD-FEDEX
,OFFICE OF THE MINORITY WHIP,2014Q4,"RENT, COMMUNICATION, UTILITIES",10-21,CITI PCARD-SXM SIRIUSXM.COM/ACCT,08/29/14,09/28/14,UTILITIES,204.05,2014,AP,Accounts payable,00757962,CITI PCARD-SXM SIRIUSXM.COM/ACCT
,OFFICE OF THE MINORITY WHIP,2014Q4,"RENT, COMMUNICATION, UTILITIES",10-21,CITI PCARD-USPS,08/29/14,09/28/14,POSTAGE / COURIER / BOX RENTAL,11.50,2014,AP,Accounts payable,00757962,CITI PCARD-USPS
,OFFICE OF THE MINORITY WHIP,2014Q4,"RENT, COMMUNICATION, UTILITIES",11-24,CITI PCARD-FEDEX,09/29/14,09/30/14,POSTAGE / COURIER / BOX RENTAL,130.36,2014,AP,Accounts payable,00763079,CITI PCARD-FEDEX
,OFFICE OF THE MINORITY WHIP,2014Q4,"RENT, COMMUNICATION, UTILITIES",12-19,"VALES, TARA J",11/25/14,11/25/14,TELECOMSRV/EQ/TOLL CHARGE,19.90,2014,AP,Accounts payable,E0228691,"VALES, TARA J"
,OFFICE OF THE MINORITY WHIP,2014Q4,"RENT, COMMUNICATION, UTILITIES",12-22,CITI PCARD-USPS,10/29/14,11/28/14,POSTAGE / COURIER / BOX RENTAL,212.40,2014,AP,Accounts payable,00768172,CITI PCARD-USPS
,OFFICE OF THE MINORITY WHIP,2014Q4,SUPPLIES AND MATERIALS,10-08,KNOWWHO,07/01/14,06/30/15,PUBLICATIONS/REFERENCE MAT'L,"-3,547.50",2014,AP,Accounts payable,00753649,KNOWWHO
,OFFICE OF THE MINORITY WHIP,2014Q4,SUPPLIES AND MATERIALS,10-08,TV EYES INC,07/01/14,07/01/14,PUBLICATIONS/REFERENCE MAT'L,"-1,200.00",2014,AP,Accounts payable,00753650,TV EYES INC
,OFFICE OF THE MINORITY WHIP,2014Q4,SUPPLIES AND MATERIALS,10-21,CITI PCARD-CORCORAN CATERERS,08/29/14,09/28/14,FOOD & BEVERAGE,"24,000.00",2014,AP,Accounts payable,00757962,CITI PCARD-CORCORAN CATERERS
,OFFICE OF THE MINORITY WHIP,2014Q4,SUPPLIES AND MATERIALS,10-21,"CITI PCARD-CQ ROLL CALL, INC",08/29/14,09/28/14,PUBLICATIONS/REFERENCE MAT'L,"37,752.00",2014,AP,Accounts payable,00757962,"CITI PCARD-CQ ROLL CALL, INC"
,OFFICE OF THE MINORITY WHIP,2014Q4,SUPPLIES AND MATERIALS,10-21,CITI PCARD-ENVIRONMENT & ENERGY P,08/29/14,09/28/14,PUBLICATIONS/REFERENCE MAT'L,"8,095.00",2014,AP,Accounts payable,00757962,CITI PCARD-ENVIRONMENT & ENERGY P
,OFFICE OF THE MINORITY WHIP,2014Q4,SUPPLIES AND MATERIALS,10-21,CITI PCARD-GIANT LLC,08/29/14,09/28/14,FOOD & BEVERAGE,"1,814.37",2014,AP,Accounts payable,00757962,CITI PCARD-GIANT LLC
,OFFICE OF THE MINORITY WHIP,2014Q4,SUPPLIES AND MATERIALS,10-21,CITI PCARD-PIZZA BOLI'S,08/29/14,09/28/14,FOOD & BEVERAGE,81.30,2014,AP,Accounts payable,00757962,CITI PCARD-PIZZA BOLI'S
,OFFICE OF THE MINORITY WHIP,2014Q4,SUPPLIES AND MATERIALS,10-21,CITI PCARD-TAYLOR GOURMET,08/29/14,09/28/14,FOOD & BEVERAGE,228.32,2014,AP,Accounts payable,00757962,CITI PCARD-TAYLOR GOURMET
,OFFICE OF THE MINORITY WHIP,2014Q4,SUPPLIES AND MATERIALS,10-21,CITI PCARD-THEECONOMIST NEWSPAPER,08/29/14,09/28/14,PUBLICATIONS/REFERENCE MAT'L,-136.42,2014,AP,Accounts payable,00757962,CITI PCARD-THEECONOMIST NEWSPAPER
,OFFICE OF THE MINORITY WHIP,2014Q4,SUPPLIES AND MATERIALS,11-24,CITI PCARD-CAPITOL HOST (RIDGEWEL,10/01/14,10/28/14,FOOD & BEVERAGE,"3,000.00",2014,AP,Accounts payable,00763079,CITI PCARD-CAPITOL HOST (RIDGEWEL
,OFFICE OF THE MINORITY WHIP,2014Q4,SUPPLIES AND MATERIALS,11-24,CITI PCARD-CORCORAN CATERERS,09/29/14,09/30/14,FOOD & BEVERAGE,"4,000.00",2014,AP,Accounts payable,00763079,CITI PCARD-CORCORAN CATERERS
,OFFICE OF THE MINORITY WHIP,2014Q4,SUPPLIES AND MATERIALS,11-24,CITI PCARD-NYT NY TIMES SUBS,10/01/14,10/28/14,PUBLICATIONS/REFERENCE MAT'L,"3,071.88",2014,AP,Accounts payable,00763079,CITI PCARD-NYT NY TIMES SUBS
,OFFICE OF THE MINORITY WHIP,2014Q4,SUPPLIES AND MATERIALS,11-24,CITI PCARD-PIZZA BOLI'S,09/29/14,09/30/14,FOOD & BEVERAGE,82.30,2014,AP,Accounts payable,00763079,CITI PCARD-PIZZA BOLI'S
,OFFICE OF THE MINORITY WHIP,2014Q4,SUPPLIES AND MATERIALS,11-24,CITI PCARD-TARGET,09/29/14,09/30/14,MISC. SUPPLIES & MATERIALS,37.21,2014,AP,Accounts payable,00763079,CITI PCARD-TARGET
,OFFICE OF THE MINORITY WHIP,2014Q4,SUPPLIES AND MATERIALS,12-22,CITI PCARD-CVS/PHARMACY,10/29/14,11/28/14,FOOD & BEVERAGE,18.11,2014,AP,Accounts payable,00768172,CITI PCARD-CVS/PHARMACY
,OFFICE OF THE MINORITY WHIP,2014Q4,SUPPLIES AND MATERIALS,12-22,CITI PCARD-GEORGETOWN CUPCAKE,10/29/14,11/28/14,FOOD & BEVERAGE,128.80,2014,AP,Accounts payable,00768172,CITI PCARD-GEORGETOWN CUPCAKE
,OFFICE OF THE MINORITY WHIP,2014Q4,SUPPLIES AND MATERIALS,12-22,CITI PCARD-IN COLUMBIA BOOKS,10/29/14,11/28/14,PUBLICATIONS/REFERENCE MAT'L,414.00,2014,AP,Accounts payable,00768172,CITI PCARD-IN COLUMBIA BOOKS
,OFFICE OF THE MINORITY WHIP,2014Q4,SUPPLIES AND MATERIALS,12-22,CITI PCARD-RA CAPITAL M,10/29/14,11/28/14,FOOD & BEVERAGE,5.10,2014,AP,Accounts payable,00768172,CITI PCARD-RA CAPITAL M
,OFFICE OF THE MINORITY WHIP,2014Q4,SUPPLIES AND MATERIALS,12-22,CITI PCARD-TAYLOR GOURMET,10/29/14,11/28/14,FOOD & BEVERAGE,317.01,2014,AP,Accounts payable,00768172,CITI PCARD-TAYLOR GOURMET
,DEMOCRATIC CAUCUS,2014Q4,PERSONNEL COMPENSATION,"","ALVI,HINA R",10/01/14,12/31/14,SHARED EMPLOYEE,"9,352.71",2014,"","","","ALVI,HINA R"
,DEMOCRATIC CAUCUS,2014Q4,PERSONNEL COMPENSATION,"","ALVI,HINA R",07/01/14,09/30/14,SHARED EMPLOYEE (OTHER COMPENSATION),"2,003.24",2014,"","","","ALVI,HINA R"
,DEMOCRATIC CAUCUS,2014Q4,PERSONNEL COMPENSATION,"","ATTAPIT,SIRAT",10/01/14,12/31/14,SENIOR POLICY COUNSEL,"24,239.00",2014,"","","","ATTAPIT,SIRAT"
,DEMOCRATIC CAUCUS,2014Q4,PERSONNEL COMPENSATION,"","AVERY,SAMUEL R",10/01/14,12/31/14,PRESS ASSISTANT,"15,837.00",2014,"","","","AVERY,SAMUEL R"
,DEMOCRATIC CAUCUS,2014Q4,PERSONNEL COMPENSATION,"","BACKEMEYER,COURTNEY G",10/01/14,12/31/14,COMMUNICTNS DIR TO VICE CHRMN,"8,000.01",2014,"","","","BACKEMEYER,COURTNEY G"
,DEMOCRATIC CAUCUS,2014Q4,PERSONNEL COMPENSATION,"","CARRILLO,MANUEL J",10/01/14,12/31/14,OPERATIONS AND EVENTS COOR,"17,389.00",2014,"","","","CARRILLO,MANUEL J"
,DEMOCRATIC CAUCUS,2014Q4,PERSONNEL COMPENSATION,"","CASEY, KEVIN",10/01/14,12/31/14,POLICY DIRECTOR / VICE CHAIR,"23,380.00",2014,"","","","CASEY, KEVIN"
,DEMOCRATIC CAUCUS,2014Q4,PERSONNEL COMPENSATION,"","DAVALOS,LETICIA M",10/01/14,12/31/14,MEMBER OUTREACH ASSISTANT,"16,763.00",2014,"","","","DAVALOS,LETICIA M"
,DEMOCRATIC CAUCUS,2014Q4,PERSONNEL COMPENSATION,"","DELANEY, ERIC L",10/01/14,12/31/14,SR MBR OUTREACH ASST,"21,913.00",2014,"","","","DELANEY, ERIC L"
,DEMOCRATIC CAUCUS,2014Q4,PERSONNEL COMPENSATION,"","HANDVERGER,MATTHEW E",10/14/14,12/31/14,NEW MEDIA PRESS SECRETARY,"10,218.16",2014,"","","","HANDVERGER,MATTHEW E"
,DEMOCRATIC CAUCUS,2014Q4,PERSONNEL COMPENSATION,"","HERRERA,DANIEL",10/01/14,12/31/14,COMMUNICATIONS DIRECTOR,"23,515.34",2014,"","","","HERRERA,DANIEL"
,DEMOCRATIC CAUCUS,2014Q4,PERSONNEL COMPENSATION,"","HORI,CHERYL L",10/01/14,12/31/14,STAFF ASSISTANT,"9,871.66",2014,"","","","HORI,CHERYL L"
,DEMOCRATIC CAUCUS,2014Q4,PERSONNEL COMPENSATION,"","HORI,CHERYL L",09/01/14,11/30/14,STAFF ASSISTANT (OVERTIME),"1,117.08",2014,"","","","HORI,CHERYL L"
,DEMOCRATIC CAUCUS,2014Q4,PERSONNEL COMPENSATION,"","KEATING, KATHERINE E",10/01/14,12/31/14,SHARED EMPLOYEE,"18,999.99",2014,"","","","KEATING, KATHERINE E"
,DEMOCRATIC CAUCUS,2014Q4,PERSONNEL COMPENSATION,"","LOWENSTEIN,ADAM M",11/05/14,12/31/14,STAFF ASSISTANT,"6,222.22",2014,"","","","LOWENSTEIN,ADAM M"
,DEMOCRATIC CAUCUS,2014Q4,PERSONNEL COMPENSATION,"","MARGOWSKY,MIRANDA K",12/22/14,12/27/14,PRESS SECRETARY,"2,750.00",2014,"","","","MARGOWSKY,MIRANDA K"
,DEMOCRATIC CAUCUS,2014Q4,PERSONNEL COMPENSATION,"","MARTINEZ,GRISELLA M",10/01/14,12/31/14,POLICY DIRECTOR,"26,617.00",2014,"","","","MARTINEZ,GRISELLA M"
,DEMOCRATIC CAUCUS,2014Q4,PERSONNEL COMPENSATION,"","MCCLUSKIE,SEAN E",08/01/14,12/31/14,CHIEF OF STAFF,"36,839.16",2014,"","","","MCCLUSKIE,SEAN E"
,DEMOCRATIC CAUCUS,2014Q4,PERSONNEL COMPENSATION,"","PEREZ-SANCHEZ,NOEL",10/01/14,12/31/14,MEMBER OUTREACH ASSISTANT,"19,380.00",2014,"","","","PEREZ-SANCHEZ,NOEL"
,DEMOCRATIC CAUCUS,2014Q4,PERSONNEL COMPENSATION,"","RENDON,ERIKA K",10/01/14,10/10/14,PRESS ASSISTANT,944.44,2014,"","","","RENDON,ERIKA K"
,DEMOCRATIC CAUCUS,2014Q4,PERSONNEL COMPENSATION,"","RENDON,ERIKA K",10/01/14,10/10/14,PRESS ASSISTANT (OTHER COMPENSATION),566.67,2014,"","","","RENDON,ERIKA K"
,DEMOCRATIC CAUCUS,2014Q4,PERSONNEL COMPENSATION,"","RODRIGUEZ-CIAMPOLI,FABIOLA",10/01/14,12/31/14,EXECUTIVE DIRECTOR,"43,120.00",2014,"","","","RODRIGUEZ-CIAMPOLI,FABIOLA"
,DEMOCRATIC CAUCUS,2014Q4,PERSONNEL COMPENSATION,"","SACHSE,ANDREW M",10/01/14,12/31/14,STAFF ASSISTANT,"10,750.01",2014,"","","","SACHSE,ANDREW M"
,DEMOCRATIC CAUCUS,2014Q4,PERSONNEL COMPENSATION,"","SHARMA,MOH R",10/01/14,12/31/14,POLICY ADVISOR,"17,875.00",2014,"","","","SHARMA,MOH R"
,DEMOCRATIC CAUCUS,2014Q4,PERSONNEL COMPENSATION,"","SHLOMO,YACOV T",10/01/14,12/31/14,STAFF ASSISTANT,"10,406.66",2014,"","","","SHLOMO,YACOV T"
,DEMOCRATIC CAUCUS,2014Q4,PERSONNEL COMPENSATION,"","SHLOMO,YACOV T",09/01/14,11/30/14,STAFF ASSISTANT (OVERTIME),"1,342.87",2014,"","","","SHLOMO,YACOV T"
,DEMOCRATIC CAUCUS,2014Q4,PERSONNEL COMPENSATION,"","WOODRUM,JEREMY S",10/01/14,12/31/14,"LEGISLATIVE DIR., VICE CHAIR","10,749.99",2014,"","","","WOODRUM,JEREMY S"
,DEMOCRATIC CAUCUS,2014Q4,TRAVEL,11-13,"CARRILLO, MANUEL J",10/09/14,10/23/14,PRIVATE AUTO MILEAGE,183.68,2014,AP,Accounts payable,E0214712,"CARRILLO, MANUEL J"
,DEMOCRATIC CAUCUS,2014Q4,TRAVEL,11-13,"CARRILLO, MANUEL J",10/09/14,10/09/14,TAXI/PARKING/TOLLS,3.50,2014,AP,Accounts payable,E0214712,"CARRILLO, MANUEL J"
,DEMOCRATIC CAUCUS,2014Q4,TRAVEL,11-13,"DAVALOS, LETICIA M",11/04/14,11/04/14,TAXI/PARKING/TOLLS,53.28,2014,AP,Accounts payable,E0214813,"DAVALOS, LETICIA M"
,DEMOCRATIC CAUCUS,2014Q4,TRAVEL,12-12,"DAVALOS, LETICIA M",12/05/14,12/05/14,MEALS,17.64,2014,AP,Accounts payable,E0224661,"DAVALOS, LETICIA M"
,DEMOCRATIC CAUCUS,2014Q4,TRAVEL,12-12,"DAVALOS, LETICIA M",12/05/14,12/05/14,TAXI/PARKING/TOLLS,28.00,2014,AP,Accounts payable,E0224661,"DAVALOS, LETICIA M"
,DEMOCRATIC CAUCUS,2014Q4,TRAVEL,12-12,"DELANEY, ERIC",12/05/14,12/05/14,MEALS,23.37,2014,AP,Accounts payable,E0224679,"DELANEY, ERIC"
,DEMOCRATIC CAUCUS,2014Q4,TRAVEL,12-15,"RODRIGUEZ-CIAMPOLI,FABIOLA",12/05/14,12/05/14,MEALS,26.46,2014,AP,Accounts payable,E0224660,"RODRIGUEZ-CIAMPOLI,FABIOLA"
,DEMOCRATIC CAUCUS,2014Q4,TRAVEL,12-15,"PEREZ-SANCHEZ,NOEL",12/05/14,12/05/14,COMMERCIAL TRANSPORTATION,"1,035.00",2014,AP,Accounts payable,E0224662,"PEREZ-SANCHEZ,NOEL"
,DEMOCRATIC CAUCUS,2014Q4,TRAVEL,12-15,"CARRILLO, MANUEL J",12/05/14,12/05/14,MEALS,20.16,2014,AP,Accounts payable,E0224678,"CARRILLO, MANUEL J"
,DEMOCRATIC CAUCUS,2014Q4,TRAVEL,12-16,"HERRERA, DANIEL",12/05/14,12/05/14,MEALS,18.90,2014,AP,Accounts payable,E0226517,"HERRERA, DANIEL"
,DEMOCRATIC CAUCUS,2014Q4,TRAVEL,12-17,"PEREZ-SANCHEZ,NOEL",12/05/14,12/05/14,COMMERCIAL TRANSPORTATION,53.00,2014,AP,Accounts payable,E0227248,"PEREZ-SANCHEZ,NOEL"
,DEMOCRATIC CAUCUS,2014Q4,TRAVEL,12-24,"MARTINEZ, GRISELLA M",12/05/14,12/05/14,MEALS,22.68,2014,AP,Accounts payable,E0229955,"MARTINEZ, GRISELLA M"
,DEMOCRATIC CAUCUS,2014Q4,TRAVEL,12-24,"MARTINEZ, GRISELLA M",12/05/14,12/05/14,TAXI/PARKING/TOLLS,31.24,2014,AP,Accounts payable,E0229955,"MARTINEZ, GRISELLA M"
,DEMOCRATIC CAUCUS,2014Q4,"RENT, COMMUNICATION, UTILITIES",10-21,CITI PCARD-USPS,08/29/14,09/28/14,POSTAGE / COURIER / BOX RENTAL,98.00,2014,AP,Accounts payable,00757962,CITI PCARD-USPS
,DEMOCRATIC CAUCUS,2014Q4,"RENT, COMMUNICATION, UTILITIES",11-24,CITI PCARD-USPS,10/01/14,10/28/14,POSTAGE / COURIER / BOX RENTAL,43.70,2014,AP,Accounts payable,00763079,CITI PCARD-USPS
,DEMOCRATIC CAUCUS,2014Q4,"RENT, COMMUNICATION, UTILITIES",12-12,FEDEX,11/05/14,11/05/14,POSTAGE / COURIER / BOX RENTAL,62.08,2014,AP,Accounts payable,E0224653,FEDEX
,DEMOCRATIC CAUCUS,2014Q4,"RENT, COMMUNICATION, UTILITIES",12-22,CITI PCARD-USPS,10/29/14,11/28/14,POSTAGE / COURIER / BOX RENTAL,15.50,2014,AP,Accounts payable,00768172,CITI PCARD-USPS
,DEMOCRATIC CAUCUS,2014Q4,PRINTING AND REPRODUCTION,10-21,CITI PCARD-FACEBOOK,08/29/14,09/28/14,ADVERTISEMENTS,29.53,2014,AP,Accounts payable,00757962,CITI PCARD-FACEBOOK
,DEMOCRATIC CAUCUS,2014Q4,OTHER SERVICES,11-24,CITI PCARD-CLASSICLEANERS-LONGWOR,10/01/14,10/28/14,JANITORIAL AND MAINT SERV,83.96,2014,AP,Accounts payable,00763079,CITI PCARD-CLASSICLEANERS-LONGWOR
,DEMOCRATIC CAUCUS,2014Q4,OTHER SERVICES,11-24,CITI PCARD-CLASSICLEANERS-LONGWOR,09/29/14,09/30/14,LAUNDRY SERVICES,41.98,2014,AP,Accounts payable,00763079,CITI PCARD-CLASSICLEANERS-LONGWOR
,DEMOCRATIC CAUCUS,2014Q4,SUPPLIES AND MATERIALS,10-16,DEER PARK,09/30/14,09/30/14,WATER,29.99,2014,AP,Accounts payable,00753870,DEER PARK
,DEMOCRATIC CAUCUS,2014Q4,SUPPLIES AND MATERIALS,10-21,CITI PCARD-BETHESDA BAGELS OF DUP,08/29/14,09/28/14,FOOD & BEVERAGE,"1,271.26",2014,AP,Accounts payable,00757962,CITI PCARD-BETHESDA BAGELS OF DUP
,DEMOCRATIC CAUCUS,2014Q4,SUPPLIES AND MATERIALS,10-21,CITI PCARD-HARRIS TEETER,08/29/14,09/28/14,FOOD & BEVERAGE,866.65,2014,AP,Accounts payable,00757962,CITI PCARD-HARRIS TEETER
,DEMOCRATIC CAUCUS,2014Q4,SUPPLIES AND MATERIALS,10-21,CITI PCARD-LA TIMES SUBSCRIPTION,08/29/14,09/28/14,PUBLICATIONS/REFERENCE MAT'L,11.96,2014,AP,Accounts payable,00757962,CITI PCARD-LA TIMES SUBSCRIPTION
,DEMOCRATIC CAUCUS,2014Q4,SUPPLIES AND MATERIALS,10-21,CITI PCARD-TRADER JOE'S,08/29/14,09/28/14,FOOD & BEVERAGE,39.07,2014,AP,Accounts payable,00757962,CITI PCARD-TRADER JOE'S
,DEMOCRATIC CAUCUS,2014Q4,SUPPLIES AND MATERIALS,10-21,CITI PCARD-WHOLEFDS PST,08/29/14,09/28/14,FOOD & BEVERAGE,25.46,2014,AP,Accounts payable,00757962,CITI PCARD-WHOLEFDS PST
,DEMOCRATIC CAUCUS,2014Q4,SUPPLIES AND MATERIALS,11-13,POLITICO,10/31/14,10/30/15,PUBLICATIONS/REFERENCE MAT'L,"14,985.00",2014,AP,Accounts payable,E0214787,POLITICO
,DEMOCRATIC CAUCUS,2014Q4,SUPPLIES AND MATERIALS,11-13,CQ ROLL CALL INC,10/28/14,10/27/15,PUBLICATIONS/REFERENCE MAT'L,"9,998.00",2014,AP,Accounts payable,E0214793,CQ ROLL CALL INC
,DEMOCRATIC CAUCUS,2014Q4,SUPPLIES AND MATERIALS,11-24,CITI PCARD-AUDIOBLOCKS.COM,10/01/14,10/28/14,PUBLICATIONS/REFERENCE MAT'L,99.00,2014,AP,Accounts payable,00763079,CITI PCARD-AUDIOBLOCKS.COM
,DEMOCRATIC CAUCUS,2014Q4,SUPPLIES AND MATERIALS,11-24,CITI PCARD-D J WALL-ST-JOURNAL,10/01/14,10/28/14,PUBLICATIONS/REFERENCE MAT'L,342.51,2014,AP,Accounts payable,00763079,CITI PCARD-D J WALL-ST-JOURNAL
,DEMOCRATIC CAUCUS,2014Q4,SUPPLIES AND MATERIALS,11-24,CITI PCARD-FIREHOOK,09/29/14,09/30/14,FOOD & BEVERAGE,419.50,2014,AP,Accounts payable,00763079,CITI PCARD-FIREHOOK
,DEMOCRATIC CAUCUS,2014Q4,SUPPLIES AND MATERIALS,11-24,CITI PCARD-FIREHOOK,10/01/14,10/28/14,FOOD & BEVERAGE,475.33,2014,AP,Accounts payable,00763079,CITI PCARD-FIREHOOK
,DEMOCRATIC CAUCUS,2014Q4,SUPPLIES AND MATERIALS,11-24,CITI PCARD-FTP FINANCIAL TIMES IN,10/01/14,10/28/14,PUBLICATIONS/REFERENCE MAT'L,420.89,2014,AP,Accounts payable,00763079,CITI PCARD-FTP FINANCIAL TIMES IN
,DEMOCRATIC CAUCUS,2014Q4,SUPPLIES AND MATERIALS,11-24,CITI PCARD-MAILCHIMP,10/01/14,10/28/14,PUBLICATIONS/REFERENCE MAT'L,40.00,2014,AP,Accounts payable,00763079,CITI PCARD-MAILCHIMP
,DEMOCRATIC CAUCUS,2014Q4,SUPPLIES AND MATERIALS,11-24,CITI PCARD-NYT TIMES E-BILLING,10/01/14,10/28/14,PUBLICATIONS/REFERENCE MAT'L,929.33,2014,AP,Accounts payable,00763079,CITI PCARD-NYT TIMES E-BILLING
,DEMOCRATIC CAUCUS,2014Q4,SUPPLIES AND MATERIALS,11-25,DEER PARK,10/31/14,10/31/14,WATER,29.99,2014,AP,Accounts payable,00762947,DEER PARK
,DEMOCRATIC CAUCUS,2014Q4,SUPPLIES AND MATERIALS,12-16,BLOOMBERG LP,01/01/15,12/31/15,PUBLICATIONS/REFERENCE MAT'L,"5,850.00",2014,AP,Accounts payable,E0226510,BLOOMBERG LP
,DEMOCRATIC CAUCUS,2014Q4,SUPPLIES AND MATERIALS,12-22,CITI PCARD-AMAZON MKTPLACE PMTS,10/29/14,11/28/14,PUBLICATIONS/REFERENCE MAT'L,24.73,2014,AP,Accounts payable,00768172,CITI PCARD-AMAZON MKTPLACE PMTS
,DEMOCRATIC CAUCUS,2014Q4,SUPPLIES AND MATERIALS,12-22,CITI PCARD-BETHESDA BAGELS OF DUP,10/29/14,11/28/14,FOOD & BEVERAGE,"3,805.50",2014,AP,Accounts payable,00768172,CITI PCARD-BETHESDA BAGELS OF DUP
,DEMOCRATIC CAUCUS,2014Q4,SUPPLIES AND MATERIALS,12-22,CITI PCARD-CAPITOL HOST (RIDGEWEL,10/29/14,11/28/14,FOOD & BEVERAGE,"14,627.52",2014,AP,Accounts payable,00768172,CITI PCARD-CAPITOL HOST (RIDGEWEL
,DEMOCRATIC CAUCUS,2014Q4,SUPPLIES AND MATERIALS,12-22,CITI PCARD-FIREHOOK BAKERY,10/29/14,11/28/14,FOOD & BEVERAGE,-82.90,2014,AP,Accounts payable,00768172,CITI PCARD-FIREHOOK BAKERY
,DEMOCRATIC CAUCUS,2014Q4,SUPPLIES AND MATERIALS,12-22,CITI PCARD-HARRIS TEETER,10/29/14,11/28/14,FOOD & BEVERAGE,402.76,2014,AP,Accounts payable,00768172,CITI PCARD-HARRIS TEETER
,DEMOCRATIC CAUCUS,2014Q4,SUPPLIES AND MATERIALS,12-22,CITI PCARD-HYATT REGENCY WASHINGT,10/29/14,11/28/14,FOOD & BEVERAGE,"3,360.75",2014,AP,Accounts payable,00768172,CITI PCARD-HYATT REGENCY WASHINGT
,DEMOCRATIC CAUCUS,2014Q4,SUPPLIES AND MATERIALS,12-22,CITI PCARD-IN CATERING BY AVALON,10/29/14,11/28/14,FOOD & BEVERAGE,"15,375.00",2014,AP,Accounts payable,00768172,CITI PCARD-IN CATERING BY AVALON
,DEMOCRATIC CAUCUS,2014Q4,SUPPLIES AND MATERIALS,12-22,CITI PCARD-IWP NEWSLETTERS,10/29/14,11/28/14,PUBLICATIONS/REFERENCE MAT'L,"1,305.00",2014,AP,Accounts payable,00768172,CITI PCARD-IWP NEWSLETTERS
,DEMOCRATIC CAUCUS,2014Q4,SUPPLIES AND MATERIALS,12-22,CITI PCARD-LA TIMES SUBSCRIPTION,10/29/14,11/28/14,PUBLICATIONS/REFERENCE MAT'L,23.92,2014,AP,Accounts payable,00768172,CITI PCARD-LA TIMES SUBSCRIPTION
,DEMOCRATIC CAUCUS,2014Q4,SUPPLIES AND MATERIALS,12-22,CITI PCARD-SAINT GERMAIN CATERING,10/29/14,11/28/14,FOOD & BEVERAGE,"2,593.50",2014,AP,Accounts payable,00768172,CITI PCARD-SAINT GERMAIN CATERING
,DEMOCRATIC CAUCUS,2014Q4,SUPPLIES AND MATERIALS,12-24,"PEREZ-SANCHEZ,NOEL",12/17/14,12/17/14,FOOD & BEVERAGE,829.48,2014,AP,Accounts payable,E0229954,"PEREZ-SANCHEZ,NOEL"
,DEMOCRATIC CAUCUS,2014Q4,EQUIPMENT,12-22,CITI PCARD-AMAZON MKTPLACE PMTS,10/29/14,11/28/14,WARRANTIES,46.38,2014,AP,Accounts payable,00768172,CITI PCARD-AMAZON MKTPLACE PMTS
,REPUBLICAN CONFERENCE,2014Q4,PERSONNEL COMPENSATION,"","ALGER,ABIGAIL S",10/01/14,12/31/14,DIGITAL DIRECTOR,"20,060.00",2014,"","","","ALGER,ABIGAIL S"
,REPUBLICAN CONFERENCE,2014Q4,PERSONNEL COMPENSATION,"","BETZ, KIMBERLY S",10/01/14,12/31/14,POLICY DIRECTOR,"37,500.00",2014,"","","","BETZ, KIMBERLY S"
,REPUBLICAN CONFERENCE,2014Q4,PERSONNEL COMPENSATION,"","DEUTSCH,JEREMY",10/01/14,12/31/14,CHIEF OF STAFF,"31,250.01",2014,"","","","DEUTSCH,JEREMY"
,REPUBLICAN CONFERENCE,2014Q4,PERSONNEL COMPENSATION,"","DUPPLER,MARTHA C",10/27/14,12/31/14,COALITIONS DIRECTOR,"25,111.10",2014,"","","","DUPPLER,MARTHA C"
,REPUBLICAN CONFERENCE,2014Q4,PERSONNEL COMPENSATION,"","GAITAN,WADI",11/01/14,12/31/14,PRESS SECRETARY,"10,735.67",2014,"","","","GAITAN,WADI"
,REPUBLICAN CONFERENCE,2014Q4,PERSONNEL COMPENSATION,"","GILSON,LOUISA H",10/27/14,12/31/14,STAFF ASSISTANT,"5,977.77",2014,"","","","GILSON,LOUISA H"
,REPUBLICAN CONFERENCE,2014Q4,PERSONNEL COMPENSATION,"","GRAVES,JOEL D",10/01/14,12/31/14,ASSISTANT DIGITAL DIRECTOR,"6,672.06",2014,"","","","GRAVES,JOEL D"
,REPUBLICAN CONFERENCE,2014Q4,PERSONNEL COMPENSATION,"","HARRIS,AMBER E",12/01/14,12/31/14,FINANCE ASSISTANT,"1,083.33",2014,"","","","HARRIS,AMBER E"
,REPUBLICAN CONFERENCE,2014Q4,PERSONNEL COMPENSATION,"","HODSON,NATHAN M",10/01/14,12/31/14,DIRECTOR OF COMMUNICATIONS,"36,200.49",2014,"","","","HODSON,NATHAN M"
,REPUBLICAN CONFERENCE,2014Q4,PERSONNEL COMPENSATION,"","HODSON,NATHAN M",11/01/14,11/30/14,DIRECTOR OF COMMUNICATIONS (OTHER COMPENSATION),"2,950.50",2014,"","","","HODSON,NATHAN M"
,REPUBLICAN CONFERENCE,2014Q4,PERSONNEL COMPENSATION,"","LEVINER,EMILY E",10/01/14,12/31/14,POLICY ADVISOR,"12,999.99",2014,"","","","LEVINER,EMILY E"
,REPUBLICAN CONFERENCE,2014Q4,PERSONNEL COMPENSATION,"","LITMAN,RIVA",10/01/14,12/31/14,DEPUTY COMM DIRECTOR/PRESS SEC,"25,500.00",2014,"","","","LITMAN,RIVA"
,REPUBLICAN CONFERENCE,2014Q4,PERSONNEL COMPENSATION,"","MAGALLANES, NICOLAS",12/17/14,12/31/14,SHARED EMPLOYEE,"3,000.00",2014,"","","","MAGALLANES, NICOLAS"
,REPUBLICAN CONFERENCE,2014Q4,PERSONNEL COMPENSATION,"","MARK,REBECCA",11/17/14,12/31/14,SR. ADVISOR TECH POLICY/WOMEN,"17,222.22",2014,"","","","MARK,REBECCA"
,REPUBLICAN CONFERENCE,2014Q4,PERSONNEL COMPENSATION,"","MARK,REBECCA",11/17/14,11/17/14,SR. ADVISOR TECH POLICY/WOMEN (OTHER COMPENSATION),"5,000.00",2014,"","","","MARK,REBECCA"
,REPUBLICAN CONFERENCE,2014Q4,PERSONNEL COMPENSATION,"","MARTINEZ,BRITTANY N",10/21/14,12/31/14,FELLOW,"4,500.00",2014,"","","","MARTINEZ,BRITTANY N"
,REPUBLICAN CONFERENCE,2014Q4,PERSONNEL COMPENSATION,"","MURPHY,SHAUGHNESSY P",10/01/14,12/31/14,DIRECTOR OF MEMBER SERVICES,"33,951.00",2014,"","","","MURPHY,SHAUGHNESSY P"
,REPUBLICAN CONFERENCE,2014Q4,PERSONNEL COMPENSATION,"","MURPHY,SHAUGHNESSY P",11/01/14,11/30/14,DIRECTOR OF MEMBER SERVICES (OTHER COMPENSATION),"2,826.00",2014,"","","","MURPHY,SHAUGHNESSY P"
,REPUBLICAN CONFERENCE,2014Q4,PERSONNEL COMPENSATION,"","REAGAN,AMANDA M",10/01/14,12/31/14,EXTERNAL RELATIONS COORDINATOR,"15,000.01",2014,"","","","REAGAN,AMANDA M"
,REPUBLICAN CONFERENCE,2014Q4,PERSONNEL COMPENSATION,"","ROSS, JOHN E",12/01/14,12/31/14,FINANCE DIRECTOR,750.00,2014,"","","","ROSS, JOHN E"
,REPUBLICAN CONFERENCE,2014Q4,PERSONNEL COMPENSATION,"","RUHLEN, MARY E",10/01/14,12/31/14,FINANCIAL ADMINISTRATOR,"4,050.00",2014,"","","","RUHLEN, MARY E"
,REPUBLICAN CONFERENCE,2014Q4,PERSONNEL COMPENSATION,"","SCAGNELLI,AUDREY",10/01/14,12/31/14,PRESS ASSISTANT,"10,339.99",2014,"","","","SCAGNELLI,AUDREY"
,REPUBLICAN CONFERENCE,2014Q4,PERSONNEL COMPENSATION,"","SMENTEK,DAVID",10/01/14,12/31/14,POLICY COORDINATOR,"9,500.00",2014,"","","","SMENTEK,DAVID"
,REPUBLICAN CONFERENCE,2014Q4,PERSONNEL COMPENSATION,"","STEVENS,PAMELA R",10/01/14,12/31/14,DIRECTOR OF MEDIA AFFAIRS,"33,250.01",2014,"","","","STEVENS,PAMELA R"
,REPUBLICAN CONFERENCE,2014Q4,PERSONNEL COMPENSATION,"","SUNDAY,JESSICA M",10/01/14,12/31/14,SCHEDULER,"12,902.51",2014,"","","","SUNDAY,JESSICA M"
,REPUBLICAN CONFERENCE,2014Q4,PERSONNEL COMPENSATION,"","THORNE, DRAY A",12/15/14,12/31/14,SYSTEMS ADMINISTRATOR,"2,444.44",2014,"","","","THORNE, DRAY A"
,REPUBLICAN CONFERENCE,2014Q4,PERSONNEL COMPENSATION,"","WYCKOFF,SORELLE C",10/01/14,12/31/14,COMMUNICATIONS ASSISTANT,"10,214.99",2014,"","","","WYCKOFF,SORELLE C"
,REPUBLICAN CONFERENCE,2014Q4,TRAVEL,10-21,"STEVENS, PAMELA R",10/15/14,10/17/14,COMMERCIAL TRANSPORTATION,449.00,2014,AP,Accounts payable,E0207031,"STEVENS, PAMELA R"
,REPUBLICAN CONFERENCE,2014Q4,TRAVEL,10-21,"STEVENS, PAMELA R",10/15/14,10/16/14,LODGING,517.52,2014,AP,Accounts payable,E0207031,"STEVENS, PAMELA R"
,REPUBLICAN CONFERENCE,2014Q4,TRAVEL,10-21,"STEVENS, PAMELA R",09/04/14,09/04/14,TAXI/PARKING/TOLLS,15.00,2014,AP,Accounts payable,E0207057,"STEVENS, PAMELA R"
,REPUBLICAN CONFERENCE,2014Q4,TRAVEL,10-21,"STEVENS, PAMELA R",10/01/14,10/01/14,TAXI/PARKING/TOLLS,10.90,2014,AP,Accounts payable,E0207057,"STEVENS, PAMELA R"
,REPUBLICAN CONFERENCE,2014Q4,TRAVEL,10-21,"STEVENS, PAMELA R",10/05/14,10/05/14,TAXI/PARKING/TOLLS,34.00,2014,AP,Accounts payable,E0207057,"STEVENS, PAMELA R"
,REPUBLICAN CONFERENCE,2014Q4,TRAVEL,10-21,"STEVENS, PAMELA R",10/06/14,10/06/14,TAXI/PARKING/TOLLS,18.00,2014,AP,Accounts payable,E0207057,"STEVENS, PAMELA R"
,REPUBLICAN CONFERENCE,2014Q4,TRAVEL,10-21,"STEVENS, PAMELA R",10/15/14,10/15/14,TAXI/PARKING/TOLLS,25.50,2014,AP,Accounts payable,E0207057,"STEVENS, PAMELA R"
,REPUBLICAN CONFERENCE,2014Q4,TRAVEL,10-21,"STEVENS, PAMELA R",10/16/14,10/16/14,TAXI/PARKING/TOLLS,18.50,2014,AP,Accounts payable,E0207057,"STEVENS, PAMELA R"
,REPUBLICAN CONFERENCE,2014Q4,TRAVEL,12-05,"LITMAN, RIVA",12/04/14,12/04/14,TAXI/PARKING/TOLLS,21.00,2014,AP,Accounts payable,E0221645,"LITMAN, RIVA"
,REPUBLICAN CONFERENCE,2014Q4,TRAVEL,12-10,"STEVENS, PAMELA R",12/01/14,12/04/14,TAXI/PARKING/TOLLS,78.52,2014,AP,Accounts payable,E0222054,"STEVENS, PAMELA R"
,REPUBLICAN CONFERENCE,2014Q4,TRAVEL,12-15,"LITMAN, RIVA",12/09/14,12/09/14,TAXI/PARKING/TOLLS,30.00,2014,AP,Accounts payable,E0225542,"LITMAN, RIVA"
,REPUBLICAN CONFERENCE,2014Q4,TRAVEL,12-15,"STEVENS, PAMELA R",12/09/14,12/10/14,TAXI/PARKING/TOLLS,52.20,2014,AP,Accounts payable,E0225546,"STEVENS, PAMELA R"
,REPUBLICAN CONFERENCE,2014Q4,TRAVEL,12-18,"LITMAN, RIVA",12/11/14,12/11/14,TRAVEL SUBSISTENCE,12.11,2014,AP,Accounts payable,E0227581,"LITMAN, RIVA"
,REPUBLICAN CONFERENCE,2014Q4,TRAVEL,12-19,"LITMAN, RIVA",12/16/14,12/16/14,TAXI/PARKING/TOLLS,28.56,2014,AP,Accounts payable,E0228478,"LITMAN, RIVA"
,REPUBLICAN CONFERENCE,2014Q4,TRAVEL,12-19,"GILSON, LOUISA H",12/16/14,12/17/14,TAXI/PARKING/TOLLS,31.00,2014,AP,Accounts payable,E0228479,"GILSON, LOUISA H"
,REPUBLICAN CONFERENCE,2014Q4,TRAVEL,12-19,"STEVENS, PAMELA R",12/17/14,12/17/14,TAXI/PARKING/TOLLS,60.56,2014,AP,Accounts payable,E0228481,"STEVENS, PAMELA R"
,REPUBLICAN CONFERENCE,2014Q4,TRAVEL,12-22,"DEUTSCH,JEREMY",12/17/14,12/17/14,CAR RENTAL,"1,436.85",2014,AP,Accounts payable,E0228711,"DEUTSCH,JEREMY"
,REPUBLICAN CONFERENCE,2014Q4,TRAVEL,12-22,"GILSON, LOUISA H",10/31/14,12/18/14,PRIVATE AUTO MILEAGE,80.38,2014,AP,Accounts payable,E0229016,"GILSON, LOUISA H"
,REPUBLICAN CONFERENCE,2014Q4,TRAVEL,12-23,"REAGAN, AMANDA M",12/18/14,12/18/14,PRIVATE AUTO MILEAGE,157.92,2014,AP,Accounts payable,E0229512,"REAGAN, AMANDA M"
,REPUBLICAN CONFERENCE,2014Q4,OTHER SERVICES,10-02,ODONNELL & ASSOC LTD,09/01/14,09/30/14,TRAINING,"2,500.00",2014,AP,Accounts payable,E0201440,ODONNELL & ASSOC LTD
,REPUBLICAN CONFERENCE,2014Q4,OTHER SERVICES,11-04,ODONNELL & ASSOC LTD,10/01/14,10/31/14,TRAINING,"2,500.00",2014,AP,Accounts payable,E0211365,ODONNELL & ASSOC LTD
,REPUBLICAN CONFERENCE,2014Q4,OTHER SERVICES,12-03,ODONNELL & ASSOC LTD,11/01/14,11/30/14,TRAINING,"2,500.00",2014,AP,Accounts payable,E0220595,ODONNELL & ASSOC LTD
,REPUBLICAN CONFERENCE,2014Q4,SUPPLIES AND MATERIALS,10-01,CISION US INC,09/26/14,09/26/14,PUBLICATIONS/REFERENCE MAT'L,"4,600.13",2014,AP,Accounts payable,E0200284,CISION US INC
,REPUBLICAN CONFERENCE,2014Q4,SUPPLIES AND MATERIALS,10-03,CAPITOL HOST,09/16/14,09/16/14,FOOD & BEVERAGE,687.00,2014,AP,Accounts payable,E0201730,CAPITOL HOST
,REPUBLICAN CONFERENCE,2014Q4,SUPPLIES AND MATERIALS,10-07,CISION US INC,09/26/14,09/26/14,PUBLICATIONS/REFERENCE MAT'L,"-4,600.13",2014,AP,Accounts payable,00753536,CISION US INC
,REPUBLICAN CONFERENCE,2014Q4,SUPPLIES AND MATERIALS,10-15,HAGUE QUALITY WATER OF MD INC,10/02/14,10/31/14,WATER,138.00,2014,AP,Accounts payable,E0203848,HAGUE QUALITY WATER OF MD INC
,REPUBLICAN CONFERENCE,2014Q4,SUPPLIES AND MATERIALS,10-21,CITI PCARD-CHICK-FIL-A,08/29/14,09/28/14,FOOD & BEVERAGE,215.47,2014,AP,Accounts payable,00757962,CITI PCARD-CHICK-FIL-A
,REPUBLICAN CONFERENCE,2014Q4,SUPPLIES AND MATERIALS,10-21,CITI PCARD-DGS DELICATESSEN,08/29/14,09/28/14,FOOD & BEVERAGE,175.45,2014,AP,Accounts payable,00757962,CITI PCARD-DGS DELICATESSEN
,REPUBLICAN CONFERENCE,2014Q4,SUPPLIES AND MATERIALS,10-21,CITI PCARD-HARRIS TEETER,08/29/14,09/28/14,FOOD & BEVERAGE,21.15,2014,AP,Accounts payable,00757962,CITI PCARD-HARRIS TEETER
,REPUBLICAN CONFERENCE,2014Q4,SUPPLIES AND MATERIALS,10-21,CITI PCARD-NEW YORK TIMES DIGITAL,08/29/14,09/28/14,PUBLICATIONS/REFERENCE MAT'L,15.86,2014,AP,Accounts payable,00757962,CITI PCARD-NEW YORK TIMES DIGITAL
,REPUBLICAN CONFERENCE,2014Q4,SUPPLIES AND MATERIALS,10-21,CITI PCARD-POTBELLY,08/29/14,09/28/14,FOOD & BEVERAGE,258.39,2014,AP,Accounts payable,00757962,CITI PCARD-POTBELLY
,REPUBLICAN CONFERENCE,2014Q4,SUPPLIES AND MATERIALS,10-21,CITI PCARD-QDOBA MEXICAN GRIL,08/29/14,09/28/14,FOOD & BEVERAGE,338.01,2014,AP,Accounts payable,00757962,CITI PCARD-QDOBA MEXICAN GRIL
,REPUBLICAN CONFERENCE,2014Q4,SUPPLIES AND MATERIALS,10-21,CITI PCARD-STARBUCKS,08/29/14,09/28/14,FOOD & BEVERAGE,16.45,2014,AP,Accounts payable,00757962,CITI PCARD-STARBUCKS
,REPUBLICAN CONFERENCE,2014Q4,SUPPLIES AND MATERIALS,10-21,ARAMARK REFRESHMENT SERVICES,10/17/14,10/17/14,FOOD & BEVERAGE,307.06,2014,AP,Accounts payable,E0207056,ARAMARK REFRESHMENT SERVICES
,REPUBLICAN CONFERENCE,2014Q4,SUPPLIES AND MATERIALS,10-27,ARAMARK REFRESHMENT SERVICES,11/01/14,11/30/14,FOOD & BEVERAGE,109.98,2014,AP,Accounts payable,E0209045,ARAMARK REFRESHMENT SERVICES
,REPUBLICAN CONFERENCE,2014Q4,SUPPLIES AND MATERIALS,11-10,HAGUE QUALITY WATER OF MD INC,11/06/14,11/30/14,WATER,63.00,2014,AP,Accounts payable,E0213086,HAGUE QUALITY WATER OF MD INC
,REPUBLICAN CONFERENCE,2014Q4,SUPPLIES AND MATERIALS,11-12,"REAGAN, AMANDA M",11/10/14,11/10/14,FOOD & BEVERAGE,371.03,2014,AP,Accounts payable,E0213693,"REAGAN, AMANDA M"
,REPUBLICAN CONFERENCE,2014Q4,SUPPLIES AND MATERIALS,11-17,ARAMARK REFRESHMENT SERVICES,11/14/14,11/14/14,FOOD & BEVERAGE,283.68,2014,AP,Accounts payable,E0216048,ARAMARK REFRESHMENT SERVICES
,REPUBLICAN CONFERENCE,2014Q4,SUPPLIES AND MATERIALS,11-24,CITI PCARD-CHICK-FIL-A,10/01/14,10/28/14,FOOD & BEVERAGE,221.96,2014,AP,Accounts payable,00763079,CITI PCARD-CHICK-FIL-A
,REPUBLICAN CONFERENCE,2014Q4,SUPPLIES AND MATERIALS,11-24,CITI PCARD-NEW YORK TIMES DIGITAL,09/29/14,09/30/14,PUBLICATIONS/REFERENCE MAT'L,15.86,2014,AP,Accounts payable,00763079,CITI PCARD-NEW YORK TIMES DIGITAL
,REPUBLICAN CONFERENCE,2014Q4,SUPPLIES AND MATERIALS,11-24,CITI PCARD-NEW YORK TIMES DIGITAL,10/01/14,10/28/14,PUBLICATIONS/REFERENCE MAT'L,15.86,2014,AP,Accounts payable,00763079,CITI PCARD-NEW YORK TIMES DIGITAL
,REPUBLICAN CONFERENCE,2014Q4,SUPPLIES AND MATERIALS,11-24,ARAMARK REFRESHMENT SERVICES,11/04/14,11/04/14,FOOD & BEVERAGE,109.98,2014,AP,Accounts payable,E0218722,ARAMARK REFRESHMENT SERVICES
,REPUBLICAN CONFERENCE,2014Q4,SUPPLIES AND MATERIALS,11-25,"HODSON, NATHAN",11/14/14,11/14/14,FOOD & BEVERAGE,276.51,2014,AP,Accounts payable,E0219007,"HODSON, NATHAN"
,REPUBLICAN CONFERENCE,2014Q4,SUPPLIES AND MATERIALS,12-02,ARROWHEAD,08/31/14,08/31/14,WATER,89.90,2014,AP,Accounts payable,00763367,ARROWHEAD
,REPUBLICAN CONFERENCE,2014Q4,SUPPLIES AND MATERIALS,12-02,ARROWHEAD,08/31/14,08/31/14,WATER,177.79,2014,AP,Accounts payable,00763411,ARROWHEAD
,REPUBLICAN CONFERENCE,2014Q4,SUPPLIES AND MATERIALS,12-02,ARROWHEAD,09/30/14,09/30/14,WATER,185.82,2014,AP,Accounts payable,00763413,ARROWHEAD
,REPUBLICAN CONFERENCE,2014Q4,SUPPLIES AND MATERIALS,12-02,ARROWHEAD,10/31/14,10/31/14,WATER,106.85,2014,AP,Accounts payable,00763416,ARROWHEAD
,REPUBLICAN CONFERENCE,2014Q4,SUPPLIES AND MATERIALS,12-03,"HODSON, NATHAN",01/24/14,01/24/14,FOOD & BEVERAGE,286.00,2014,AP,Accounts payable,E0219855,"HODSON, NATHAN"
,REPUBLICAN CONFERENCE,2014Q4,SUPPLIES AND MATERIALS,12-09,RIDGEWELLS CATERING,11/18/14,11/18/14,FOOD & BEVERAGE,777.60,2014,AP,Accounts payable,E0223120,RIDGEWELLS CATERING
,REPUBLICAN CONFERENCE,2014Q4,SUPPLIES AND MATERIALS,12-10,HAGUE QUALITY WATER OF MD INC,12/01/14,12/31/14,WATER,63.00,2014,AP,Accounts payable,E0223115,HAGUE QUALITY WATER OF MD INC
,REPUBLICAN CONFERENCE,2014Q4,SUPPLIES AND MATERIALS,12-10,"HODSON, NATHAN",12/04/14,12/04/14,FOOD & BEVERAGE,517.50,2014,AP,Accounts payable,E0223117,"HODSON, NATHAN"
,REPUBLICAN CONFERENCE,2014Q4,SUPPLIES AND MATERIALS,12-10,RIDGEWELLS CATERING,11/13/14,11/13/14,FOOD & BEVERAGE,777.60,2014,AP,Accounts payable,E0223118,RIDGEWELLS CATERING
,REPUBLICAN CONFERENCE,2014Q4,SUPPLIES AND MATERIALS,12-10,RIDGEWELLS CATERING,11/13/14,11/13/14,FOOD & BEVERAGE,795.00,2014,AP,Accounts payable,E0223119,RIDGEWELLS CATERING
,REPUBLICAN CONFERENCE,2014Q4,SUPPLIES AND MATERIALS,12-10,RIDGEWELLS CATERING,11/19/14,11/19/14,FOOD & BEVERAGE,777.60,2014,AP,Accounts payable,E0223695,RIDGEWELLS CATERING
,REPUBLICAN CONFERENCE,2014Q4,SUPPLIES AND MATERIALS,12-10,"REAGAN, AMANDA M",12/09/14,12/09/14,FOOD & BEVERAGE,454.89,2014,AP,Accounts payable,E0223696,"REAGAN, AMANDA M"
,REPUBLICAN CONFERENCE,2014Q4,SUPPLIES AND MATERIALS,12-16,"GRAVES, JOEL D",12/10/14,12/10/14,FOOD & BEVERAGE,32.89,2014,AP,Accounts payable,E0225548,"GRAVES, JOEL D"
,REPUBLICAN CONFERENCE,2014Q4,SUPPLIES AND MATERIALS,12-16,TVEYES INC,03/01/15,02/28/17,PUBLICATIONS/REFERENCE MAT'L,"5,400.00",2014,AP,Accounts payable,E0226063,TVEYES INC
,REPUBLICAN CONFERENCE,2014Q4,SUPPLIES AND MATERIALS,12-18,ARAMARK REFRESHMENT SERVICES,12/12/14,12/12/14,FOOD & BEVERAGE,408.58,2014,AP,Accounts payable,E0227582,ARAMARK REFRESHMENT SERVICES
,REPUBLICAN CONFERENCE,2014Q4,SUPPLIES AND MATERIALS,12-18,ARAMARK REFRESHMENT SERVICES,12/12/14,12/12/14,FOOD & BEVERAGE,604.15,2014,AP,Accounts payable,E0227583,ARAMARK REFRESHMENT SERVICES
,REPUBLICAN CONFERENCE,2014Q4,SUPPLIES AND MATERIALS,12-22,"CITI PCARD-ADOBE SYSTEMS, INC",10/29/14,11/28/14,SOFTWARE LESS THAN $500,370.07,2014,AP,Accounts payable,00768172,"CITI PCARD-ADOBE SYSTEMS, INC"
,REPUBLICAN CONFERENCE,2014Q4,SUPPLIES AND MATERIALS,12-22,CITI PCARD-AMAZON MKTPLACE PMTS,10/29/14,11/28/14,FOOD & BEVERAGE,124.25,2014,AP,Accounts payable,00768172,CITI PCARD-AMAZON MKTPLACE PMTS
,REPUBLICAN CONFERENCE,2014Q4,SUPPLIES AND MATERIALS,12-22,CITI PCARD-BETHESDA BAGELS OF DUP,10/29/14,11/28/14,FOOD & BEVERAGE,339.75,2014,AP,Accounts payable,00768172,CITI PCARD-BETHESDA BAGELS OF DUP
,REPUBLICAN CONFERENCE,2014Q4,SUPPLIES AND MATERIALS,12-22,CITI PCARD-CHICK FIL A,10/29/14,11/28/14,FOOD & BEVERAGE,"1,918.58",2014,AP,Accounts payable,00768172,CITI PCARD-CHICK FIL A
,REPUBLICAN CONFERENCE,2014Q4,SUPPLIES AND MATERIALS,12-22,CITI PCARD-COSI,10/29/14,11/28/14,FOOD & BEVERAGE,143.48,2014,AP,Accounts payable,00768172,CITI PCARD-COSI
,REPUBLICAN CONFERENCE,2014Q4,SUPPLIES AND MATERIALS,12-22,CITI PCARD-NEW YORK TIMES DIGITAL,10/29/14,11/28/14,PUBLICATIONS/REFERENCE MAT'L,15.86,2014,AP,Accounts payable,00768172,CITI PCARD-NEW YORK TIMES DIGITAL
,REPUBLICAN CONFERENCE,2014Q4,SUPPLIES AND MATERIALS,12-22,CITI PCARD-POTBELLY,10/29/14,11/28/14,FOOD & BEVERAGE,188.30,2014,AP,Accounts payable,00768172,CITI PCARD-POTBELLY
,REPUBLICAN CONFERENCE,2014Q4,SUPPLIES AND MATERIALS,12-22,CITI PCARD-SUBWAY,10/29/14,11/28/14,FOOD & BEVERAGE,"1,601.60",2014,AP,Accounts payable,00768172,CITI PCARD-SUBWAY
,REPUBLICAN CONFERENCE,2014Q4,SUPPLIES AND MATERIALS,12-22,DOW JONES & COMPANY,01/26/15,01/25/16,PUBLICATIONS/REFERENCE MAT'L,"1,043.64",2014,AP,Accounts payable,E0225545,DOW JONES & COMPANY
,REPUBLICAN CONFERENCE,2014Q4,SUPPLIES AND MATERIALS,12-23,"REAGAN, AMANDA M",12/17/14,12/17/14,FOOD & BEVERAGE,579.32,2014,AP,Accounts payable,E0229949,"REAGAN, AMANDA M"
,REPUBLICAN CONFERENCE,2014Q4,SUPPLIES AND MATERIALS,12-23,ARAMARK REFRESHMENT SERVICES,12/04/14,12/04/14,FOOD & BEVERAGE,104.00,2014,AP,Accounts payable,E0229950,ARAMARK REFRESHMENT SERVICES
,REPUBLICAN CONFERENCE,2014Q4,SUPPLIES AND MATERIALS,12-31,RIDGEWELLS CATERING,12/10/14,12/10/14,FOOD & BEVERAGE,585.00,2014,AP,Accounts payable,E0231482,RIDGEWELLS CATERING
,CHIEF ADMIN OFCR OF THE HOUSE,2014Q4,PERSONNEL COMPENSATION,"","ABBOTT, JESSICA A",10/01/14,12/31/14,FINANCIAL ANALYST,"32,388.00",FISCAL YEAR 2015,"","","","ABBOTT, JESSICA A"
,CHIEF ADMIN OFCR OF THE HOUSE,2014Q4,PERSONNEL COMPENSATION,"","ABEL, TIMOTHY",10/01/14,12/31/14,SR TECHNICAL SUPPORT REP (A),"24,127.26",FISCAL YEAR 2015,"","","","ABEL, TIMOTHY"
,CHIEF ADMIN OFCR OF THE HOUSE,2014Q4,PERSONNEL COMPENSATION,"","ACUESTA,JULY J",10/01/14,12/31/14,SENIOR SYSTEMS ENGINEER,"27,197.76",FISCAL YEAR 2015,"","","","ACUESTA,JULY J"
,CHIEF ADMIN OFCR OF THE HOUSE,2014Q4,PERSONNEL COMPENSATION,"","ADDISON, TRACY",10/01/14,12/31/14,LOGISTICS & DIST SPEC (A),"11,683.26",FISCAL YEAR 2015,"","","","ADDISON, TRACY"
,CHIEF ADMIN OFCR OF THE HOUSE,2014Q4,PERSONNEL COMPENSATION,"","ADELAKUN, DEEN A",10/01/14,12/31/14,SR TECH SOLUTIONS ENGINEER,"22,776.51",FISCAL YEAR 2015,"","","","ADELAKUN, DEEN A"
,CHIEF ADMIN OFCR OF THE HOUSE,2014Q4,PERSONNEL COMPENSATION,"","AGEE, MATTHEW P",10/01/14,12/31/14,RESOURCE MANAGER,"30,896.09",FISCAL YEAR 2015,"","","","AGEE, MATTHEW P"
,CHIEF ADMIN OFCR OF THE HOUSE,2014Q4,PERSONNEL COMPENSATION,"","AGEE, TINA M",10/01/14,12/31/14,DIRECTOR PHOTOGRAPHY,"27,711.24",FISCAL YEAR 2015,"","","","AGEE, TINA M"
,CHIEF ADMIN OFCR OF THE HOUSE,2014Q4,PERSONNEL COMPENSATION,"","AGNEW, ROSE M",10/01/14,12/31/14,SR PAYROLL & BENS GENERALIST,"20,076.00",FISCAL YEAR 2015,"","","","AGNEW, ROSE M"
,CHIEF ADMIN OFCR OF THE HOUSE,2014Q4,PERSONNEL COMPENSATION,"","AGNEW, ROSE M",11/01/14,11/30/14,SR PAYROLL & BENS GENERALIST (OVERTIME),"1,206.48",FISCAL YEAR 2015,"","","","AGNEW, ROSE M"
,CHIEF ADMIN OFCR OF THE HOUSE,2014Q4,PERSONNEL COMPENSATION,"","AHUJA, KALPANA A",10/01/14,12/31/14,DIRECTOR WEB SYSTEMS,"32,417.01",FISCAL YEAR 2015,"","","","AHUJA, KALPANA A"
,CHIEF ADMIN OFCR OF THE HOUSE,2014Q4,PERSONNEL COMPENSATION,"","AKINSEGUN, PATRICIA A",10/01/14,12/31/14,TELEPHONE SYSTEMS CONSULTANT,"22,776.51",FISCAL YEAR 2015,"","","","AKINSEGUN, PATRICIA A"
,CHIEF ADMIN OFCR OF THE HOUSE,2014Q4,PERSONNEL COMPENSATION,"","ALEXANDER, GORDON",10/01/14,12/31/14,TECH SOLUTIONS ENGINEER,"18,304.74",FISCAL YEAR 2015,"","","","ALEXANDER, GORDON"
,CHIEF ADMIN OFCR OF THE HOUSE,2014Q4,PERSONNEL COMPENSATION,"","ALLISON, KEVIN M",10/01/14,12/31/14,LOGISTICS & DIST SPEC (A),"13,638.51",FISCAL YEAR 2015,"","","","ALLISON, KEVIN M"
,CHIEF ADMIN OFCR OF THE HOUSE,2014Q4,PERSONNEL COMPENSATION,"","ALLISON, KEVIN M",11/01/14,11/30/14,LOGISTICS & DIST SPEC (A) (OVERTIME),321.29,FISCAL YEAR 2015,"","","","ALLISON, KEVIN M"
,CHIEF ADMIN OFCR OF THE HOUSE,2014Q4,PERSONNEL COMPENSATION,"","ALSTON,MARK A",10/01/14,12/31/14,TECH SOLUTIONS ENGINEER,"17,913.00",FISCAL YEAR 2015,"","","","ALSTON,MARK A"
,CHIEF ADMIN OFCR OF THE HOUSE,2014Q4,PERSONNEL COMPENSATION,"","ALVEY, LISA M",10/01/14,12/31/14,FINANCIAL COUNSELOR,"20,883.75",FISCAL YEAR 2015,"","","","ALVEY, LISA M"
,CHIEF ADMIN OFCR OF THE HOUSE,2014Q4,PERSONNEL COMPENSATION,"","ANDERSEN, FREDERIC E",10/01/14,12/31/14,2ND ASST SUPERINTENDENT,"22,776.51",FISCAL YEAR 2015,"","","","ANDERSEN, FREDERIC E"
,CHIEF ADMIN OFCR OF THE HOUSE,2014Q4,PERSONNEL COMPENSATION,"","ANDERSON, DONTRELL",10/01/14,12/31/14,FINANCIAL COUNSELOR,"16,341.00",FISCAL YEAR 2015,"","","","ANDERSON, DONTRELL"
,CHIEF ADMIN OFCR OF THE HOUSE,2014Q4,PERSONNEL COMPENSATION,"","ANDREWS,THOMAS",10/01/14,12/31/14,VOICE & VIDEO BRANCH MGR (A),"34,277.76",FISCAL YEAR 2015,"","","","ANDREWS,THOMAS"
,CHIEF ADMIN OFCR OF THE HOUSE,2014Q4,PERSONNEL COMPENSATION,"","ANDREWS-MOBLEY, RACHELLE G",10/01/14,12/31/14,PRINCIPAL TECHNICAL TRAINER,"26,172.00",FISCAL YEAR 2015,"","","","ANDREWS-MOBLEY, RACHELLE G"
,CHIEF ADMIN OFCR OF THE HOUSE,2014Q4,PERSONNEL COMPENSATION,"","ANIMLEY,KINGSLEY T",10/01/14,12/31/14,PAYROLL & BENEFITS GENERALIST,"13,947.24",FISCAL YEAR 2015,"","","","ANIMLEY,KINGSLEY T"
,CHIEF ADMIN OFCR OF THE HOUSE,2014Q4,PERSONNEL COMPENSATION,"","ANIMLEY,KINGSLEY T",10/01/14,10/31/14,PAYROLL & BENEFITS GENERALIST (OVERTIME),13.41,FISCAL YEAR 2015,"","","","ANIMLEY,KINGSLEY T"
,CHIEF ADMIN OFCR OF THE HOUSE,2014Q4,PERSONNEL COMPENSATION,"","ARMSTRONG,JANCIERA C",10/01/14,12/31/14,"MANAGER, ACCOUNTING","26,687.01",FISCAL YEAR 2015,"","","","ARMSTRONG,JANCIERA C"
,CHIEF ADMIN OFCR OF THE HOUSE,2014Q4,PERSONNEL COMPENSATION,"","ARTHUR, CAMILLA S",10/01/14,12/31/14,ASSISTANT CAO,"40,583.26",FISCAL YEAR 2015,"","","","ARTHUR, CAMILLA S"
,CHIEF ADMIN OFCR OF THE HOUSE,2014Q4,PERSONNEL COMPENSATION,"","ATCHISON, DARRYL A",10/01/14,12/31/14,DEPUTY CHIEF ENGINEER,"31,269.75",FISCAL YEAR 2015,"","","","ATCHISON, DARRYL A"
,CHIEF ADMIN OFCR OF THE HOUSE,2014Q4,PERSONNEL COMPENSATION,"","AWAN, OMAR",10/01/14,12/31/14,SR BUSINESS PROCESS APPL SPEC,"36,133.26",FISCAL YEAR 2015,"","","","AWAN, OMAR"
,CHIEF ADMIN OFCR OF THE HOUSE,2014Q4,PERSONNEL COMPENSATION,"","BAHAM,TODD",10/01/14,12/31/14,BROADCAST PRODUCTION TECHNICIA,"19,301.76",FISCAL YEAR 2015,"","","","BAHAM,TODD"
,CHIEF ADMIN OFCR OF THE HOUSE,2014Q4,PERSONNEL COMPENSATION,"","BAHAM,TODD",11/01/14,11/30/14,BROADCAST PRODUCTION TECHNICIA (OVERTIME),296.95,FISCAL YEAR 2015,"","","","BAHAM,TODD"
,CHIEF ADMIN OFCR OF THE HOUSE,2014Q4,PERSONNEL COMPENSATION,"","BAILEY, DAVID E",10/01/14,12/31/14,SR TECHNICAL SUPPORT REP (A),"24,127.26",FISCAL YEAR 2015,"","","","BAILEY, DAVID E"
,CHIEF ADMIN OFCR OF THE HOUSE,2014Q4,PERSONNEL COMPENSATION,"","BAKER, DARRELL F",10/01/14,12/31/14,SENIOR NETWORK TECHNICIAN,"24,992.67",FISCAL YEAR 2015,"","","","BAKER, DARRELL F"
,CHIEF ADMIN OFCR OF THE HOUSE,2014Q4,PERSONNEL COMPENSATION,"","BANFIELD,KELLI C",10/01/14,12/31/14,BROADCAST ENGINEER/PROD SPEC,"21,426.99",FISCAL YEAR 2015,"","","","BANFIELD,KELLI C"
,CHIEF ADMIN OFCR OF THE HOUSE,2014Q4,PERSONNEL COMPENSATION,"","BANKS,BIANCA N",10/01/14,12/31/14,RETAIL INVENTORY SPECIALIST,"17,126.76",FISCAL YEAR 2015,"","","","BANKS,BIANCA N"
,CHIEF ADMIN OFCR OF THE HOUSE,2014Q4,PERSONNEL COMPENSATION,"","BARBEE, GLENN",10/01/14,12/31/14,NETWORK TECHNICIAN,"22,328.01",FISCAL YEAR 2015,"","","","BARBEE, GLENN"
,CHIEF ADMIN OFCR OF THE HOUSE,2014Q4,PERSONNEL COMPENSATION,"","BARBEE,DONELL G",10/01/14,12/31/14,RETAIL INVENTORY SPECIALIST,"10,196.76",FISCAL YEAR 2015,"","","","BARBEE,DONELL G"
,CHIEF ADMIN OFCR OF THE HOUSE,2014Q4,PERSONNEL COMPENSATION,"","BARBEE,DONELL G",11/01/14,11/30/14,RETAIL INVENTORY SPECIALIST (OVERTIME),19.61,FISCAL YEAR 2015,"","","","BARBEE,DONELL G"
,CHIEF ADMIN OFCR OF THE HOUSE,2014Q4,PERSONNEL COMPENSATION,"","BARBOUR, JUNE M",10/01/14,12/31/14,BROADCAST PRODUCTION TECHNICIA,"19,301.76",FISCAL YEAR 2015,"","","","BARBOUR, JUNE M"
,CHIEF ADMIN OFCR OF THE HOUSE,2014Q4,PERSONNEL COMPENSATION,"","BARCINIAK, DANA L",10/01/14,12/31/14,SENIOR PHOTOGRAPHER,"22,072.50",FISCAL YEAR 2015,"","","","BARCINIAK, DANA L"
,CHIEF ADMIN OFCR OF THE HOUSE,2014Q4,PERSONNEL COMPENSATION,"","BARCINIAK, DANA L",11/01/14,11/30/14,SENIOR PHOTOGRAPHER (OVERTIME),53.06,FISCAL YEAR 2015,"","","","BARCINIAK, DANA L"
,CHIEF ADMIN OFCR OF THE HOUSE,2014Q4,PERSONNEL COMPENSATION,"","BAREFOOT,JEFFREY",10/01/14,12/31/14,PRODUCTION/ENGINEER SPEC (TEMP,"6,698.95",FISCAL YEAR 2015,"","","","BAREFOOT,JEFFREY"
,CHIEF ADMIN OFCR OF THE HOUSE,2014Q4,PERSONNEL COMPENSATION,"","BARNABAE, MONICA M",10/01/14,12/31/14,DIRECTOR-HOUSE CHILD CARE CNTR,"27,197.76",FISCAL YEAR 2015,"","","","BARNABAE, MONICA M"
,CHIEF ADMIN OFCR OF THE HOUSE,2014Q4,PERSONNEL COMPENSATION,"","BARR,PAUL",10/01/14,12/31/14,RECEIVING/WAREHOUSE SPECIALIST,"11,895.24",FISCAL YEAR 2015,"","","","BARR,PAUL"
,CHIEF ADMIN OFCR OF THE HOUSE,2014Q4,PERSONNEL COMPENSATION,"","BARRETT, ROBERT R",10/01/14,11/30/14,"MANAGER, SUPPORT SYSTEMS","23,261.84",FISCAL YEAR 2015,"","","","BARRETT, ROBERT R"
,CHIEF ADMIN OFCR OF THE HOUSE,2014Q4,PERSONNEL COMPENSATION,"","BARRETT, ROBERT R",12/01/14,12/31/14,ACT DIR ENTERPRISE APP,"12,179.92",FISCAL YEAR 2015,"","","","BARRETT, ROBERT R"
,CHIEF ADMIN OFCR OF THE HOUSE,2014Q4,PERSONNEL COMPENSATION,"","BASILIO, TYRONE A",10/01/14,12/31/14,TECHNICAL SUPPORT REP,"19,697.49",FISCAL YEAR 2015,"","","","BASILIO, TYRONE A"
,CHIEF ADMIN OFCR OF THE HOUSE,2014Q4,PERSONNEL COMPENSATION,"","BATES, DEBORAH A",10/01/14,12/31/14,PRODUCTION/ENGINEER SPEC (TEMP,"7,409.45",FISCAL YEAR 2015,"","","","BATES, DEBORAH A"
,CHIEF ADMIN OFCR OF THE HOUSE,2014Q4,PERSONNEL COMPENSATION,"","BATH,GEORGE J",10/01/14,12/31/14,SENIOR ADVISOR,"42,102.75",FISCAL YEAR 2015,"","","","BATH,GEORGE J"
,CHIEF ADMIN OFCR OF THE HOUSE,2014Q4,PERSONNEL COMPENSATION,"","BEAUBIAN, TRACI R",10/01/14,12/31/14,CHIEF FINANCIAL OFFICER,"42,102.75",FISCAL YEAR 2015,"","","","BEAUBIAN, TRACI R"
,CHIEF ADMIN OFCR OF THE HOUSE,2014Q4,PERSONNEL COMPENSATION,"","BEIDEL, BERNARD E",10/01/14,12/31/14,"DIR, OFFICE OF EMPLOYEE ASSIST","42,102.75",FISCAL YEAR 2015,"","","","BEIDEL, BERNARD E"
,CHIEF ADMIN OFCR OF THE HOUSE,2014Q4,PERSONNEL COMPENSATION,"","BELL,FRANK E",10/01/14,12/31/14,SENIOR TECHNICAL ADVISOR,"33,451.58",FISCAL YEAR 2015,"","","","BELL,FRANK E"
,CHIEF ADMIN OFCR OF THE HOUSE,2014Q4,PERSONNEL COMPENSATION,"","BENN, PHILLIP F",10/01/14,12/31/14,ELECTRONICS TECHNICIAN (A),"23,228.49",FISCAL YEAR 2015,"","","","BENN, PHILLIP F"
,CHIEF ADMIN OFCR OF THE HOUSE,2014Q4,PERSONNEL COMPENSATION,"","BERGER, DONALD W",10/01/14,12/31/14,TECHNICAL DIRECTOR (A),"22,584.00",FISCAL YEAR 2015,"","","","BERGER, DONALD W"
,CHIEF ADMIN OFCR OF THE HOUSE,2014Q4,PERSONNEL COMPENSATION,"","BERGER, DONALD W",11/01/14,11/30/14,TECHNICAL DIRECTOR (A) (OVERTIME),32.57,FISCAL YEAR 2015,"","","","BERGER, DONALD W"
,CHIEF ADMIN OFCR OF THE HOUSE,2014Q4,PERSONNEL COMPENSATION,"","BERRY,JOSEPH B",10/01/14,12/31/14,SYSTEMS ENGINEER,"21,879.75",FISCAL YEAR 2015,"","","","BERRY,JOSEPH B"
,CHIEF ADMIN OFCR OF THE HOUSE,2014Q4,PERSONNEL COMPENSATION,"","BEST, CHARLENE",10/01/14,12/31/14,MANAGER,"23,941.50",FISCAL YEAR 2015,"","","","BEST, CHARLENE"
,CHIEF ADMIN OFCR OF THE HOUSE,2014Q4,PERSONNEL COMPENSATION,"","BETHEA,LASHON L",10/01/14,12/31/14,TECHNICAL TRAINER,"25,295.01",FISCAL YEAR 2015,"","","","BETHEA,LASHON L"
,CHIEF ADMIN OFCR OF THE HOUSE,2014Q4,PERSONNEL COMPENSATION,"","BILLARD, MICHAEL A",10/01/14,12/31/14,COMMUNICATIONS SPEC,"25,295.01",FISCAL YEAR 2015,"","","","BILLARD, MICHAEL A"
,CHIEF ADMIN OFCR OF THE HOUSE,2014Q4,PERSONNEL COMPENSATION,"","BILLUPS, BRIAN E",10/01/14,12/31/14,NETWORK TECHNICIAN (A),"19,697.49",FISCAL YEAR 2015,"","","","BILLUPS, BRIAN E"
,CHIEF ADMIN OFCR OF THE HOUSE,2014Q4,PERSONNEL COMPENSATION,"","BLAKNEY, HAROLD",10/01/14,12/31/14,SENIOR SYSTEMS ENGINEER,"37,371.24",FISCAL YEAR 2015,"","","","BLAKNEY, HAROLD"
,CHIEF ADMIN OFCR OF THE HOUSE,2014Q4,PERSONNEL COMPENSATION,"","BOGAN, DAVID S",10/01/14,12/31/14,"SUPERVISOR, RETAIL INVENTORY","19,697.49",FISCAL YEAR 2015,"","","","BOGAN, DAVID S"
,CHIEF ADMIN OFCR OF THE HOUSE,2014Q4,PERSONNEL COMPENSATION,"","BOGER, KELLY M",10/01/14,12/31/14,ACCOUNT MANAGEMENT COUNSELOR,"20,093.76",FISCAL YEAR 2015,"","","","BOGER, KELLY M"
,CHIEF ADMIN OFCR OF THE HOUSE,2014Q4,PERSONNEL COMPENSATION,"","BOGER, KELLY M",10/01/14,11/30/14,ACCOUNT MANAGEMENT COUNSELOR (OVERTIME),"3,690.26",FISCAL YEAR 2015,"","","","BOGER, KELLY M"
,CHIEF ADMIN OFCR OF THE HOUSE,2014Q4,PERSONNEL COMPENSATION,"","BOOKER, CARLOS",10/01/14,12/31/14,SALES SPECIALIST,"10,494.99",FISCAL YEAR 2015,"","","","BOOKER, CARLOS"
,CHIEF ADMIN OFCR OF THE HOUSE,2014Q4,PERSONNEL COMPENSATION,"","BOOKER, CARLOS",11/01/14,11/30/14,SALES SPECIALIST (OVERTIME),20.18,FISCAL YEAR 2015,"","","","BOOKER, CARLOS"
,CHIEF ADMIN OFCR OF THE HOUSE,2014Q4,PERSONNEL COMPENSATION,"","BOONE, RUSSELL",10/01/14,12/31/14,TECHNICAL SUPPORT REP,"22,072.50",FISCAL YEAR 2015,"","","","BOONE, RUSSELL"
,CHIEF ADMIN OFCR OF THE HOUSE,2014Q4,PERSONNEL COMPENSATION,"","BOWERS,KAREN L",10/01/14,12/31/14,FINANCIAL COUNSELOR,"19,301.76",FISCAL YEAR 2015,"","","","BOWERS,KAREN L"
,CHIEF ADMIN OFCR OF THE HOUSE,2014Q4,PERSONNEL COMPENSATION,"","BOWLDING, SONIA R",10/01/14,12/31/14,REC/WAREHOUSE SPEC (A),"11,386.74",FISCAL YEAR 2015,"","","","BOWLDING, SONIA R"
,CHIEF ADMIN OFCR OF THE HOUSE,2014Q4,PERSONNEL COMPENSATION,"","BOWLDING, SONIA R",11/01/14,11/30/14,REC/WAREHOUSE SPEC (A) (OVERTIME),125.91,FISCAL YEAR 2015,"","","","BOWLDING, SONIA R"
,CHIEF ADMIN OFCR OF THE HOUSE,2014Q4,PERSONNEL COMPENSATION,"","BOWLES, JAMES A",10/01/14,12/31/14,JOURNEYMAN FURNITURE SPEC,"19,877.25",FISCAL YEAR 2015,"","","","BOWLES, JAMES A"
,CHIEF ADMIN OFCR OF THE HOUSE,2014Q4,PERSONNEL COMPENSATION,"","BOWLING-STOKES,CHAUNETTE L",10/01/14,12/31/14,MANAGEMENT ANALYST,"23,941.50",FISCAL YEAR 2015,"","","","BOWLING-STOKES,CHAUNETTE L"
,CHIEF ADMIN OFCR OF THE HOUSE,2014Q4,PERSONNEL COMPENSATION,"","BOWMAN,SHELIA",10/01/14,12/31/14,FINANCIAL COUNSELOR,"16,734.99",FISCAL YEAR 2015,"","","","BOWMAN,SHELIA"
,CHIEF ADMIN OFCR OF THE HOUSE,2014Q4,PERSONNEL COMPENSATION,"","BOYD, KRISTIE N",10/01/14,11/21/14,PHOTOGRAPHER/LAB TECH (TEMP),"5,176.47",FISCAL YEAR 2015,"","","","BOYD, KRISTIE N"
,CHIEF ADMIN OFCR OF THE HOUSE,2014Q4,PERSONNEL COMPENSATION,"","BOYD, PETRINA",10/01/14,12/31/14,SALES SPECIALIST,"11,554.26",FISCAL YEAR 2015,"","","","BOYD, PETRINA"
,CHIEF ADMIN OFCR OF THE HOUSE,2014Q4,PERSONNEL COMPENSATION,"","BOYD, PETRINA",11/01/14,11/30/14,SALES SPECIALIST (OVERTIME),111.10,FISCAL YEAR 2015,"","","","BOYD, PETRINA"
,CHIEF ADMIN OFCR OF THE HOUSE,2014Q4,PERSONNEL COMPENSATION,"","BOYLE, KEVIN J",10/01/14,12/31/14,SR BUSINESS PROCESS APPL SPEC,"39,229.26",FISCAL YEAR 2015,"","","","BOYLE, KEVIN J"
,CHIEF ADMIN OFCR OF THE HOUSE,2014Q4,PERSONNEL COMPENSATION,"","BRACKENS, ROBERT",10/01/14,12/31/14,BROADCAST PRODUCTION TECHNICIA,"21,426.99",FISCAL YEAR 2015,"","","","BRACKENS, ROBERT"
,CHIEF ADMIN OFCR OF THE HOUSE,2014Q4,PERSONNEL COMPENSATION,"","BRACKENS, ROBERT",11/01/14,11/30/14,BROADCAST PRODUCTION TECHNICIA (OVERTIME),185.42,FISCAL YEAR 2015,"","","","BRACKENS, ROBERT"
,CHIEF ADMIN OFCR OF THE HOUSE,2014Q4,PERSONNEL COMPENSATION,"","BRADY,JOHN R",12/11/14,12/31/14,JOURNEYMAN TEXTILE SPEC,"2,643.39",FISCAL YEAR 2015,"","","","BRADY,JOHN R"
,CHIEF ADMIN OFCR OF THE HOUSE,2014Q4,PERSONNEL COMPENSATION,"","BRANCH,PAMELA J",10/01/14,11/30/14,"MANAGER, PAYROLL & BENEFITS","19,159.00",FISCAL YEAR 2015,"","","","BRANCH,PAMELA J"
,CHIEF ADMIN OFCR OF THE HOUSE,2014Q4,PERSONNEL COMPENSATION,"","BRANCH,PAMELA J",11/01/14,11/29/14,"MANAGER, PAYROLL & BENEFITS (OTHER COMPENSATION)",239.49,FISCAL YEAR 2015,"","","","BRANCH,PAMELA J"
,CHIEF ADMIN OFCR OF THE HOUSE,2014Q4,PERSONNEL COMPENSATION,"","BRAXTON, BRANDON A",10/01/14,12/31/14,LOGISTICS & DIST SPEC (A),"11,089.74",FISCAL YEAR 2015,"","","","BRAXTON, BRANDON A"
,CHIEF ADMIN OFCR OF THE HOUSE,2014Q4,PERSONNEL COMPENSATION,"","BREWSTER III,JAMES E",10/01/14,12/31/14,LOGISTICS & DIST SPEC (A),"9,347.76",FISCAL YEAR 2015,"","","","BREWSTER III,JAMES E"
,CHIEF ADMIN OFCR OF THE HOUSE,2014Q4,PERSONNEL COMPENSATION,"","BREWSTER III,JAMES E",11/01/14,11/30/14,LOGISTICS & DIST SPEC (A) (OVERTIME),103.36,FISCAL YEAR 2015,"","","","BREWSTER III,JAMES E"
,CHIEF ADMIN OFCR OF THE HOUSE,2014Q4,PERSONNEL COMPENSATION,"","BREWSTER,CHRISTOPHER A",10/01/14,12/31/14,ADMINISTRATIVE COUNSEL,"42,102.75",FISCAL YEAR 2015,"","","","BREWSTER,CHRISTOPHER A"
,CHIEF ADMIN OFCR OF THE HOUSE,2014Q4,PERSONNEL COMPENSATION,"","BRIDGEFORTH, TOINETTA A",10/01/14,12/31/14,CONTRACTS SPECIALIST,"22,477.51",FISCAL YEAR 2015,"","","","BRIDGEFORTH, TOINETTA A"
,CHIEF ADMIN OFCR OF THE HOUSE,2014Q4,PERSONNEL COMPENSATION,"","BRISCOE, KEVIN",10/01/14,12/31/14,LOGISTICS & DIST SPEC (A),"11,089.74",FISCAL YEAR 2015,"","","","BRISCOE, KEVIN"
,CHIEF ADMIN OFCR OF THE HOUSE,2014Q4,PERSONNEL COMPENSATION,"","BRISCOE, KEVIN",11/01/14,11/30/14,LOGISTICS & DIST SPEC (A) (OVERTIME),143.95,FISCAL YEAR 2015,"","","","BRISCOE, KEVIN"
,CHIEF ADMIN OFCR OF THE HOUSE,2014Q4,PERSONNEL COMPENSATION,"","BRITT,SHANNON W",10/01/14,12/31/14,SR HUMAN RESOURCES GENERALIST,"18,512.25",FISCAL YEAR 2015,"","","","BRITT,SHANNON W"
,CHIEF ADMIN OFCR OF THE HOUSE,2014Q4,PERSONNEL COMPENSATION,"","BROBBEY-MENSAH, KWAME",10/01/14,12/31/14,SR INFO SYST. SECURITY ANALYST,"28,738.50",FISCAL YEAR 2015,"","","","BROBBEY-MENSAH, KWAME"
,CHIEF ADMIN OFCR OF THE HOUSE,2014Q4,PERSONNEL COMPENSATION,"","BROWN SR, DEMETRICE T",10/01/14,12/31/14,SUPERVISOR,"26,857.26",FISCAL YEAR 2015,"","","","BROWN SR, DEMETRICE T"
,CHIEF ADMIN OFCR OF THE HOUSE,2014Q4,PERSONNEL COMPENSATION,"","BROWN, ANNETTE G",10/01/14,12/31/14,SR SOFTWARE ENGINEER,"26,648.25",FISCAL YEAR 2015,"","","","BROWN, ANNETTE G"
,CHIEF ADMIN OFCR OF THE HOUSE,2014Q4,PERSONNEL COMPENSATION,"","BROWN, KEITH S",10/01/14,12/31/14,REC/WAREHOUSE SPEC (A),"14,049.67",FISCAL YEAR 2015,"","","","BROWN, KEITH S"
,CHIEF ADMIN OFCR OF THE HOUSE,2014Q4,PERSONNEL COMPENSATION,"","BROWN, PAMELA L",10/01/14,12/31/14,CUSTOMER SOLUTIONS REP,"18,304.74",FISCAL YEAR 2015,"","","","BROWN, PAMELA L"
,CHIEF ADMIN OFCR OF THE HOUSE,2014Q4,PERSONNEL COMPENSATION,"","BROWN, PAMELA L",11/01/14,11/30/14,CUSTOMER SOLUTIONS REP. (OVERTIME),140.80,FISCAL YEAR 2015,"","","","BROWN, PAMELA L"
,CHIEF ADMIN OFCR OF THE HOUSE,2014Q4,PERSONNEL COMPENSATION,"","BROWN,DAVID D",10/01/14,12/31/14,FINANCIAL COUNSELOR,"16,341.00",FISCAL YEAR 2015,"","","","BROWN,DAVID D"
,CHIEF ADMIN OFCR OF THE HOUSE,2014Q4,PERSONNEL COMPENSATION,"","BROWN,JASON",10/01/14,12/31/14,BROADCAST PRODUCTION TECHNICIA,"19,038.26",FISCAL YEAR 2015,"","","","BROWN,JASON"
,CHIEF ADMIN OFCR OF THE HOUSE,2014Q4,PERSONNEL COMPENSATION,"","BROWN,KIMBERLY K",10/01/14,12/31/14,RESOURCE ANALYST,"15,033.48",FISCAL YEAR 2015,"","","","BROWN,KIMBERLY K"
,CHIEF ADMIN OFCR OF THE HOUSE,2014Q4,PERSONNEL COMPENSATION,"","BROWN,LAWRENCE",10/01/14,12/31/14,BROADCAST ENGINEER/PROD SPEC,"21,879.75",FISCAL YEAR 2015,"","","","BROWN,LAWRENCE"
,CHIEF ADMIN OFCR OF THE HOUSE,2014Q4,PERSONNEL COMPENSATION,"","BROWN,LAWRENCE",10/01/14,11/30/14,BROADCAST ENGINEER/PROD SPEC. (OVERTIME),978.27,FISCAL YEAR 2015,"","","","BROWN,LAWRENCE"
,CHIEF ADMIN OFCR OF THE HOUSE,2014Q4,PERSONNEL COMPENSATION,"","BRUMMELL,JENELLE L",10/01/14,12/31/14,PARALEGAL,"18,117.24",FISCAL YEAR 2015,"","","","BRUMMELL,JENELLE L"
,CHIEF ADMIN OFCR OF THE HOUSE,2014Q4,PERSONNEL COMPENSATION,"","BUCKLER, RICKY L",10/01/14,12/31/14,PURCHASING AGENT,"18,906.51",FISCAL YEAR 2015,"","","","BUCKLER, RICKY L"
,CHIEF ADMIN OFCR OF THE HOUSE,2014Q4,PERSONNEL COMPENSATION,"","BUCKLER, RICKY L",10/01/14,10/31/14,PURCHASING AGENT (OVERTIME),272.69,FISCAL YEAR 2015,"","","","BUCKLER, RICKY L"
,CHIEF ADMIN OFCR OF THE HOUSE,2014Q4,PERSONNEL COMPENSATION,"","BUCKLER, TROY D",10/01/14,12/31/14,PURCHASING AGENT,"16,328.76",FISCAL YEAR 2015,"","","","BUCKLER, TROY D"
,CHIEF ADMIN OFCR OF THE HOUSE,2014Q4,PERSONNEL COMPENSATION,"","BUFORD, MARCIA L",10/01/14,12/31/14,COMPUTER FAC OP SUPERVISOR,"26,648.25",FISCAL YEAR 2015,"","","","BUFORD, MARCIA L"
,CHIEF ADMIN OFCR OF THE HOUSE,2014Q4,PERSONNEL COMPENSATION,"","BURCH, KENNETH J",10/01/14,12/31/14,BUSINESS PROC APPLIC SPEC,"29,765.49",FISCAL YEAR 2015,"","","","BURCH, KENNETH J"
,CHIEF ADMIN OFCR OF THE HOUSE,2014Q4,PERSONNEL COMPENSATION,"","BUTLER, CLARENCE G",10/01/14,12/31/14,JOURNEYMAN FURNITURE SPEC,"15,645.99",FISCAL YEAR 2015,"","","","BUTLER, CLARENCE G"
,CHIEF ADMIN OFCR OF THE HOUSE,2014Q4,PERSONNEL COMPENSATION,"","BUTLER, JAMES F",10/01/14,12/31/14,PAYROLL & BENEFITS MANAGER,"25,746.51",FISCAL YEAR 2015,"","","","BUTLER, JAMES F"
,CHIEF ADMIN OFCR OF THE HOUSE,2014Q4,PERSONNEL COMPENSATION,"","CAIN, MOLLY J",10/01/14,12/31/14,5TH ASST SUPERINTENDENT,"15,645.99",FISCAL YEAR 2015,"","","","CAIN, MOLLY J"
,CHIEF ADMIN OFCR OF THE HOUSE,2014Q4,PERSONNEL COMPENSATION,"","CALLAWAY, ROBERT M",10/01/14,12/31/14,SR BROADCAST ENG./PROD SPEC,"24,091.67",FISCAL YEAR 2015,"","","","CALLAWAY, ROBERT M"
,CHIEF ADMIN OFCR OF THE HOUSE,2014Q4,PERSONNEL COMPENSATION,"","CANNON, DREW",10/01/14,12/31/14,4TH ASST SUPERINTENDENT,"17,913.00",FISCAL YEAR 2015,"","","","CANNON, DREW"
,CHIEF ADMIN OFCR OF THE HOUSE,2014Q4,PERSONNEL COMPENSATION,"","CANNON,SUSANNAH",10/01/14,12/31/14,CUSTOMER SOLUTIONS REP,"13,936.50",FISCAL YEAR 2015,"","","","CANNON,SUSANNAH"
,CHIEF ADMIN OFCR OF THE HOUSE,2014Q4,PERSONNEL COMPENSATION,"","CARCAMO, ALICIA L",10/01/14,12/31/14,ACCOUNTING TECHNICIAN,"18,880.11",FISCAL YEAR 2015,"","","","CARCAMO, ALICIA L"
,CHIEF ADMIN OFCR OF THE HOUSE,2014Q4,PERSONNEL COMPENSATION,"","CARNNIA,CASEY",10/01/14,12/31/14,INTERNET SYSTEMS SPECIALIST,"19,697.49",FISCAL YEAR 2015,"","","","CARNNIA,CASEY"
,CHIEF ADMIN OFCR OF THE HOUSE,2014Q4,PERSONNEL COMPENSATION,"","CARR, JOSH D",10/01/14,12/31/14,SENIOR SYSTEMS ENGINEER,"25,295.01",FISCAL YEAR 2015,"","","","CARR, JOSH D"
,CHIEF ADMIN OFCR OF THE HOUSE,2014Q4,PERSONNEL COMPENSATION,"","CARRICO, RONALD",10/01/14,12/31/14,SR BUSINESS PROCESS APPL SPEC,"36,753.00",FISCAL YEAR 2015,"","","","CARRICO, RONALD"
,CHIEF ADMIN OFCR OF THE HOUSE,2014Q4,PERSONNEL COMPENSATION,"","CARSON,LAWRENCE T",10/01/14,12/31/14,SALES SPECIALIST,"10,196.76",FISCAL YEAR 2015,"","","","CARSON,LAWRENCE T"
,CHIEF ADMIN OFCR OF THE HOUSE,2014Q4,PERSONNEL COMPENSATION,"","CARSON,LAWRENCE T",11/01/14,11/30/14,SALES SPECIALIST (OVERTIME),27.06,FISCAL YEAR 2015,"","","","CARSON,LAWRENCE T"
,CHIEF ADMIN OFCR OF THE HOUSE,2014Q4,PERSONNEL COMPENSATION,"","CARTER JR, JOHN L",10/01/14,12/31/14,"MANAGER, FINISHING","25,025.01",FISCAL YEAR 2015,"","","","CARTER JR, JOHN L"
,CHIEF ADMIN OFCR OF THE HOUSE,2014Q4,PERSONNEL COMPENSATION,"","CARTER,DELISA D",10/01/14,12/31/14,SR. SOFTWARE SPECIALIST,"35,512.26",FISCAL YEAR 2015,"","","","CARTER,DELISA D"
,CHIEF ADMIN OFCR OF THE HOUSE,2014Q4,PERSONNEL COMPENSATION,"","CASSIDY, ED",10/01/14,12/31/14,CHIEF ADMINISTRATIVE OFFICER,"43,125.00",FISCAL YEAR 2015,"","","","CASSIDY, ED"
,CHIEF ADMIN OFCR OF THE HOUSE,2014Q4,PERSONNEL COMPENSATION,"","CAULK, ANDREW T",10/01/14,12/31/14,SUPERVISOR,"24,392.01",FISCAL YEAR 2015,"","","","CAULK, ANDREW T"
,CHIEF ADMIN OFCR OF THE HOUSE,2014Q4,PERSONNEL COMPENSATION,"","CHABOT, ELLIOT C",10/01/14,12/31/14,SR SYSTEMS ANALYST,"32,331.00",FISCAL YEAR 2015,"","","","CHABOT, ELLIOT C"
,CHIEF ADMIN OFCR OF THE HOUSE,2014Q4,PERSONNEL COMPENSATION,"","CHAMBERS, KEVIN N",10/01/14,12/31/14,SR CUSTOMER SOLUTIONS REP,"20,489.01",FISCAL YEAR 2015,"","","","CHAMBERS, KEVIN N"
,CHIEF ADMIN OFCR OF THE HOUSE,2014Q4,PERSONNEL COMPENSATION,"","CHAMBERS, KEVIN N",10/01/14,11/30/14,SR CUSTOMER SOLUTIONS REP. (OVERTIME),"1,260.85",FISCAL YEAR 2015,"","","","CHAMBERS, KEVIN N"
,CHIEF ADMIN OFCR OF THE HOUSE,2014Q4,PERSONNEL COMPENSATION,"","CHAMBERS,KEVINA D",10/01/14,12/31/14,ACCOUNTING TECHNICIAN,"12,577.74",FISCAL YEAR 2015,"","","","CHAMBERS,KEVINA D"
,CHIEF ADMIN OFCR OF THE HOUSE,2014Q4,PERSONNEL COMPENSATION,"","CHANG, SU-HWA",10/01/14,12/31/14,SENIOR SYSTEMS ENGINEER,"31,301.76",FISCAL YEAR 2015,"","","","CHANG, SU-HWA"
,CHIEF ADMIN OFCR OF THE HOUSE,2014Q4,PERSONNEL COMPENSATION,"","CHEN, SUSAN",10/01/14,12/31/14,FINANCIAL COUNSELOR,"16,341.00",FISCAL YEAR 2015,"","","","CHEN, SUSAN"
,CHIEF ADMIN OFCR OF THE HOUSE,2014Q4,PERSONNEL COMPENSATION,"","CICALE, MICHAEL P",10/01/14,12/31/14,SR CUSTOMER SOLUTIONS REP,"19,092.24",FISCAL YEAR 2015,"","","","CICALE, MICHAEL P"
,CHIEF ADMIN OFCR OF THE HOUSE,2014Q4,PERSONNEL COMPENSATION,"","CLAGGETT, TIMOTHY A",10/01/14,12/31/14,JOURNEYMAN TEXTILE SPEC,"19,092.24",FISCAL YEAR 2015,"","","","CLAGGETT, TIMOTHY A"
,CHIEF ADMIN OFCR OF THE HOUSE,2014Q4,PERSONNEL COMPENSATION,"","CLARK, MARION",10/01/14,12/31/14,SR TELECOMMUNICATIONS ADMIN,"17,913.00",FISCAL YEAR 2015,"","","","CLARK, MARION"
,CHIEF ADMIN OFCR OF THE HOUSE,2014Q4,PERSONNEL COMPENSATION,"","CLARKE, JOHN P",10/01/14,12/31/14,SUPERVISOR,"21,879.75",FISCAL YEAR 2015,"","","","CLARKE, JOHN P"
,CHIEF ADMIN OFCR OF THE HOUSE,2014Q4,PERSONNEL COMPENSATION,"","COAKLEY,KRISTEN J",10/01/14,12/31/14,SR TELECOMMUNICATIONS ADMIN,"16,734.99",FISCAL YEAR 2015,"","","","COAKLEY,KRISTEN J"
,CHIEF ADMIN OFCR OF THE HOUSE,2014Q4,PERSONNEL COMPENSATION,"","COBB, FAYE C",10/01/14,12/31/14,"DIR, BUDGET, POLICY & PLANNING","38,975.76",FISCAL YEAR 2015,"","","","COBB, FAYE C"
,CHIEF ADMIN OFCR OF THE HOUSE,2014Q4,PERSONNEL COMPENSATION,"","COLBERT, RAY C",10/01/14,12/31/14,SR BROADCAST ENG/PROD SPECLST,"23,790.50",FISCAL YEAR 2015,"","","","COLBERT, RAY C"
,CHIEF ADMIN OFCR OF THE HOUSE,2014Q4,PERSONNEL COMPENSATION,"","COLBERT, RAY C",11/01/14,11/30/14,SR BROADCAST ENG/PROD SPECLST (OVERTIME),34.53,FISCAL YEAR 2015,"","","","COLBERT, RAY C"
,CHIEF ADMIN OFCR OF THE HOUSE,2014Q4,PERSONNEL COMPENSATION,"","COLLINS, JOHN B",10/01/14,12/31/14,BROADCAST PRODUCTION TECHNICIA,"23,679.24",FISCAL YEAR 2015,"","","","COLLINS, JOHN B"
,CHIEF ADMIN OFCR OF THE HOUSE,2014Q4,PERSONNEL COMPENSATION,"","COLLINS, JOHN B",11/01/14,11/30/14,BROADCAST PRODUCTION TECHNICIA (OVERTIME),443.98,FISCAL YEAR 2015,"","","","COLLINS, JOHN B"
,CHIEF ADMIN OFCR OF THE HOUSE,2014Q4,PERSONNEL COMPENSATION,"","COLLINS,JOEL",10/01/14,12/31/14,SR INTERNET SYSTEMS SPECIALIST,"30,338.08",FISCAL YEAR 2015,"","","","COLLINS,JOEL"
,CHIEF ADMIN OFCR OF THE HOUSE,2014Q4,PERSONNEL COMPENSATION,"","CONNOLLY,ERIC",10/01/14,12/31/14,PHOTOGRAPHER,"14,967.51",FISCAL YEAR 2015,"","","","CONNOLLY,ERIC"
,CHIEF ADMIN OFCR OF THE HOUSE,2014Q4,PERSONNEL COMPENSATION,"","CONNOLLY,ERIC",11/01/14,11/30/14,PHOTOGRAPHER (OVERTIME),143.92,FISCAL YEAR 2015,"","","","CONNOLLY,ERIC"
,CHIEF ADMIN OFCR OF THE HOUSE,2014Q4,PERSONNEL COMPENSATION,"","COOK, ERIC H",10/01/14,12/31/14,NETWORK TECHNICIAN,"20,489.01",FISCAL YEAR 2015,"","","","COOK, ERIC H"
,CHIEF ADMIN OFCR OF THE HOUSE,2014Q4,PERSONNEL COMPENSATION,"","COOPER, RICHARD S",10/01/14,12/31/14,STAFF ACCOUNTANT (A),"25,295.01",FISCAL YEAR 2015,"","","","COOPER, RICHARD S"
,CHIEF ADMIN OFCR OF THE HOUSE,2014Q4,PERSONNEL COMPENSATION,"","CORNEJO, LUIS E",10/01/14,12/31/14,SENIOR SYSTEMS ENGINEER,"26,199.24",FISCAL YEAR 2015,"","","","CORNEJO, LUIS E"
,CHIEF ADMIN OFCR OF THE HOUSE,2014Q4,PERSONNEL COMPENSATION,"","COX, BRIDGET A",10/01/14,12/31/14,SENIOR SYSTEMS ANALYST,"29,765.49",FISCAL YEAR 2015,"","","","COX, BRIDGET A"
,CHIEF ADMIN OFCR OF THE HOUSE,2014Q4,PERSONNEL COMPENSATION,"","COYNE III, THOMAS E",10/01/14,12/31/14,ASSISTANT CAO,"42,102.75",FISCAL YEAR 2015,"","","","COYNE III, THOMAS E"
,CHIEF ADMIN OFCR OF THE HOUSE,2014Q4,PERSONNEL COMPENSATION,"","CRUDUP III, WILLIAM D",10/01/14,12/31/14,LOGISTICS & DIST SPEC (A),"12,448.50",FISCAL YEAR 2015,"","","","CRUDUP III, WILLIAM D"
,CHIEF ADMIN OFCR OF THE HOUSE,2014Q4,PERSONNEL COMPENSATION,"","CRUDUP III, WILLIAM D",11/01/14,11/30/14,LOGISTICS & DIST SPEC (A) (OVERTIME),143.63,FISCAL YEAR 2015,"","","","CRUDUP III, WILLIAM D"
,CHIEF ADMIN OFCR OF THE HOUSE,2014Q4,PERSONNEL COMPENSATION,"","CUFF,LOREN D",10/01/14,12/31/14,INTERNET SYSTEMS SPECIALIST,"19,697.49",FISCAL YEAR 2015,"","","","CUFF,LOREN D"
,CHIEF ADMIN OFCR OF THE HOUSE,2014Q4,PERSONNEL COMPENSATION,"","CUFFEY, LAWRENCE",10/01/14,12/31/14,SR RECVNG AND WAREHOUSING SPEC,"18,027.00",FISCAL YEAR 2015,"","","","CUFFEY, LAWRENCE"
,CHIEF ADMIN OFCR OF THE HOUSE,2014Q4,PERSONNEL COMPENSATION,"","CUFFEY, LAWRENCE",11/01/14,11/30/14,SR RECVNG AND WAREHOUSING SPEC (OVERTIME),60.67,FISCAL YEAR 2015,"","","","CUFFEY, LAWRENCE"
,CHIEF ADMIN OFCR OF THE HOUSE,2014Q4,PERSONNEL COMPENSATION,"","CUPRILL, CARLOS",10/01/14,12/31/14,SR TECHNICAL SUPPORT REP,"22,776.51",FISCAL YEAR 2015,"","","","CUPRILL, CARLOS"
,CHIEF ADMIN OFCR OF THE HOUSE,2014Q4,PERSONNEL COMPENSATION,"","CUTLER JR, BENJAMIN S",10/01/14,12/31/14,PAYROLL & BENEFITS ASSISTANT,"15,645.99",FISCAL YEAR 2015,"","","","CUTLER JR, BENJAMIN S"
,CHIEF ADMIN OFCR OF THE HOUSE,2014Q4,PERSONNEL COMPENSATION,"","CUTLER JR, BENJAMIN S",11/01/14,11/30/14,PAYROLL & BENEFITS ASSISTANT (OVERTIME),195.57,FISCAL YEAR 2015,"","","","CUTLER JR, BENJAMIN S"
,CHIEF ADMIN OFCR OF THE HOUSE,2014Q4,PERSONNEL COMPENSATION,"","DAHL,RYAN S",10/01/14,12/31/14,MEDIA LOGISTICS COORDINATOR,"15,307.26",FISCAL YEAR 2015,"","","","DAHL,RYAN S"
,CHIEF ADMIN OFCR OF THE HOUSE,2014Q4,PERSONNEL COMPENSATION,"","DAHLSTROM, DARREN",10/01/14,12/31/14,JOURNEYMAN FURNITURE SPEC,"19,877.25",FISCAL YEAR 2015,"","","","DAHLSTROM, DARREN"
,CHIEF ADMIN OFCR OF THE HOUSE,2014Q4,PERSONNEL COMPENSATION,"","DAS, SATYENDRA K",10/01/14,11/30/14,BUSINESS PROC APPLIC SPEC,"10,429.26",FISCAL YEAR 2015,"","","","DAS, SATYENDRA K"
,CHIEF ADMIN OFCR OF THE HOUSE,2014Q4,PERSONNEL COMPENSATION,"","DAS, SATYENDRA K",11/01/14,11/30/14,BUSINESS PROC APPLIC SPEC (OTHER COMPENSATION),"10,092.83",FISCAL YEAR 2015,"","","","DAS, SATYENDRA K"
,CHIEF ADMIN OFCR OF THE HOUSE,2014Q4,PERSONNEL COMPENSATION,"","DAVENPORT,KAREN V",10/01/14,12/31/14,FINANCIAL ANALYST,"22,328.01",FISCAL YEAR 2015,"","","","DAVENPORT,KAREN V"
,CHIEF ADMIN OFCR OF THE HOUSE,2014Q4,PERSONNEL COMPENSATION,"","DAVIS, JOHN J",10/01/14,12/31/14,BROADCAST PRODUCTION TECHNICIA,"22,776.51",FISCAL YEAR 2015,"","","","DAVIS, JOHN J"
,CHIEF ADMIN OFCR OF THE HOUSE,2014Q4,PERSONNEL COMPENSATION,"","DAVIS, STACHIA G",10/01/14,12/31/14,DIR MOD FURN & TRANSITION,"27,711.24",FISCAL YEAR 2015,"","","","DAVIS, STACHIA G"
,CHIEF ADMIN OFCR OF THE HOUSE,2014Q4,PERSONNEL COMPENSATION,"","DAVIS,SCOTT K",10/01/14,12/31/14,PAYROLL & BENEFITS GENERALIST,"16,734.99",FISCAL YEAR 2015,"","","","DAVIS,SCOTT K"
,CHIEF ADMIN OFCR OF THE HOUSE,2014Q4,PERSONNEL COMPENSATION,"","DAVIS,SCOTT K",11/01/14,11/30/14,PAYROLL & BENEFITS GENERALIST (OVERTIME),289.64,FISCAL YEAR 2015,"","","","DAVIS,SCOTT K"
,CHIEF ADMIN OFCR OF THE HOUSE,2014Q4,PERSONNEL COMPENSATION,"","DAWKINS, JOANN",10/01/14,12/31/14,SR TELECOMM ADMIN,"16,670.25",FISCAL YEAR 2015,"","","","DAWKINS, JOANN"
,CHIEF ADMIN OFCR OF THE HOUSE,2014Q4,PERSONNEL COMPENSATION,"","DEAN, JOSEPH M",10/01/14,12/31/14,JOURNEYMAN TEXTILE SPEC,"20,489.01",FISCAL YEAR 2015,"","","","DEAN, JOSEPH M"
,CHIEF ADMIN OFCR OF THE HOUSE,2014Q4,PERSONNEL COMPENSATION,"","DEAN, JOSEPH M",10/01/14,11/30/14,JOURNEYMAN TEXTILE SPEC (OVERTIME),965.34,FISCAL YEAR 2015,"","","","DEAN, JOSEPH M"
,CHIEF ADMIN OFCR OF THE HOUSE,2014Q4,PERSONNEL COMPENSATION,"","DEAVER,JAMES",10/01/14,12/31/14,SENIOR SYSTEMS ENGINEER,"32,388.00",FISCAL YEAR 2015,"","","","DEAVER,JAMES"
,CHIEF ADMIN OFCR OF THE HOUSE,2014Q4,PERSONNEL COMPENSATION,"","DELISLE,KALDON A",10/01/14,12/31/14,JOURNEYMAN FURNITURE SPEC,"14,289.51",FISCAL YEAR 2015,"","","","DELISLE,KALDON A"
,CHIEF ADMIN OFCR OF THE HOUSE,2014Q4,PERSONNEL COMPENSATION,"","DELUCA, ALAN",10/01/14,12/31/14,COMPUTER FACILITIES OP MGR (A),"35,512.26",FISCAL YEAR 2015,"","","","DELUCA, ALAN"
,CHIEF ADMIN OFCR OF THE HOUSE,2014Q4,PERSONNEL COMPENSATION,"","DENT,RICHARD H",10/01/14,12/31/14,JOURNEYMAN TEXTILE SPEC,"12,914.25",FISCAL YEAR 2015,"","","","DENT,RICHARD H"
,CHIEF ADMIN OFCR OF THE HOUSE,2014Q4,PERSONNEL COMPENSATION,"","DERRICK, SCOTT",10/01/14,12/31/14,GRAPHICS & DESKTOP PUBL SPEC,"23,228.49",FISCAL YEAR 2015,"","","","DERRICK, SCOTT"
,CHIEF ADMIN OFCR OF THE HOUSE,2014Q4,PERSONNEL COMPENSATION,"","DICKIE, JAMES",10/01/14,12/31/14,ENGINEERING OPS MANAGER,"30,709.26",FISCAL YEAR 2015,"","","","DICKIE, JAMES"
,CHIEF ADMIN OFCR OF THE HOUSE,2014Q4,PERSONNEL COMPENSATION,"","DIEFFENDERFER, GARY L",10/01/14,12/31/14,SR. APPLICATION DBA SPECIALIST,"32,388.00",FISCAL YEAR 2015,"","","","DIEFFENDERFER, GARY L"
,CHIEF ADMIN OFCR OF THE HOUSE,2014Q4,PERSONNEL COMPENSATION,"","DOBBINS, MARK",10/01/14,12/31/14,"MANAGER, PURCHASING","23,679.24",FISCAL YEAR 2015,"","","","DOBBINS, MARK"
,CHIEF ADMIN OFCR OF THE HOUSE,2014Q4,PERSONNEL COMPENSATION,"","DOODY,ERICA",10/01/14,12/31/14,ADMINISTRATIVE SPECIALIST,"11,106.58",FISCAL YEAR 2015,"","","","DOODY,ERICA"
,CHIEF ADMIN OFCR OF THE HOUSE,2014Q4,PERSONNEL COMPENSATION,"","DOOLEY,GENEVA",10/01/14,12/31/14,SENIOR SOFTWARE SPECIALIST,"32,388.00",FISCAL YEAR 2015,"","","","DOOLEY,GENEVA"
,CHIEF ADMIN OFCR OF THE HOUSE,2014Q4,PERSONNEL COMPENSATION,"","DOZIER, BRIAN A",10/01/14,12/31/14,INVENTORY ADMINISTRATOR,"15,307.26",FISCAL YEAR 2015,"","","","DOZIER, BRIAN A"
,CHIEF ADMIN OFCR OF THE HOUSE,2014Q4,PERSONNEL COMPENSATION,"","DUENAS, JOSEPH E",10/01/14,12/31/14,TECHNICAL SUPPORT REP,"18,906.51",FISCAL YEAR 2015,"","","","DUENAS, JOSEPH E"
,CHIEF ADMIN OFCR OF THE HOUSE,2014Q4,PERSONNEL COMPENSATION,"","DUNKLIN, KELDA Y",10/01/14,12/31/14,SR TECHNICAL SUPPORT REP,"26,648.25",FISCAL YEAR 2015,"","","","DUNKLIN, KELDA Y"
,CHIEF ADMIN OFCR OF THE HOUSE,2014Q4,PERSONNEL COMPENSATION,"","DURAN, ROLANDO",10/01/14,12/31/14,ELECTRONICS TECHNICIAN (A),"22,627.01",FISCAL YEAR 2015,"","","","DURAN, ROLANDO"
,CHIEF ADMIN OFCR OF THE HOUSE,2014Q4,PERSONNEL COMPENSATION,"","EGERSON, TROY H",10/01/14,12/31/14,JOURNEYMAN TEXTILE SPEC,"18,698.49",FISCAL YEAR 2015,"","","","EGERSON, TROY H"
,CHIEF ADMIN OFCR OF THE HOUSE,2014Q4,PERSONNEL COMPENSATION,"","ELIAS, ANDREW C",10/01/14,12/31/14,DEPUTY DIRECTOR,"29,765.49",FISCAL YEAR 2015,"","","","ELIAS, ANDREW C"
,CHIEF ADMIN OFCR OF THE HOUSE,2014Q4,PERSONNEL COMPENSATION,"","ELLIN, JAMES B",10/01/14,12/31/14,SR NETWORK SYSTEMS ENGINEER,"30,152.49",FISCAL YEAR 2015,"","","","ELLIN, JAMES B"
,CHIEF ADMIN OFCR OF THE HOUSE,2014Q4,PERSONNEL COMPENSATION,"","ELLIOTT, RONALD",10/01/14,12/31/14,SR INFO SYST. SECURITY ANALYST,"25,295.01",FISCAL YEAR 2015,"","","","ELLIOTT, RONALD"
,CHIEF ADMIN OFCR OF THE HOUSE,2014Q4,PERSONNEL COMPENSATION,"","ELLIS,FRANKLIN M",10/01/14,12/31/14,SR SYSTEMS SUPPORT ENGINEER,"22,584.00",FISCAL YEAR 2015,"","","","ELLIS,FRANKLIN M"
,CHIEF ADMIN OFCR OF THE HOUSE,2014Q4,PERSONNEL COMPENSATION,"","ELLIS-GREGG, SHARON",10/01/14,12/31/14,PAYROLL & BENEFITS ASSISTANT,"14,276.01",FISCAL YEAR 2015,"","","","ELLIS-GREGG, SHARON"
,CHIEF ADMIN OFCR OF THE HOUSE,2014Q4,PERSONNEL COMPENSATION,"","ELLIS-GREGG, SHARON",11/01/14,11/30/14,PAYROLL & BENEFITS ASSISTANT (OVERTIME),144.13,FISCAL YEAR 2015,"","","","ELLIS-GREGG, SHARON"
,CHIEF ADMIN OFCR OF THE HOUSE,2014Q4,PERSONNEL COMPENSATION,"","ELLIS-JONES, DEBORAH",10/01/14,12/31/14,ADMIN-FINANCE & PAYROLL,"23,488.50",FISCAL YEAR 2015,"","","","ELLIS-JONES, DEBORAH"
,CHIEF ADMIN OFCR OF THE HOUSE,2014Q4,PERSONNEL COMPENSATION,"","EMAMALI, NICOLE S",10/01/14,12/31/14,SR TECHNICAL SUPPORT REP,"27,711.24",FISCAL YEAR 2015,"","","","EMAMALI, NICOLE S"
,CHIEF ADMIN OFCR OF THE HOUSE,2014Q4,PERSONNEL COMPENSATION,"","ENGLISH IV, JAMES H",10/01/14,12/31/14,JOURNEYMAN FURNITURE SPEC,"13,606.74",FISCAL YEAR 2015,"","","","ENGLISH IV, JAMES H"
,CHIEF ADMIN OFCR OF THE HOUSE,2014Q4,PERSONNEL COMPENSATION,"","ENGLISH, JOSEPH H",10/01/14,12/31/14,MOBILE COMM SPECIALIST (DATA),"25,746.51",FISCAL YEAR 2015,"","","","ENGLISH, JOSEPH H"
,CHIEF ADMIN OFCR OF THE HOUSE,2014Q4,PERSONNEL COMPENSATION,"","ERVING, JAMES H",10/01/14,12/31/14,COMMUNICATIONS SPECIALIST,"26,648.25",FISCAL YEAR 2015,"","","","ERVING, JAMES H"
,CHIEF ADMIN OFCR OF THE HOUSE,2014Q4,PERSONNEL COMPENSATION,"","ETCHISON,CHERYL A",10/01/14,12/31/14,"MANAGER, PAYROLL & BENEFITS","29,034.24",FISCAL YEAR 2015,"","","","ETCHISON,CHERYL A"
,CHIEF ADMIN OFCR OF THE HOUSE,2014Q4,PERSONNEL COMPENSATION,"","EVANS JR, WILLIAM R",10/01/14,12/31/14,ELECTRONICS TECHNICIAN (A),"22,776.51",FISCAL YEAR 2015,"","","","EVANS JR, WILLIAM R"
,CHIEF ADMIN OFCR OF THE HOUSE,2014Q4,PERSONNEL COMPENSATION,"","EVANS JR, WILLIAM R",10/01/14,11/30/14,ELECTRONICS TECHNICIAN (A) (OVERTIME),865.06,FISCAL YEAR 2015,"","","","EVANS JR, WILLIAM R"
,CHIEF ADMIN OFCR OF THE HOUSE,2014Q4,PERSONNEL COMPENSATION,"","EVANS,THOMAS F",10/01/14,12/31/14,INFO SYSTEMS SECURITY ANALYST,"23,037.00",FISCAL YEAR 2015,"","","","EVANS,THOMAS F"
,CHIEF ADMIN OFCR OF THE HOUSE,2014Q4,PERSONNEL COMPENSATION,"","EWERS, GRETCHEN",10/01/14,12/31/14,MANAGER,"26,648.25",FISCAL YEAR 2015,"","","","EWERS, GRETCHEN"
,CHIEF ADMIN OFCR OF THE HOUSE,2014Q4,PERSONNEL COMPENSATION,"","EWING JR, JOHN C",10/01/14,12/31/14,RECEIVING/WAREHOUSE SPECIALIST,"11,089.74",FISCAL YEAR 2015,"","","","EWING JR, JOHN C"
,CHIEF ADMIN OFCR OF THE HOUSE,2014Q4,PERSONNEL COMPENSATION,"","FARLEY, JOANN I",10/01/14,12/31/14,FINANCIAL COUNSELOR,"17,913.00",FISCAL YEAR 2015,"","","","FARLEY, JOANN I"
,CHIEF ADMIN OFCR OF THE HOUSE,2014Q4,PERSONNEL COMPENSATION,"","FISHER, JEROME",10/01/14,12/31/14,SR TECH SOLUTIONS ENGINEER,"24,841.50",FISCAL YEAR 2015,"","","","FISHER, JEROME"
,CHIEF ADMIN OFCR OF THE HOUSE,2014Q4,PERSONNEL COMPENSATION,"","FONTNEAU, BRUCE",10/01/14,12/31/14,SYSTEMS ENGINEER,"23,790.50",FISCAL YEAR 2015,"","","","FONTNEAU, BRUCE"
,CHIEF ADMIN OFCR OF THE HOUSE,2014Q4,PERSONNEL COMPENSATION,"","FORD, DARIN J",10/01/14,12/31/14,SR TECHNICAL SUPPORT REP (A),"22,776.51",FISCAL YEAR 2015,"","","","FORD, DARIN J"
,CHIEF ADMIN OFCR OF THE HOUSE,2014Q4,PERSONNEL COMPENSATION,"","FORGIONE, JOHN A",10/01/14,12/31/14,SR CUSTOMER SOLUTIONS REP,"19,092.24",FISCAL YEAR 2015,"","","","FORGIONE, JOHN A"
,CHIEF ADMIN OFCR OF THE HOUSE,2014Q4,PERSONNEL COMPENSATION,"","FOSTER, CHARLES J",10/01/14,12/31/14,PAYROLL & BENEFITS ASSISTANT,"14,276.01",FISCAL YEAR 2015,"","","","FOSTER, CHARLES J"
,CHIEF ADMIN OFCR OF THE HOUSE,2014Q4,PERSONNEL COMPENSATION,"","FOSTER, CHARLES J",11/01/14,11/30/14,PAYROLL & BENEFITS ASSISTANT (OVERTIME),123.54,FISCAL YEAR 2015,"","","","FOSTER, CHARLES J"
,CHIEF ADMIN OFCR OF THE HOUSE,2014Q4,PERSONNEL COMPENSATION,"","FOUNTAIN,ANIKA",10/01/14,12/31/14,TECH SOLUTIONS TECHNICIAN,"17,913.00",FISCAL YEAR 2015,"","","","FOUNTAIN,ANIKA"
,CHIEF ADMIN OFCR OF THE HOUSE,2014Q4,PERSONNEL COMPENSATION,"","FRANK, DEBBIE",10/01/14,12/31/14,SR EA COUNSELOR,"28,458.24",FISCAL YEAR 2015,"","","","FRANK, DEBBIE"
,CHIEF ADMIN OFCR OF THE HOUSE,2014Q4,PERSONNEL COMPENSATION,"","FRAVEL,DON J",10/01/14,12/31/14,TECH SOLUTIONS TECHNICIAN,"17,517.75",FISCAL YEAR 2015,"","","","FRAVEL,DON J"
,CHIEF ADMIN OFCR OF THE HOUSE,2014Q4,PERSONNEL COMPENSATION,"","FRECH, JASON L",10/01/14,12/31/14,SR SYSTEMS ENGINEER,"26,515.34",FISCAL YEAR 2015,"","","","FRECH, JASON L"
,CHIEF ADMIN OFCR OF THE HOUSE,2014Q4,PERSONNEL COMPENSATION,"","FREEMAN, ANTOINETTE P",10/01/14,12/31/14,ADMINISTRATIVE SPECIALIST,"14,955.24",FISCAL YEAR 2015,"","","","FREEMAN, ANTOINETTE P"
,CHIEF ADMIN OFCR OF THE HOUSE,2014Q4,PERSONNEL COMPENSATION,"","FREENEY, MALCOLM",10/01/14,12/31/14,PROJECT MANAGER,"26,199.24",FISCAL YEAR 2015,"","","","FREENEY, MALCOLM"
,CHIEF ADMIN OFCR OF THE HOUSE,2014Q4,PERSONNEL COMPENSATION,"","FRENCH, CAROL",10/01/14,10/31/14,PAYROLL & BENEFITS GENERALIST,"6,101.58",FISCAL YEAR 2015,"","","","FRENCH, CAROL"
,CHIEF ADMIN OFCR OF THE HOUSE,2014Q4,PERSONNEL COMPENSATION,"","FRENCH, CHARLES",10/01/14,12/31/14,SENIOR NETWORK TECHNICIAN,"25,295.01",FISCAL YEAR 2015,"","","","FRENCH, CHARLES"
,CHIEF ADMIN OFCR OF THE HOUSE,2014Q4,PERSONNEL COMPENSATION,"","FRITZ,ERIC D",10/01/14,12/31/14,SENIOR SYSTEMS ENGINEER,"27,197.76",FISCAL YEAR 2015,"","","","FRITZ,ERIC D"
,CHIEF ADMIN OFCR OF THE HOUSE,2014Q4,PERSONNEL COMPENSATION,"","GAINES, JULIA W",10/01/14,12/31/14,SPECIAL ASSISTANT (A),"25,926.24",FISCAL YEAR 2015,"","","","GAINES, JULIA W"
,CHIEF ADMIN OFCR OF THE HOUSE,2014Q4,PERSONNEL COMPENSATION,"","GALLAGHER, RENEE",10/01/14,12/31/14,SR INFO SYST. SECURITY ANALYST,"25,746.51",FISCAL YEAR 2015,"","","","GALLAGHER, RENEE"
,CHIEF ADMIN OFCR OF THE HOUSE,2014Q4,PERSONNEL COMPENSATION,"","GALLAGHER,RYAN S",10/01/14,12/31/14,PAYROLL & BENEFITS GENERALIST,"14,289.51",FISCAL YEAR 2015,"","","","GALLAGHER,RYAN S"
,CHIEF ADMIN OFCR OF THE HOUSE,2014Q4,PERSONNEL COMPENSATION,"","GARAY, GERMAN",10/01/14,12/31/14,BROADCAST PRODUCTION TECHNICIA,"22,776.51",FISCAL YEAR 2015,"","","","GARAY, GERMAN"
,CHIEF ADMIN OFCR OF THE HOUSE,2014Q4,PERSONNEL COMPENSATION,"","GARAY, GERMAN",11/01/14,11/30/14,BROADCAST PRODUCTION TECHNICIA (OVERTIME),558.46,FISCAL YEAR 2015,"","","","GARAY, GERMAN"
,CHIEF ADMIN OFCR OF THE HOUSE,2014Q4,PERSONNEL COMPENSATION,"","GARCIA, JOHN",10/01/14,12/31/14,JOURNEYMAN FURNITURE SPEC,"13,606.74",FISCAL YEAR 2015,"","","","GARCIA, JOHN"
,CHIEF ADMIN OFCR OF THE HOUSE,2014Q4,PERSONNEL COMPENSATION,"","GASKINS, JAMES R",10/01/14,12/31/14,BRANCH MANAGER,"32,388.00",FISCAL YEAR 2015,"","","","GASKINS, JAMES R"
,CHIEF ADMIN OFCR OF THE HOUSE,2014Q4,PERSONNEL COMPENSATION,"","GATES, TRENA F",10/01/14,12/31/14,FINANCIAL COUNSELOR,"20,883.75",FISCAL YEAR 2015,"","","","GATES, TRENA F"
,CHIEF ADMIN OFCR OF THE HOUSE,2014Q4,PERSONNEL COMPENSATION,"","GATES,COREY M",10/01/14,12/31/14,JOURNEYMAN TEXTILE SPEC,"13,254.75",FISCAL YEAR 2015,"","","","GATES,COREY M"
,CHIEF ADMIN OFCR OF THE HOUSE,2014Q4,PERSONNEL COMPENSATION,"","GATES,COREY M",10/01/14,11/30/14,JOURNEYMAN TEXTILE SPEC (OVERTIME),834.79,FISCAL YEAR 2015,"","","","GATES,COREY M"
,CHIEF ADMIN OFCR OF THE HOUSE,2014Q4,PERSONNEL COMPENSATION,"","GATES,THOMAS D",10/01/14,12/31/14,SENIOR SYSTEMS ENGINEER,"23,941.50",FISCAL YEAR 2015,"","","","GATES,THOMAS D"
,CHIEF ADMIN OFCR OF THE HOUSE,2014Q4,PERSONNEL COMPENSATION,"","GEPERT,DARLA M",10/01/14,12/31/14,ADMINISTRATIVE SPECIALIST (A),"12,914.25",FISCAL YEAR 2015,"","","","GEPERT,DARLA M"
,CHIEF ADMIN OFCR OF THE HOUSE,2014Q4,PERSONNEL COMPENSATION,"","GERARDEN,PAUL J",10/01/14,12/31/14,CUSTOMER SOLUTIONS REP,"13,708.50",FISCAL YEAR 2015,"","","","GERARDEN,PAUL J"
,CHIEF ADMIN OFCR OF THE HOUSE,2014Q4,PERSONNEL COMPENSATION,"","GERARDEN,PAUL J",11/01/14,11/30/14,CUSTOMER SOLUTIONS REP. (OVERTIME),156.86,FISCAL YEAR 2015,"","","","GERARDEN,PAUL J"
,CHIEF ADMIN OFCR OF THE HOUSE,2014Q4,PERSONNEL COMPENSATION,"","GILLIS,DANIEL",10/01/14,12/31/14,ADA AIDE,"6,908.07",FISCAL YEAR 2015,"","","","GILLIS,DANIEL"
,CHIEF ADMIN OFCR OF THE HOUSE,2014Q4,PERSONNEL COMPENSATION,"","GILLIS,DANIEL",10/01/14,11/30/14,ADA AIDE (OVERTIME),"9,066.75",FISCAL YEAR 2015,"","","","GILLIS,DANIEL"
,CHIEF ADMIN OFCR OF THE HOUSE,2014Q4,PERSONNEL COMPENSATION,"","GIZARA, MICHAEL P",10/01/14,12/31/14,SR APPLICATION SECURITY ANALYS,"29,765.49",FISCAL YEAR 2015,"","","","GIZARA, MICHAEL P"
,CHIEF ADMIN OFCR OF THE HOUSE,2014Q4,PERSONNEL COMPENSATION,"","GOGGINS II, JAMES D",10/01/14,12/31/14,NETWORK COMM SPECIALIST (A),"22,776.51",FISCAL YEAR 2015,"","","","GOGGINS II, JAMES D"
,CHIEF ADMIN OFCR OF THE HOUSE,2014Q4,PERSONNEL COMPENSATION,"","GOLDSBOROUGH-LEE, ANGEL M",10/01/14,12/31/14,"DIR, TECH MGT & INTERNAL CTRLS","34,892.76",FISCAL YEAR 2015,"","","","GOLDSBOROUGH-LEE, ANGEL M"
,CHIEF ADMIN OFCR OF THE HOUSE,2014Q4,PERSONNEL COMPENSATION,"","GONZALEZ, ROSARIO D",10/01/14,12/31/14,SR CUSTOMER SOLUTIONS REP,"20,093.76",FISCAL YEAR 2015,"","","","GONZALEZ, ROSARIO D"
,CHIEF ADMIN OFCR OF THE HOUSE,2014Q4,PERSONNEL COMPENSATION,"","GOODIN,EMILY L",10/01/14,12/31/14,SENIOR COMMUNICATIONS SPEC,"17,312.04",FISCAL YEAR 2015,"","","","GOODIN,EMILY L"
,CHIEF ADMIN OFCR OF THE HOUSE,2014Q4,PERSONNEL COMPENSATION,"","GOODMAN,JESSICA L",10/01/14,12/31/14,PAYROLL & BENEFITS GENERALIST,"13,947.24",FISCAL YEAR 2015,"","","","GOODMAN,JESSICA L"
,CHIEF ADMIN OFCR OF THE HOUSE,2014Q4,PERSONNEL COMPENSATION,"","GOODMAN,JESSICA L",11/01/14,11/30/14,PAYROLL & BENEFITS GENERALIST (OVERTIME),576.66,FISCAL YEAR 2015,"","","","GOODMAN,JESSICA L"
,CHIEF ADMIN OFCR OF THE HOUSE,2014Q4,PERSONNEL COMPENSATION,"","GOULD, MICHAEL",10/01/14,12/31/14,"MANAGER, REMEDY MANAGEMENT","30,338.08",FISCAL YEAR 2015,"","","","GOULD, MICHAEL"
,CHIEF ADMIN OFCR OF THE HOUSE,2014Q4,PERSONNEL COMPENSATION,"","GRAEUB, ANDREW C",10/01/14,12/31/14,"MANAGER, NETWORK SYST ENGINEER","34,277.76",FISCAL YEAR 2015,"","","","GRAEUB, ANDREW C"
,CHIEF ADMIN OFCR OF THE HOUSE,2014Q4,PERSONNEL COMPENSATION,"","GRECO,JACQUELINE M",10/01/14,12/31/14,FINANCIAL ASSISTANT,"10,564.42",FISCAL YEAR 2015,"","","","GRECO,JACQUELINE M"
,CHIEF ADMIN OFCR OF THE HOUSE,2014Q4,PERSONNEL COMPENSATION,"","GREEN, CAROLINE",10/01/14,12/31/14,TECHNICAL SUPPORT REP (A),"17,913.00",FISCAL YEAR 2015,"","","","GREEN, CAROLINE"
,CHIEF ADMIN OFCR OF THE HOUSE,2014Q4,PERSONNEL COMPENSATION,"","GREEN, MITCHELL",10/01/14,12/31/14,CONTRACT ADMINISTRATOR,"32,388.00",FISCAL YEAR 2015,"","","","GREEN, MITCHELL"
,CHIEF ADMIN OFCR OF THE HOUSE,2014Q4,PERSONNEL COMPENSATION,"","GREENE, CHANTEL T",10/01/14,12/31/14,MGR BUS SYS AND INTEGRATION,"35,512.26",FISCAL YEAR 2015,"","","","GREENE, CHANTEL T"
,CHIEF ADMIN OFCR OF THE HOUSE,2014Q4,PERSONNEL COMPENSATION,"","GRIGGS,KYLE R",10/01/14,12/31/14,CONTRACTS SPECIALIST,"20,076.00",FISCAL YEAR 2015,"","","","GRIGGS,KYLE R"
,CHIEF ADMIN OFCR OF THE HOUSE,2014Q4,PERSONNEL COMPENSATION,"","GRISWOLD,RAYMOND",10/01/14,12/31/14,"DIRECTOR, ACQ & CONTRACT MGMT","34,277.76",FISCAL YEAR 2015,"","","","GRISWOLD,RAYMOND"
,CHIEF ADMIN OFCR OF THE HOUSE,2014Q4,PERSONNEL COMPENSATION,"","GRONSKI,ROBERT S",10/01/14,12/31/14,SR BUSINESS PROCESS APPL SPEC,"30,152.49",FISCAL YEAR 2015,"","","","GRONSKI,ROBERT S"
,CHIEF ADMIN OFCR OF THE HOUSE,2014Q4,PERSONNEL COMPENSATION,"","GUARNERO,DAVID P",10/01/14,12/31/14,PAYROLL & BENEFITS GENERALIST,"16,209.67",FISCAL YEAR 2015,"","","","GUARNERO,DAVID P"
,CHIEF ADMIN OFCR OF THE HOUSE,2014Q4,PERSONNEL COMPENSATION,"","GUARNERO,DAVID P",11/01/14,11/30/14,PAYROLL & BENEFITS GENERALIST (OVERTIME),212.12,FISCAL YEAR 2015,"","","","GUARNERO,DAVID P"
,CHIEF ADMIN OFCR OF THE HOUSE,2014Q4,PERSONNEL COMPENSATION,"","GUDURU,PRATAP K",10/01/14,12/31/14,SENIOR SYSTEMS ENGINEER,"31,827.75",FISCAL YEAR 2015,"","","","GUDURU,PRATAP K"
,CHIEF ADMIN OFCR OF THE HOUSE,2014Q4,PERSONNEL COMPENSATION,"","GUGLIOTTA,NORMAN",10/01/14,12/31/14,FINANCIAL COUNSELOR (A),"16,734.99",FISCAL YEAR 2015,"","","","GUGLIOTTA,NORMAN"
,CHIEF ADMIN OFCR OF THE HOUSE,2014Q4,PERSONNEL COMPENSATION,"","GUGLIOTTA,NORMAN",11/01/14,11/30/14,FINANCIAL COUNSELOR (A) (OVERTIME),128.73,FISCAL YEAR 2015,"","","","GUGLIOTTA,NORMAN"
,CHIEF ADMIN OFCR OF THE HOUSE,2014Q4,PERSONNEL COMPENSATION,"","HALL,MORGAN",10/01/14,12/31/14,FACILITIES MANAGEMENT SPECIALI,"17,126.76",FISCAL YEAR 2015,"","","","HALL,MORGAN"
,CHIEF ADMIN OFCR OF THE HOUSE,2014Q4,PERSONNEL COMPENSATION,"","HAMBRIC, STEEN H",10/01/14,12/31/14,ASSISTANT CAO,"42,102.75",FISCAL YEAR 2015,"","","","HAMBRIC, STEEN H"
,CHIEF ADMIN OFCR OF THE HOUSE,2014Q4,PERSONNEL COMPENSATION,"","HAMEL,RYAN T",10/01/14,12/31/14,THIRD ASSISTANT,"16,734.99",FISCAL YEAR 2015,"","","","HAMEL,RYAN T"
,CHIEF ADMIN OFCR OF THE HOUSE,2014Q4,PERSONNEL COMPENSATION,"","HAMNER, PHILIP D",10/01/14,12/31/14,"DIRECTOR, ACCOUNTING","36,753.00",FISCAL YEAR 2015,"","","","HAMNER, PHILIP D"
,CHIEF ADMIN OFCR OF THE HOUSE,2014Q4,PERSONNEL COMPENSATION,"","HANEY, WINSTON",10/01/14,12/31/14,ACCOUNT MANAGEMENT COUNSELOR,"14,276.01",FISCAL YEAR 2015,"","","","HANEY, WINSTON"
,CHIEF ADMIN OFCR OF THE HOUSE,2014Q4,PERSONNEL COMPENSATION,"","HANEY, WINSTON",11/01/14,11/30/14,ACCOUNT MANAGEMENT COUNSELOR (OVERTIME),164.72,FISCAL YEAR 2015,"","","","HANEY, WINSTON"
,CHIEF ADMIN OFCR OF THE HOUSE,2014Q4,PERSONNEL COMPENSATION,"","HANONU, TINA M",10/01/14,12/31/14,ASSISTANT CAO,"42,102.75",FISCAL YEAR 2015,"","","","HANONU, TINA M"
,CHIEF ADMIN OFCR OF THE HOUSE,2014Q4,PERSONNEL COMPENSATION,"","HAQ,RABIA",10/01/14,12/31/14,BUSINESS PROC APPLIC SPEC,"23,941.50",FISCAL YEAR 2015,"","","","HAQ,RABIA"
,CHIEF ADMIN OFCR OF THE HOUSE,2014Q4,PERSONNEL COMPENSATION,"","HARGROVE, BRIAN",10/01/14,12/31/14,LOGISTICS & DIST SPEC (A),"10,494.99",FISCAL YEAR 2015,"","","","HARGROVE, BRIAN"
,CHIEF ADMIN OFCR OF THE HOUSE,2014Q4,PERSONNEL COMPENSATION,"","HARGROVE, BRIAN",11/01/14,11/30/14,LOGISTICS & DIST SPEC (A) (OVERTIME),136.23,FISCAL YEAR 2015,"","","","HARGROVE, BRIAN"
,CHIEF ADMIN OFCR OF THE HOUSE,2014Q4,PERSONNEL COMPENSATION,"","HARRELL,VICKIE",10/01/14,12/31/14,NETWORK TECHNICIAN,"22,776.51",FISCAL YEAR 2015,"","","","HARRELL,VICKIE"
,CHIEF ADMIN OFCR OF THE HOUSE,2014Q4,PERSONNEL COMPENSATION,"","HARRINGTON, KEITH",10/01/14,12/31/14,FINANCIAL COUNSELOR,"22,865.76",FISCAL YEAR 2015,"","","","HARRINGTON, KEITH"
,CHIEF ADMIN OFCR OF THE HOUSE,2014Q4,PERSONNEL COMPENSATION,"","HARRIS, DONALD",10/01/14,12/31/14,SR NETWORK COMM SPECIALIST,"28,738.50",FISCAL YEAR 2015,"","","","HARRIS, DONALD"
,CHIEF ADMIN OFCR OF THE HOUSE,2014Q4,PERSONNEL COMPENSATION,"","HARRIS, KEVIN",10/01/14,12/31/14,JOURNEYMAN FURNITURE SPEC,"19,877.25",FISCAL YEAR 2015,"","","","HARRIS, KEVIN"
,CHIEF ADMIN OFCR OF THE HOUSE,2014Q4,PERSONNEL COMPENSATION,"","HARRIS, KEVIN",10/01/14,10/31/14,JOURNEYMAN FURNITURE SPEC. (OVERTIME),305.80,FISCAL YEAR 2015,"","","","HARRIS, KEVIN"
,CHIEF ADMIN OFCR OF THE HOUSE,2014Q4,PERSONNEL COMPENSATION,"","HARRIS, STEPHANIE A",10/01/14,12/31/14,SR BUSINESS PROC APPL SPEC II,"42,102.75",FISCAL YEAR 2015,"","","","HARRIS, STEPHANIE A"
,CHIEF ADMIN OFCR OF THE HOUSE,2014Q4,PERSONNEL COMPENSATION,"","HARVEY, JAMIE",10/01/14,12/31/14,SR TELECOMMUNICATIONS ADMIN (A,"16,670.25",FISCAL YEAR 2015,"","","","HARVEY, JAMIE"
,CHIEF ADMIN OFCR OF THE HOUSE,2014Q4,PERSONNEL COMPENSATION,"","HARVEY,KINSEY B",10/01/14,12/31/14,MEDIA LOGISTICS COORDINATOR,"16,472.33",FISCAL YEAR 2015,"","","","HARVEY,KINSEY B"
,CHIEF ADMIN OFCR OF THE HOUSE,2014Q4,PERSONNEL COMPENSATION,"","HAYES,KATHLEEN M",10/01/14,12/31/14,CUSTOMER SOLUTIONS REP,"14,626.50",FISCAL YEAR 2015,"","","","HAYES,KATHLEEN M"
,CHIEF ADMIN OFCR OF THE HOUSE,2014Q4,PERSONNEL COMPENSATION,"","HAYES,KATHLEEN M",11/01/14,11/30/14,CUSTOMER SOLUTIONS REP. (OVERTIME),168.77,FISCAL YEAR 2015,"","","","HAYES,KATHLEEN M"
,CHIEF ADMIN OFCR OF THE HOUSE,2014Q4,PERSONNEL COMPENSATION,"","HAYES,MICHELLE P",10/01/14,12/31/14,SENIOR SYSTEMS ENGINEER,"31,827.75",FISCAL YEAR 2015,"","","","HAYES,MICHELLE P"
,CHIEF ADMIN OFCR OF THE HOUSE,2014Q4,PERSONNEL COMPENSATION,"","HEEB III, JOHN J",10/01/14,12/31/14,SR BUSINESS PROCESS APPL SPEC,"34,066.74",FISCAL YEAR 2015,"","","","HEEB III, JOHN J"
,CHIEF ADMIN OFCR OF THE HOUSE,2014Q4,PERSONNEL COMPENSATION,"","HERBERT, GREGORY L",10/01/14,12/31/14,REC/WAREHOUSE SPEC (A),"12,149.76",FISCAL YEAR 2015,"","","","HERBERT, GREGORY L"
,CHIEF ADMIN OFCR OF THE HOUSE,2014Q4,PERSONNEL COMPENSATION,"","HERBERT, GREGORY L",11/01/14,11/30/14,REC/WAREHOUSE SPEC (A) (OVERTIME),146.03,FISCAL YEAR 2015,"","","","HERBERT, GREGORY L"
,CHIEF ADMIN OFCR OF THE HOUSE,2014Q4,PERSONNEL COMPENSATION,"","HERBERT,DONNA",10/01/14,12/31/14,FINANCIAL ANALYST,"19,697.49",FISCAL YEAR 2015,"","","","HERBERT,DONNA"
,CHIEF ADMIN OFCR OF THE HOUSE,2014Q4,PERSONNEL COMPENSATION,"","HIBBS, CYNTHIA",10/01/14,12/31/14,NETWORK COORDINATOR (A),"19,092.24",FISCAL YEAR 2015,"","","","HIBBS, CYNTHIA"
,CHIEF ADMIN OFCR OF THE HOUSE,2014Q4,PERSONNEL COMPENSATION,"","HIRSCH, PATRICK A",10/01/14,12/31/14,DIR-HOUSE RECORDING STUDIO,"41,365.26",FISCAL YEAR 2015,"","","","HIRSCH, PATRICK A"
,CHIEF ADMIN OFCR OF THE HOUSE,2014Q4,PERSONNEL COMPENSATION,"","HITE,JASON A",10/01/14,12/31/14,CHIEF HUMAN RESOURCES OFFICER,"42,102.75",FISCAL YEAR 2015,"","","","HITE,JASON A"
,CHIEF ADMIN OFCR OF THE HOUSE,2014Q4,PERSONNEL COMPENSATION,"","HOBBS, DENINE",10/01/14,12/31/14,SPECIAL ASSISTANT,"25,295.01",FISCAL YEAR 2015,"","","","HOBBS, DENINE"
,CHIEF ADMIN OFCR OF THE HOUSE,2014Q4,PERSONNEL COMPENSATION,"","HODGES, JOHN E",10/01/14,12/31/14,"MANAGER, SALES & CUSTOMER SVC","25,025.01",FISCAL YEAR 2015,"","","","HODGES, JOHN E"
,CHIEF ADMIN OFCR OF THE HOUSE,2014Q4,PERSONNEL COMPENSATION,"","HOKHOLD, MARK D",10/01/14,12/31/14,SYSTEMS ENGINEER,"25,295.01",FISCAL YEAR 2015,"","","","HOKHOLD, MARK D"
,CHIEF ADMIN OFCR OF THE HOUSE,2014Q4,PERSONNEL COMPENSATION,"","HOLAU,GEORGE",10/01/14,12/31/14,FINANCIAL COUNSELOR,"20,883.75",FISCAL YEAR 2015,"","","","HOLAU,GEORGE"
,CHIEF ADMIN OFCR OF THE HOUSE,2014Q4,PERSONNEL COMPENSATION,"","HOLLAND, GREGORY",10/01/14,12/31/14,LOGISTICS & DIST SPEC (A),"11,683.26",FISCAL YEAR 2015,"","","","HOLLAND, GREGORY"
,CHIEF ADMIN OFCR OF THE HOUSE,2014Q4,PERSONNEL COMPENSATION,"","HOLLEY, STEVEN M",10/01/14,12/31/14,LOGISTICS & DIST SPEC (A),"11,089.74",FISCAL YEAR 2015,"","","","HOLLEY, STEVEN M"
,CHIEF ADMIN OFCR OF THE HOUSE,2014Q4,PERSONNEL COMPENSATION,"","HOLLEY, STEVEN M",11/01/14,11/30/14,LOGISTICS & DIST SPEC (A) (OVERTIME),143.95,FISCAL YEAR 2015,"","","","HOLLEY, STEVEN M"
,CHIEF ADMIN OFCR OF THE HOUSE,2014Q4,PERSONNEL COMPENSATION,"","HORNBURG, RICHARD A",10/01/14,12/31/14,BUSINESS PROC APPLIC SPEC,"28,225.74",FISCAL YEAR 2015,"","","","HORNBURG, RICHARD A"
,CHIEF ADMIN OFCR OF THE HOUSE,2014Q4,PERSONNEL COMPENSATION,"","HOWARD, ANTHONY T",10/01/14,12/31/14,JOURNEYMAN TEXTILE SPEC,"16,670.25",FISCAL YEAR 2015,"","","","HOWARD, ANTHONY T"
,CHIEF ADMIN OFCR OF THE HOUSE,2014Q4,PERSONNEL COMPENSATION,"","HOWARD, ANTHONY T",10/01/14,11/30/14,JOURNEYMAN TEXTILE SPEC (OVERTIME),512.92,FISCAL YEAR 2015,"","","","HOWARD, ANTHONY T"
,CHIEF ADMIN OFCR OF THE HOUSE,2014Q4,PERSONNEL COMPENSATION,"","HUGHES, MICHAEL A",10/01/14,12/31/14,FINANCIAL COUNSELOR,"15,988.26",FISCAL YEAR 2015,"","","","HUGHES, MICHAEL A"
,CHIEF ADMIN OFCR OF THE HOUSE,2014Q4,PERSONNEL COMPENSATION,"","HUNT,DANIEL",10/01/14,12/31/14,SR NETWORK COMM SPECIALIST,"31,269.75",FISCAL YEAR 2015,"","","","HUNT,DANIEL"
,CHIEF ADMIN OFCR OF THE HOUSE,2014Q4,PERSONNEL COMPENSATION,"","HUNTER, STEVE",10/01/14,12/31/14,ACCOUNT MANAGEMENT COUNSELOR,"13,936.50",FISCAL YEAR 2015,"","","","HUNTER, STEVE"
,CHIEF ADMIN OFCR OF THE HOUSE,2014Q4,PERSONNEL COMPENSATION,"","HUNTER, STEVE",10/01/14,11/30/14,ACCOUNT MANAGEMENT COUNSELOR (OVERTIME),"3,149.08",FISCAL YEAR 2015,"","","","HUNTER, STEVE"
,CHIEF ADMIN OFCR OF THE HOUSE,2014Q4,PERSONNEL COMPENSATION,"","HURDA, JACQUELINE L",10/01/14,12/31/14,FINANCIAL COUNSELOR (A),"20,093.76",FISCAL YEAR 2015,"","","","HURDA, JACQUELINE L"
,CHIEF ADMIN OFCR OF THE HOUSE,2014Q4,PERSONNEL COMPENSATION,"","HURDA, JACQUELINE L",11/01/14,11/30/14,FINANCIAL COUNSELOR (A) (OVERTIME),231.85,FISCAL YEAR 2015,"","","","HURDA, JACQUELINE L"
,CHIEF ADMIN OFCR OF THE HOUSE,2014Q4,PERSONNEL COMPENSATION,"","ILOG,ANGELA M",10/01/14,12/31/14,CONTRACTS SUPPORT ADMIN,"14,626.50",FISCAL YEAR 2015,"","","","ILOG,ANGELA M"
,CHIEF ADMIN OFCR OF THE HOUSE,2014Q4,PERSONNEL COMPENSATION,"","ILOG,ANGELA M",10/01/14,10/31/14,CONTRACTS SUPPORT ADMIN (OVERTIME),189.86,FISCAL YEAR 2015,"","","","ILOG,ANGELA M"
,CHIEF ADMIN OFCR OF THE HOUSE,2014Q4,PERSONNEL COMPENSATION,"","JACKSON, REGGIE",10/01/14,12/31/14,SR TECHNICAL SUPPORT REP (A),"23,941.50",FISCAL YEAR 2015,"","","","JACKSON, REGGIE"
,CHIEF ADMIN OFCR OF THE HOUSE,2014Q4,PERSONNEL COMPENSATION,"","JACKSON, WANDA J",10/01/14,12/31/14,TELECOMMUNICATIONS BRANCH MNGR,"27,197.76",FISCAL YEAR 2015,"","","","JACKSON, WANDA J"
,CHIEF ADMIN OFCR OF THE HOUSE,2014Q4,PERSONNEL COMPENSATION,"","JACOBSON, BRADLEY J",10/01/14,12/31/14,BRANCH MANAGER,"34,892.76",FISCAL YEAR 2015,"","","","JACOBSON, BRADLEY J"
,CHIEF ADMIN OFCR OF THE HOUSE,2014Q4,PERSONNEL COMPENSATION,"","JANIFER, ROLAND S",10/01/14,12/31/14,"SUPERVISOR,LOGIS & DIST (A)","18,304.74",FISCAL YEAR 2015,"","","","JANIFER, ROLAND S"
,CHIEF ADMIN OFCR OF THE HOUSE,2014Q4,PERSONNEL COMPENSATION,"","JECKO,BRITTANY E",10/01/14,12/31/14,HUMAN RESOURCES GENERALIST,"16,341.00",FISCAL YEAR 2015,"","","","JECKO,BRITTANY E"
,CHIEF ADMIN OFCR OF THE HOUSE,2014Q4,PERSONNEL COMPENSATION,"","JEFFERSON,KENYATTA",10/01/14,12/31/14,TECHNICAL SUPPORT REP (A),"18,512.25",FISCAL YEAR 2015,"","","","JEFFERSON,KENYATTA"
,CHIEF ADMIN OFCR OF THE HOUSE,2014Q4,PERSONNEL COMPENSATION,"","JENKINS, JAMES",10/01/14,12/31/14,WORKFLOW COORDINATOR,"19,092.24",FISCAL YEAR 2015,"","","","JENKINS, JAMES"
,CHIEF ADMIN OFCR OF THE HOUSE,2014Q4,PERSONNEL COMPENSATION,"","JENNINGS, ARACELI",10/01/14,12/31/14,FINANCE ASSISTANT,"16,670.25",FISCAL YEAR 2015,"","","","JENNINGS, ARACELI"
,CHIEF ADMIN OFCR OF THE HOUSE,2014Q4,PERSONNEL COMPENSATION,"","JOHANN, DEREK",10/01/14,12/31/14,SR RECEIVING & WAREHOUSIN SPEC,"16,670.25",FISCAL YEAR 2015,"","","","JOHANN, DEREK"
,CHIEF ADMIN OFCR OF THE HOUSE,2014Q4,PERSONNEL COMPENSATION,"","JOHANN, DEREK",11/01/14,11/30/14,SR RECEIVING & WAREHOUSIN SPEC (OVERTIME),272.49,FISCAL YEAR 2015,"","","","JOHANN, DEREK"
,CHIEF ADMIN OFCR OF THE HOUSE,2014Q4,PERSONNEL COMPENSATION,"","JOHNSON, ANDRE",10/01/14,12/31/14,APPLICATION DBA SPECIALIST,"23,228.49",FISCAL YEAR 2015,"","","","JOHNSON, ANDRE"
,CHIEF ADMIN OFCR OF THE HOUSE,2014Q4,PERSONNEL COMPENSATION,"","JOHNSON, DWAYNE",10/01/14,12/31/14,RETAIL INVENTORY SPECIALIST,"14,615.25",FISCAL YEAR 2015,"","","","JOHNSON, DWAYNE"
,CHIEF ADMIN OFCR OF THE HOUSE,2014Q4,PERSONNEL COMPENSATION,"","JOHNSON, ERIC C",10/01/14,12/31/14,LOGISTICS & DIST SPEC (A),"12,351.27",FISCAL YEAR 2015,"","","","JOHNSON, ERIC C"
,CHIEF ADMIN OFCR OF THE HOUSE,2014Q4,PERSONNEL COMPENSATION,"","JOHNSON, MARGARET K",10/01/14,12/31/14,SR MODULAR FURNITURE SPEC,"17,781.25",FISCAL YEAR 2015,"","","","JOHNSON, MARGARET K"
,CHIEF ADMIN OFCR OF THE HOUSE,2014Q4,PERSONNEL COMPENSATION,"","JOHNSON, REGINALD",10/01/14,12/31/14,FINANCIAL COUNSELOR (A),"17,517.75",FISCAL YEAR 2015,"","","","JOHNSON, REGINALD"
,CHIEF ADMIN OFCR OF THE HOUSE,2014Q4,PERSONNEL COMPENSATION,"","JOHNSON, ROBERT C",10/01/14,12/31/14,SENIOR SYSTEMS ENGINEER,"30,278.49",FISCAL YEAR 2015,"","","","JOHNSON, ROBERT C"
,CHIEF ADMIN OFCR OF THE HOUSE,2014Q4,PERSONNEL COMPENSATION,"","JOHNSON,KWASI Z",10/01/14,12/31/14,LOGISTICS & DIST SPEC (A),"9,092.49",FISCAL YEAR 2015,"","","","JOHNSON,KWASI Z"
,CHIEF ADMIN OFCR OF THE HOUSE,2014Q4,PERSONNEL COMPENSATION,"","JOHNSON,KWASI Z",11/01/14,11/30/14,LOGISTICS & DIST SPEC (A) (OVERTIME),118.03,FISCAL YEAR 2015,"","","","JOHNSON,KWASI Z"
,CHIEF ADMIN OFCR OF THE HOUSE,2014Q4,PERSONNEL COMPENSATION,"","JONES III,CLARENCE",10/01/14,12/31/14,SENIOR NETWORK TECHNICIAN,"19,565.58",FISCAL YEAR 2015,"","","","JONES III,CLARENCE"
,CHIEF ADMIN OFCR OF THE HOUSE,2014Q4,PERSONNEL COMPENSATION,"","JONES JR, CHARLES J",10/01/14,12/31/14,NETWORK COMM SPECIALIST,"24,392.01",FISCAL YEAR 2015,"","","","JONES JR, CHARLES J"
,CHIEF ADMIN OFCR OF THE HOUSE,2014Q4,PERSONNEL COMPENSATION,"","JONES, DEBORAH D",10/01/14,12/31/14,FINANCIAL COUNSELOR,"21,280.74",FISCAL YEAR 2015,"","","","JONES, DEBORAH D"
,CHIEF ADMIN OFCR OF THE HOUSE,2014Q4,PERSONNEL COMPENSATION,"","JONES, MITCHAEL",10/01/14,12/31/14,TECHNICAL TRAINER,"20,093.76",FISCAL YEAR 2015,"","","","JONES, MITCHAEL"
,CHIEF ADMIN OFCR OF THE HOUSE,2014Q4,PERSONNEL COMPENSATION,"","JONES, STEPHEN E",10/01/14,12/31/14,SENIOR SYSTEMS ENGINEER,"30,709.26",FISCAL YEAR 2015,"","","","JONES, STEPHEN E"
,CHIEF ADMIN OFCR OF THE HOUSE,2014Q4,PERSONNEL COMPENSATION,"","JONES, WESLEY D",10/01/14,12/31/14,LOGISTICS & DIST SPEC (A),"11,386.74",FISCAL YEAR 2015,"","","","JONES, WESLEY D"
,CHIEF ADMIN OFCR OF THE HOUSE,2014Q4,PERSONNEL COMPENSATION,"","JONES, WESLEY D",11/01/14,11/30/14,LOGISTICS & DIST SPEC (A) (OVERTIME),71.17,FISCAL YEAR 2015,"","","","JONES, WESLEY D"
,CHIEF ADMIN OFCR OF THE HOUSE,2014Q4,PERSONNEL COMPENSATION,"","JONES,RODNEY B",10/01/14,12/31/14,SR TECHNICAL SUPPORT REP,"21,577.91",FISCAL YEAR 2015,"","","","JONES,RODNEY B"
,CHIEF ADMIN OFCR OF THE HOUSE,2014Q4,PERSONNEL COMPENSATION,"","JONES,YOLANDA S",10/01/14,12/31/14,PAYROLL & BENEFITS GENERALIST,"16,341.00",FISCAL YEAR 2015,"","","","JONES,YOLANDA S"
,CHIEF ADMIN OFCR OF THE HOUSE,2014Q4,PERSONNEL COMPENSATION,"","JONES,YOLANDA S",11/01/14,11/30/14,PAYROLL & BENEFITS GENERALIST (OVERTIME),259.25,FISCAL YEAR 2015,"","","","JONES,YOLANDA S"
,CHIEF ADMIN OFCR OF THE HOUSE,2014Q4,PERSONNEL COMPENSATION,"","JORDAN, YONG O",10/01/14,12/31/14,SR TECH SOLUTIONS ENGINEER,"24,841.50",FISCAL YEAR 2015,"","","","JORDAN, YONG O"
,CHIEF ADMIN OFCR OF THE HOUSE,2014Q4,PERSONNEL COMPENSATION,"","JORDAN,CHRISTOPHER",10/01/14,12/01/14,DIRECTOR BUSINESS CONTINUITY,"26,416.90",FISCAL YEAR 2015,"","","","JORDAN,CHRISTOPHER"
,CHIEF ADMIN OFCR OF THE HOUSE,2014Q4,PERSONNEL COMPENSATION,"","JORDAN,CHRISTOPHER",12/02/14,12/31/14,ACTING ASSISTANT CAO/CISO,"13,328.80",FISCAL YEAR 2015,"","","","JORDAN,CHRISTOPHER"
,CHIEF ADMIN OFCR OF THE HOUSE,2014Q4,PERSONNEL COMPENSATION,"","JOYCE, ERIC",10/01/14,12/31/14,SUPERVISOR,"28,738.50",FISCAL YEAR 2015,"","","","JOYCE, ERIC"
,CHIEF ADMIN OFCR OF THE HOUSE,2014Q4,PERSONNEL COMPENSATION,"","JUDGE, NANCY",10/01/14,12/31/14,CUSTOMER SOLUTIONS REP,"15,645.99",FISCAL YEAR 2015,"","","","JUDGE, NANCY"
,CHIEF ADMIN OFCR OF THE HOUSE,2014Q4,PERSONNEL COMPENSATION,"","KAHLER, KENT",10/01/14,12/31/14,SYSTEMS ENGINEER,"25,746.51",FISCAL YEAR 2015,"","","","KAHLER, KENT"
,CHIEF ADMIN OFCR OF THE HOUSE,2014Q4,PERSONNEL COMPENSATION,"","KAPLAN,LEAH",10/01/14,12/31/14,MEDIA LOGISTICS ASSISTANT,"13,254.75",FISCAL YEAR 2015,"","","","KAPLAN,LEAH"
,CHIEF ADMIN OFCR OF THE HOUSE,2014Q4,PERSONNEL COMPENSATION,"","KEANE, MICHAEL T",10/01/14,12/31/14,"MANAGER, WORKFLOW MANAGEMENT","23,488.50",FISCAL YEAR 2015,"","","","KEANE, MICHAEL T"
,CHIEF ADMIN OFCR OF THE HOUSE,2014Q4,PERSONNEL COMPENSATION,"","KELLAHER,ANTHONY",10/01/14,12/31/14,MEDIA LOGISTICS COORDINATOR,"18,643.67",FISCAL YEAR 2015,"","","","KELLAHER,ANTHONY"
,CHIEF ADMIN OFCR OF THE HOUSE,2014Q4,PERSONNEL COMPENSATION,"","KELLEY, KEVIN S",10/01/14,12/31/14,CUSTOMER SOLUTIONS REP,"16,328.76",FISCAL YEAR 2015,"","","","KELLEY, KEVIN S"
,CHIEF ADMIN OFCR OF THE HOUSE,2014Q4,PERSONNEL COMPENSATION,"","KELLEY, MARY M",10/01/14,12/31/14,RESOURCE MANAGER,"29,765.49",FISCAL YEAR 2015,"","","","KELLEY, MARY M"
,CHIEF ADMIN OFCR OF THE HOUSE,2014Q4,PERSONNEL COMPENSATION,"","KELLEY, TARA A",10/01/14,12/31/14,COMMUNICATIONS SPEC (A),"21,280.74",FISCAL YEAR 2015,"","","","KELLEY, TARA A"
,CHIEF ADMIN OFCR OF THE HOUSE,2014Q4,PERSONNEL COMPENSATION,"","KEMP, DAVID S",10/01/14,12/31/14,SENIOR SYSTEMS ENGINEER,"33,505.50",FISCAL YEAR 2015,"","","","KEMP, DAVID S"
,CHIEF ADMIN OFCR OF THE HOUSE,2014Q4,PERSONNEL COMPENSATION,"","KENEALY, PATRICK T",10/01/14,12/31/14,FINANCIAL ANALYST,"35,184.99",FISCAL YEAR 2015,"","","","KENEALY, PATRICK T"
,CHIEF ADMIN OFCR OF THE HOUSE,2014Q4,PERSONNEL COMPENSATION,"","KILSON,FRANKLIN P",10/01/14,12/31/14,NETWORK TECHNICIAN,"21,879.75",FISCAL YEAR 2015,"","","","KILSON,FRANKLIN P"
,CHIEF ADMIN OFCR OF THE HOUSE,2014Q4,PERSONNEL COMPENSATION,"","KIMBALL, MARK E",10/01/14,12/31/14,SR TECHNICAL SUPPORT REP (A),"22,328.01",FISCAL YEAR 2015,"","","","KIMBALL, MARK E"
,CHIEF ADMIN OFCR OF THE HOUSE,2014Q4,PERSONNEL COMPENSATION,"","KING, JOHN A",10/01/14,12/31/14,"SUPERVISOR,LOGISTICS & DIST (A","16,619.29",FISCAL YEAR 2015,"","","","KING, JOHN A"
,CHIEF ADMIN OFCR OF THE HOUSE,2014Q4,PERSONNEL COMPENSATION,"","KLEMP, CAROLINE",10/01/14,12/31/14,DIRECTOR MEMBERS' SERVICES,"35,184.99",FISCAL YEAR 2015,"","","","KLEMP, CAROLINE"
,CHIEF ADMIN OFCR OF THE HOUSE,2014Q4,PERSONNEL COMPENSATION,"","KLUSSENDORF, KATHLEEN M",10/01/14,12/31/14,SPECIAL ASSISTANT,"27,553.26",FISCAL YEAR 2015,"","","","KLUSSENDORF, KATHLEEN M"
,CHIEF ADMIN OFCR OF THE HOUSE,2014Q4,PERSONNEL COMPENSATION,"","KNELL, KATHERINE A",10/01/14,12/31/14,HRIS APPLICATIONS MANAGER,"40,192.26",FISCAL YEAR 2015,"","","","KNELL, KATHERINE A"
,CHIEF ADMIN OFCR OF THE HOUSE,2014Q4,PERSONNEL COMPENSATION,"","KNOERL, THOMAS K",10/01/14,12/31/14,NETWORK COMMUNICATIONS SPEC,"26,648.25",FISCAL YEAR 2015,"","","","KNOERL, THOMAS K"
,CHIEF ADMIN OFCR OF THE HOUSE,2014Q4,PERSONNEL COMPENSATION,"","KONOPATSKI,FRANK",10/01/14,12/31/14,SR COMM SECURITY ANALYST,"24,392.01",FISCAL YEAR 2015,"","","","KONOPATSKI,FRANK"
,CHIEF ADMIN OFCR OF THE HOUSE,2014Q4,PERSONNEL COMPENSATION,"","KORNACKI, OLGA R",10/01/14,12/31/14,DIRECTOR,"32,947.50",FISCAL YEAR 2015,"","","","KORNACKI, OLGA R"
,CHIEF ADMIN OFCR OF THE HOUSE,2014Q4,PERSONNEL COMPENSATION,"","KOZTOSKI, DOUGLAS W",10/01/14,12/31/14,BROADCAST PRODUCTION TECHNICIA,"19,697.49",FISCAL YEAR 2015,"","","","KOZTOSKI, DOUGLAS W"
,CHIEF ADMIN OFCR OF THE HOUSE,2014Q4,PERSONNEL COMPENSATION,"","KOZTOSKI, DOUGLAS W",11/01/14,11/30/14,BROADCAST PRODUCTION TECHNICIA (OVERTIME),340.91,FISCAL YEAR 2015,"","","","KOZTOSKI, DOUGLAS W"
,CHIEF ADMIN OFCR OF THE HOUSE,2014Q4,PERSONNEL COMPENSATION,"","KRAFT,NORMAN R",10/01/14,12/31/14,INTERNET SYSTEMS SPECIALIST,"23,187.50",FISCAL YEAR 2015,"","","","KRAFT,NORMAN R"
,CHIEF ADMIN OFCR OF THE HOUSE,2014Q4,PERSONNEL COMPENSATION,"","KRALY,ELIZABETH A",10/01/14,12/31/14,"MANAGER, CAO HUMAN RESOURCES","27,197.76",FISCAL YEAR 2015,"","","","KRALY,ELIZABETH A"
,CHIEF ADMIN OFCR OF THE HOUSE,2014Q4,PERSONNEL COMPENSATION,"","KRAMER, STEPHEN",10/01/14,12/31/14,NETWORK COMMUNICATIONS SPEC,"25,746.51",FISCAL YEAR 2015,"","","","KRAMER, STEPHEN"
,CHIEF ADMIN OFCR OF THE HOUSE,2014Q4,PERSONNEL COMPENSATION,"","KREMKAU,REBECCA K",10/01/14,12/31/14,FINANCIAL ANALYST,"21,426.99",FISCAL YEAR 2015,"","","","KREMKAU,REBECCA K"
,CHIEF ADMIN OFCR OF THE HOUSE,2014Q4,PERSONNEL COMPENSATION,"","KUPER, KAREN",10/01/14,12/31/14,SPECIAL ASSISTANT/OPER SUPERVI,"25,295.01",FISCAL YEAR 2015,"","","","KUPER, KAREN"
,CHIEF ADMIN OFCR OF THE HOUSE,2014Q4,PERSONNEL COMPENSATION,"","LAGASSE, DANIEL",10/01/14,12/31/14,MOBILE COMM SPEC - TELEPHONY,"31,301.76",FISCAL YEAR 2015,"","","","LAGASSE, DANIEL"
,CHIEF ADMIN OFCR OF THE HOUSE,2014Q4,PERSONNEL COMPENSATION,"","LAU,DAVID E",10/01/14,12/31/14,INFORMATION SECURITY MANAGER,"33,246.67",FISCAL YEAR 2015,"","","","LAU,DAVID E"
,CHIEF ADMIN OFCR OF THE HOUSE,2014Q4,PERSONNEL COMPENSATION,"","LEBER, DENNIS",10/01/14,12/31/14,SR NETWORK SYSTEMS ENGINEER,"28,225.74",FISCAL YEAR 2015,"","","","LEBER, DENNIS"
,CHIEF ADMIN OFCR OF THE HOUSE,2014Q4,PERSONNEL COMPENSATION,"","LEE, DARNELL A",10/01/14,12/31/14,ASSISTANT CAO,"37,758.00",FISCAL YEAR 2015,"","","","LEE, DARNELL A"
,CHIEF ADMIN OFCR OF THE HOUSE,2014Q4,PERSONNEL COMPENSATION,"","LEIBACH,WILLIAM",10/01/14,12/31/14,"DIRECTOR, INTERNAL CONTROLS","34,277.76",FISCAL YEAR 2015,"","","","LEIBACH,WILLIAM"
,CHIEF ADMIN OFCR OF THE HOUSE,2014Q4,PERSONNEL COMPENSATION,"","LEIBY,FREDERICK",10/01/14,12/31/14,CONTRACT ADMINISTRATOR,"18,512.25",FISCAL YEAR 2015,"","","","LEIBY,FREDERICK"
,CHIEF ADMIN OFCR OF THE HOUSE,2014Q4,PERSONNEL COMPENSATION,"","LEON-CAMPOS, CARLOS",10/01/14,12/31/14,MANAGER,"25,295.01",FISCAL YEAR 2015,"","","","LEON-CAMPOS, CARLOS"
,CHIEF ADMIN OFCR OF THE HOUSE,2014Q4,PERSONNEL COMPENSATION,"","LEONARD,DENISE D",10/01/14,12/31/14,WORKFLOW COORDINATOR,"16,209.67",FISCAL YEAR 2015,"","","","LEONARD,DENISE D"
,CHIEF ADMIN OFCR OF THE HOUSE,2014Q4,PERSONNEL COMPENSATION,"","LEONARD,DENISE D",11/01/14,11/30/14,WORKFLOW COORDINATOR (OVERTIME),231.91,FISCAL YEAR 2015,"","","","LEONARD,DENISE D"
,CHIEF ADMIN OFCR OF THE HOUSE,2014Q4,PERSONNEL COMPENSATION,"","LESNEWSKY,ERIK",10/01/14,12/31/14,ADA AIDE,"6,437.19",FISCAL YEAR 2015,"","","","LESNEWSKY,ERIK"
,CHIEF ADMIN OFCR OF THE HOUSE,2014Q4,PERSONNEL COMPENSATION,"","LESNEWSKY,ERIK",11/01/14,11/30/14,ADA AIDE (OVERTIME),683.94,FISCAL YEAR 2015,"","","","LESNEWSKY,ERIK"
,CHIEF ADMIN OFCR OF THE HOUSE,2014Q4,PERSONNEL COMPENSATION,"","LEVENGOOD, DAVID S",10/01/14,12/31/14,TECHNICAL TRAINER,"18,906.51",FISCAL YEAR 2015,"","","","LEVENGOOD, DAVID S"
,CHIEF ADMIN OFCR OF THE HOUSE,2014Q4,PERSONNEL COMPENSATION,"","LEWIS, JOHN T",10/01/14,12/31/14,DIRECTOR FURNISHINGS,"28,738.50",FISCAL YEAR 2015,"","","","LEWIS, JOHN T"
,CHIEF ADMIN OFCR OF THE HOUSE,2014Q4,PERSONNEL COMPENSATION,"","LEWIS, ROBERT M",10/01/14,12/31/14,PHOTOGRAPHIC LAB TECHNICIAN,"18,027.00",FISCAL YEAR 2015,"","","","LEWIS, ROBERT M"
,CHIEF ADMIN OFCR OF THE HOUSE,2014Q4,PERSONNEL COMPENSATION,"","LIM,CHAU T",10/01/14,12/31/14,SENIOR ACCOUNTANT (A),"25,295.01",FISCAL YEAR 2015,"","","","LIM,CHAU T"
,CHIEF ADMIN OFCR OF THE HOUSE,2014Q4,PERSONNEL COMPENSATION,"","LINVILLE, RAY A",10/01/14,12/31/14,SENIOR SYSTEMS ENGINEER,"30,278.49",FISCAL YEAR 2015,"","","","LINVILLE, RAY A"
,CHIEF ADMIN OFCR OF THE HOUSE,2014Q4,PERSONNEL COMPENSATION,"","LITTLE, ANDREAL P",10/01/14,12/31/14,ADMINISTRATIVE SPECIALIST,"16,328.76",FISCAL YEAR 2015,"","","","LITTLE, ANDREAL P"
,CHIEF ADMIN OFCR OF THE HOUSE,2014Q4,PERSONNEL COMPENSATION,"","LITTLE, HAROLD M",10/01/14,12/31/14,SR TECH SOLUTIONS ENGINEER,"24,841.50",FISCAL YEAR 2015,"","","","LITTLE, HAROLD M"
,CHIEF ADMIN OFCR OF THE HOUSE,2014Q4,PERSONNEL COMPENSATION,"","LOGAN, KATHERINE J",10/01/14,12/31/14,DIRECTOR PAYROLL AND BENEFITS,"40,192.26",FISCAL YEAR 2015,"","","","LOGAN, KATHERINE J"
,CHIEF ADMIN OFCR OF THE HOUSE,2014Q4,PERSONNEL COMPENSATION,"","LONG, JOHN P",10/01/14,12/31/14,SR MODULAR FURNITURE SPEC,"25,926.24",FISCAL YEAR 2015,"","","","LONG, JOHN P"
,CHIEF ADMIN OFCR OF THE HOUSE,2014Q4,PERSONNEL COMPENSATION,"","LOVING, ANTHONY",10/01/14,12/31/14,APPLICATION DBA SPECIALIST,"28,225.74",FISCAL YEAR 2015,"","","","LOVING, ANTHONY"
,CHIEF ADMIN OFCR OF THE HOUSE,2014Q4,PERSONNEL COMPENSATION,"","MAAS, JENNIFER A",10/01/14,12/31/14,"MGR, USER EXPERIENCE & DESIGN","26,857.26",FISCAL YEAR 2015,"","","","MAAS, JENNIFER A"
,CHIEF ADMIN OFCR OF THE HOUSE,2014Q4,PERSONNEL COMPENSATION,"","MAGNOTTI IV,LOUIS",10/01/14,12/31/14,AUDIO SPECIALIST,"17,720.01",FISCAL YEAR 2015,"","","","MAGNOTTI IV,LOUIS"
,CHIEF ADMIN OFCR OF THE HOUSE,2014Q4,PERSONNEL COMPENSATION,"","MAGNOTTI IV,LOUIS",11/01/14,11/30/14,AUDIO SPECIALIST (OVERTIME),298.17,FISCAL YEAR 2015,"","","","MAGNOTTI IV,LOUIS"
,CHIEF ADMIN OFCR OF THE HOUSE,2014Q4,PERSONNEL COMPENSATION,"","MAGRUDER, TIMOTHY",10/01/14,12/31/14,JOURNEYMAN FURNITURE SPEC,"15,760.08",FISCAL YEAR 2015,"","","","MAGRUDER, TIMOTHY"
,CHIEF ADMIN OFCR OF THE HOUSE,2014Q4,PERSONNEL COMPENSATION,"","MAHAR,EDWARD A",10/01/14,12/31/14,"DIR, INFO SYSTEMS SECURITY","38,975.76",FISCAL YEAR 2015,"","","","MAHAR,EDWARD A"
,CHIEF ADMIN OFCR OF THE HOUSE,2014Q4,PERSONNEL COMPENSATION,"","MAIDEN III, LEWIS L",10/01/14,12/31/14,LOGISTICS & DIST SPEC (A),"14,615.25",FISCAL YEAR 2015,"","","","MAIDEN III, LEWIS L"
,CHIEF ADMIN OFCR OF THE HOUSE,2014Q4,PERSONNEL COMPENSATION,"","MALASPINA,KIMBERLY J",10/01/14,12/31/14,JOURNEYMAN TEXTILE SPEC,"17,387.42",FISCAL YEAR 2015,"","","","MALASPINA,KIMBERLY J"
,CHIEF ADMIN OFCR OF THE HOUSE,2014Q4,PERSONNEL COMPENSATION,"","MALASPINA,KIMBERLY J",11/01/14,11/30/14,JOURNEYMAN TEXTILE SPEC (OVERTIME),303.19,FISCAL YEAR 2015,"","","","MALASPINA,KIMBERLY J"
,CHIEF ADMIN OFCR OF THE HOUSE,2014Q4,PERSONNEL COMPENSATION,"","MALLON, MICHAEL P",10/01/14,12/31/14,RESOURCE ANALYST,"23,228.49",FISCAL YEAR 2015,"","","","MALLON, MICHAEL P"
,CHIEF ADMIN OFCR OF THE HOUSE,2014Q4,PERSONNEL COMPENSATION,"","MALLOY, DEON",10/01/14,12/31/14,SR TECHNICAL SUPPORT REP (A),"22,328.01",FISCAL YEAR 2015,"","","","MALLOY, DEON"
,CHIEF ADMIN OFCR OF THE HOUSE,2014Q4,PERSONNEL COMPENSATION,"","MANSON, JOHN L",10/01/14,10/31/14,SR NETWORK COMM SPEC (A),"10,092.83",FISCAL YEAR 2015,"","","","MANSON, JOHN L"
,CHIEF ADMIN OFCR OF THE HOUSE,2014Q4,PERSONNEL COMPENSATION,"","MANSON, JOHN L",10/01/14,10/31/14,SR NETWORK COMM SPEC (A) (OTHER COMPENSATION),"3,868.92",FISCAL YEAR 2015,"","","","MANSON, JOHN L"
,CHIEF ADMIN OFCR OF THE HOUSE,2014Q4,PERSONNEL COMPENSATION,"","MARCUM JR, VINCENT L",10/01/14,12/31/14,JOURNEYMAN TEXTILE SPEC,"19,092.24",FISCAL YEAR 2015,"","","","MARCUM JR, VINCENT L"
,CHIEF ADMIN OFCR OF THE HOUSE,2014Q4,PERSONNEL COMPENSATION,"","MARCUM JR, VINCENT L",11/01/14,11/30/14,JOURNEYMAN TEXTILE SPEC (OVERTIME),220.29,FISCAL YEAR 2015,"","","","MARCUM JR, VINCENT L"
,CHIEF ADMIN OFCR OF THE HOUSE,2014Q4,PERSONNEL COMPENSATION,"","MARCUS, RALPH J",10/01/14,12/31/14,TECHNICAL DIRECTOR (A),"24,541.84",FISCAL YEAR 2015,"","","","MARCUS, RALPH J"
,CHIEF ADMIN OFCR OF THE HOUSE,2014Q4,PERSONNEL COMPENSATION,"","MARCUS, RALPH J",11/01/14,11/30/14,TECHNICAL DIRECTOR (A) (OVERTIME),351.80,FISCAL YEAR 2015,"","","","MARCUS, RALPH J"
,CHIEF ADMIN OFCR OF THE HOUSE,2014Q4,PERSONNEL COMPENSATION,"","MARSH, STEVE W",10/01/14,12/31/14,"MANAGER, ACCOUNTING","29,252.49",FISCAL YEAR 2015,"","","","MARSH, STEVE W"
,CHIEF ADMIN OFCR OF THE HOUSE,2014Q4,PERSONNEL COMPENSATION,"","MARTIN, CHRISTOPHER W",10/01/14,12/31/14,JOURNEYMAN FURNITURE SPEC,"19,877.25",FISCAL YEAR 2015,"","","","MARTIN, CHRISTOPHER W"
,CHIEF ADMIN OFCR OF THE HOUSE,2014Q4,PERSONNEL COMPENSATION,"","MARTINEZ, JAIME D",10/01/14,12/31/14,SENIOR SYSTEMS ENGINEER,"28,738.50",FISCAL YEAR 2015,"","","","MARTINEZ, JAIME D"
,CHIEF ADMIN OFCR OF THE HOUSE,2014Q4,PERSONNEL COMPENSATION,"","MARTINS, RICHARD",10/01/14,12/31/14,MANAGER NETWORK CONFIG. MNGMNT,"34,892.76",FISCAL YEAR 2015,"","","","MARTINS, RICHARD"
,CHIEF ADMIN OFCR OF THE HOUSE,2014Q4,PERSONNEL COMPENSATION,"","MASHETER JR, FREDERICK J",10/01/14,12/31/14,PURCHASING AGENT,"14,955.24",FISCAL YEAR 2015,"","","","MASHETER JR, FREDERICK J"
,CHIEF ADMIN OFCR OF THE HOUSE,2014Q4,PERSONNEL COMPENSATION,"","MASON, TRON",10/01/14,11/05/14,SR NETWORK COMM SPEC,"9,836.95",FISCAL YEAR 2015,"","","","MASON, TRON"
,CHIEF ADMIN OFCR OF THE HOUSE,2014Q4,PERSONNEL COMPENSATION,"","MASON, TRON",11/06/14,12/31/14,SR NETWORK COMM SPEC (A),"17,249.07",FISCAL YEAR 2015,"","","","MASON, TRON"
,CHIEF ADMIN OFCR OF THE HOUSE,2014Q4,PERSONNEL COMPENSATION,"","MASSENGALE, DOUG",10/01/14,12/31/14,CHIEF ENGINEER,"31,269.75",FISCAL YEAR 2015,"","","","MASSENGALE, DOUG"
